Dept/Family,Entity,Expense Type,Expense Area,Supplier,Payment Date, Amount ,SME,UNSPCC Code,UNSPCC Description
"Ministry of Housing, Communities and Local Government",Homes England,Land Registry Fees,Corporate Resources,HM LAND REGISTRY,22/07/2021,381.00,G,80131700,Escrow and title services
"Ministry of Housing, Communities and Local Government",Homes England,Land Registry Fees,Corporate Resources,HM LAND REGISTRY,15/07/2021,333.00,G,80131700,Escrow and title services
"Ministry of Housing, Communities and Local Government",Homes England,Land Registry Fees,Corporate Resources,HM LAND REGISTRY,29/07/2021,279.00,G,80131700,Escrow and title services
"Ministry of Housing, Communities and Local Government",Homes England,Land Registry Fees,Corporate Resources,HM LAND REGISTRY,23/07/2021,276.00,G,80131700,Escrow and title services
"Ministry of Housing, Communities and Local Government",Homes England,SERVICE CHARGE,Development,ASDA STORES LTD,13/07/2021,758.09,L,80131500,Lease and rental of property or building
"Ministry of Housing, Communities and Local Government",Homes England,SERVICE CHARGE,Development,ASDA STORES LTD,13/07/2021,342.96,L,80131500,Lease and rental of property or building
"Ministry of Housing, Communities and Local Government",Homes England,CAPITAL GRANTS TO RPs,Investment,FIRST CHOICE HOMES OLDHAM LIMITED,19/07/2021,"9,000.00",L,None,Grants
"Ministry of Housing, Communities and Local Government",Homes England,CAPITAL GRANTS TO RPs,Investment,FIRST CHOICE HOMES OLDHAM LIMITED,27/07/2021,"9,000.00",L,None,Grants
"Ministry of Housing, Communities and Local Government",Homes England,CAPITAL GRANTS TO RPs,Investment,ROCHDALE BOROUGHWIDE HOUSING LIMITED,07/07/2021,"1,875.00",L,None,Grants
"Ministry of Housing, Communities and Local Government",Homes England,CAPITAL GRANTS TO RPs,Investment,SAGE HOUSING LIMITED,06/07/2021,"110,000.00",M,None,Grants
"Ministry of Housing, Communities and Local Government",Homes England,CAPITAL GRANTS TO RPs,Investment,SAGE HOUSING LIMITED,07/07/2021,"74,250.00",M,None,Grants
"Ministry of Housing, Communities and Local Government",Homes England,CAPITAL GRANTS TO RPs,Investment,SAGE HOUSING LIMITED,06/07/2021,"66,535.00",M,None,Grants
"Ministry of Housing, Communities and Local Government",Homes England,CAPITAL GRANTS TO RPs,Investment,SAGE HOUSING LIMITED,15/07/2021,"57,030.00",M,None,Grants
"Ministry of Housing, Communities and Local Government",Homes England,CAPITAL GRANTS TO RPs,Investment,SAGE HOUSING LIMITED,06/07/2021,"47,525.00",M,None,Grants
"Ministry of Housing, Communities and Local Government",Homes England,CAPITAL GRANTS TO RPs,Investment,SAGE HOUSING LIMITED,15/07/2021,"19,010.00",M,None,Grants
"Ministry of Housing, Communities and Local Government",Homes England,CAPITAL GRANTS TO RPs,Investment,YMCA DOWNSLINK GROUP,29/07/2021,"137,610.00",L,None,Grants
"Ministry of Housing, Communities and Local Government",Homes England,REVENUE GRANTS TO RPs,Investment,YMCA DOWNSLINK GROUP,28/07/2021,"3,089.00",L,None,Grants
"Ministry of Housing, Communities and Local Government",Homes England,REVENUE GRANTS TO RPs,Investment,YMCA DOWNSLINK GROUP,28/07/2021,"2,800.00",L,None,Grants
"Ministry of Housing, Communities and Local Government",Homes England,REVENUE GRANTS TO RPs,Investment,YMCA DOWNSLINK GROUP,28/07/2021,700.00,L,None,Grants
"Ministry of Housing, Communities and Local Government",Homes England,REVENUE GRANTS TO RPs,Investment,YMCA DOWNSLINK GROUP,28/07/2021,646.00,L,None,Grants
"Ministry of Housing, Communities and Local Government",Homes England,REVENUE GRANTS TO RPs,Investment,YMCA DOWNSLINK GROUP,28/07/2021,569.00,L,None,Grants
"Ministry of Housing, Communities and Local Government",Homes England,REVENUE GRANTS TO RPs,Investment,YMCA DOWNSLINK GROUP,28/07/2021,535.00,L,None,Grants
"Ministry of Housing, Communities and Local Government",Homes England,REVENUE GRANTS TO RPs,Investment,YMCA DOWNSLINK GROUP,28/07/2021,443.00,L,None,Grants
"Ministry of Housing, Communities and Local Government",Homes England,REVENUE GRANTS TO RPs,Investment,YMCA DOWNSLINK GROUP,28/07/2021,382.00,L,None,Grants
"Ministry of Housing, Communities and Local Government",Homes England,REVENUE GRANTS TO RPs,Investment,YMCA DOWNSLINK GROUP,28/07/2021,350.00,L,None,Grants
"Ministry of Housing, Communities and Local Government",Homes England,REVENUE GRANTS TO RPs,Investment,YMCA DOWNSLINK GROUP,28/07/2021,350.00,L,None,Grants
"Ministry of Housing, Communities and Local Government",Homes England,REVENUE GRANTS TO RPs,Investment,YMCA DOWNSLINK GROUP,28/07/2021,350.00,L,None,Grants
"Ministry of Housing, Communities and Local Government",Homes England,REVENUE GRANTS TO RPs,Investment,YMCA DOWNSLINK GROUP,28/07/2021,303.00,L,None,Grants
"Ministry of Housing, Communities and Local Government",Homes England,REVENUE GRANTS TO RPs,Investment,YMCA DOWNSLINK GROUP,28/07/2021,300.00,L,None,Grants
"Ministry of Housing, Communities and Local Government",Homes England,CAPITAL GRANTS TO RPs,Investment,KARBON HOMES LIMITED - ISOS HOUSING LIMITED,05/07/2021,"70,000.00",L,None,Grants
"Ministry of Housing, Communities and Local Government",Homes England,CAPITAL GRANTS TO RPs,Investment,KEELMAN HOMES,01/07/2021,"18,750.00",L,None,Grants
"Ministry of Housing, Communities and Local Government",Homes England,CAPITAL GRANTS TO RPs,Investment,KEELMAN HOMES,30/07/2021,"7,937.00",L,None,Grants
"Ministry of Housing, Communities and Local Government",Homes England,CAPITAL GRANTS TO RPs,Investment,KEELMAN HOMES,30/07/2021,"7,937.00",L,None,Grants
"Ministry of Housing, Communities and Local Government",Homes England,CAPITAL GRANTS TO RPs,Investment,KESWICK COMMUNITY HOUSING TRUST,19/07/2021,"37,500.00",S,None,Grants
"Ministry of Housing, Communities and Local Government",Homes England,REVENUE GRANTS TO RPs,Investment,HUMANKIND CHARITY,07/07/2021,"5,235.00",L,None,Grants
"Ministry of Housing, Communities and Local Government",Homes England,CAPITAL GRANTS TO RPs,Investment,HUMANKIND CHARITY,05/07/2021,"4,345.00",L,None,Grants
"Ministry of Housing, Communities and Local Government",Homes England,REVENUE GRANTS TO RPs,Investment,THE GUINNESS PARTNERSHIP LIMITED,23/07/2021,"45,400.00",L,None,Grants
"Ministry of Housing, Communities and Local Government",Homes England,CAPITAL GRANTS TO RPs,Investment,THE GUINNESS PARTNERSHIP LIMITED,06/07/2021,"10,000.00",L,None,Grants
"Ministry of Housing, Communities and Local Government",Homes England,CAPITAL GRANTS TO RPs,Investment,THE GUINNESS PARTNERSHIP LIMITED,06/07/2021,"9,000.00",L,None,Grants
"Ministry of Housing, Communities and Local Government",Homes England,CAPITAL GRANTS TO RPs,Investment,THE GUINNESS PARTNERSHIP LIMITED,07/07/2021,"9,000.00",L,None,Grants
"Ministry of Housing, Communities and Local Government",Homes England,CAPITAL GRANTS TO RPs,Investment,THE GUINNESS PARTNERSHIP LIMITED,19/07/2021,"9,000.00",L,None,Grants
"Ministry of Housing, Communities and Local Government",Homes England,CAPITAL GRANTS TO RPs,Investment,BRIDGE-IT HOUSING UK TEAM LTD,27/07/2021,"15,444.00",S,None,Grants
"Ministry of Housing, Communities and Local Government",Homes England,CAPITAL GRANTS TO RPs,Investment,BRIDGE-IT HOUSING UK TEAM LTD,27/07/2021,"15,444.00",S,None,Grants
"Ministry of Housing, Communities and Local Government",Homes England,CAPITAL GRANTS TO RPs,Investment,ST RICHARD OF CHICHESTER CHRSTIAN CARE,01/07/2021,"2,508.00",M,None,Grants
"Ministry of Housing, Communities and Local Government",Homes England,CAPITAL GRANTS TO RPs,Investment,HELLENS RESIDENTIAL LTD,07/07/2021,"79,500.00",S,None,Grants
"Ministry of Housing, Communities and Local Government",Homes England,CAPITAL GRANTS TO RPs,Investment,BELIEVE HOUSING LIMITED,30/07/2021,"21,500.00",L,None,Grants
"Ministry of Housing, Communities and Local Government",Homes England,CAPITAL GRANTS TO RPs,Investment,DEVON AND CORNWALL HOUSING LIMITED,23/07/2021,"37,000.00",L,None,Grants
"Ministry of Housing, Communities and Local Government",Homes England,CAPITAL GRANTS TO RPs,Investment,LODDON HOMES LIMITED,07/07/2021,"128,250.00",S,None,Grants
"Ministry of Housing, Communities and Local Government",Homes England,CAPITAL GRANTS TO RPs,Investment,LODDON HOMES LIMITED,06/07/2021,"67,500.00",S,None,Grants
"Ministry of Housing, Communities and Local Government",Homes England,CAPITAL GRANTS TO RPs,Investment,LODDON HOMES LIMITED,07/07/2021,"67,500.00",S,None,Grants
"Ministry of Housing, Communities and Local Government",Homes England,CAPITAL GRANTS TO RPs,Investment,LODDON HOMES LIMITED,07/07/2021,"67,500.00",S,None,Grants
"Ministry of Housing, Communities and Local Government",Homes England,CAPITAL GRANTS TO RPs,Investment,LODDON HOMES LIMITED,06/07/2021,"60,750.00",S,None,Grants
"Ministry of Housing, Communities and Local Government",Homes England,CAPITAL GRANTS TO RPs,Investment,LODDON HOMES LIMITED,06/07/2021,"60,750.00",S,None,Grants
"Ministry of Housing, Communities and Local Government",Homes England,CAPITAL GRANTS TO RPs,Investment,SOVEREIGN HOUSING ASSOCIATION LTD,06/07/2021,"1,250.00",L,None,Grants
"Ministry of Housing, Communities and Local Government",Homes England,CAPITAL GRANTS TO RPs,Investment,KARBON HOMES,06/07/2021,"360,000.00",L,None,Grants
"Ministry of Housing, Communities and Local Government",Homes England,CAPITAL GRANTS TO RPs,Investment,KARBON HOMES,02/07/2021,"180,500.00",L,None,Grants
"Ministry of Housing, Communities and Local Government",Homes England,CAPITAL GRANTS TO RPs,Investment,KARBON HOMES,06/07/2021,"9,000.00",L,None,Grants
"Ministry of Housing, Communities and Local Government",Homes England,REVENUE GRANTS TO RPs,Investment,NOTTINGHAM CITY HOMES REGISTERED PROVIDER LIM,06/07/2021,821.00,L,None,Grants
"Ministry of Housing, Communities and Local Government",Homes England,REVENUE GRANTS TO RPs,Investment,NOTTINGHAM CITY HOMES REGISTERED PROVIDER LIM,06/07/2021,778.00,L,None,Grants
"Ministry of Housing, Communities and Local Government",Homes England,REVENUE GRANTS TO RPs,Investment,NOTTINGHAM CITY HOMES REGISTERED PROVIDER LIM,06/07/2021,769.00,L,None,Grants
"Ministry of Housing, Communities and Local Government",Homes England,REVENUE GRANTS TO RPs,Investment,NOTTINGHAM CITY HOMES REGISTERED PROVIDER LIM,06/07/2021,769.00,L,None,Grants
"Ministry of Housing, Communities and Local Government",Homes England,REVENUE GRANTS TO RPs,Investment,NOTTINGHAM CITY HOMES REGISTERED PROVIDER LIM,06/07/2021,769.00,L,None,Grants
"Ministry of Housing, Communities and Local Government",Homes England,REVENUE GRANTS TO RPs,Investment,NOTTINGHAM CITY HOMES REGISTERED PROVIDER LIM,06/07/2021,769.00,L,None,Grants
"Ministry of Housing, Communities and Local Government",Homes England,REVENUE GRANTS TO RPs,Investment,NOTTINGHAM CITY HOMES REGISTERED PROVIDER LIM,06/07/2021,308.00,L,None,Grants
"Ministry of Housing, Communities and Local Government",Homes England,CAPITAL GRANTS TO RPs,Investment,CLARION HOUSING ASSOCIATION LIMITED,13/07/2021,"10,000.00",L,None,Grants
"Ministry of Housing, Communities and Local Government",Homes England,CAPITAL GRANTS TO RPs,Investment,P3 HOUSING LTD,12/07/2021,"52,992.00",L,None,Grants
"Ministry of Housing, Communities and Local Government",Homes England,CAPITAL GRANTS TO RPs,Investment,P3 HOUSING LTD,13/07/2021,"16,513.00",L,None,Grants
"Ministry of Housing, Communities and Local Government",Homes England,CAPITAL GRANTS TO RPs,Investment,TORUS62 LIMITED,06/07/2021,"37,800.00",L,None,Grants
"Ministry of Housing, Communities and Local Government",Homes England,CAPITAL GRANTS TO RPs,Investment,TORUS62 LIMITED,30/07/2021,"9,000.00",L,None,Grants
"Ministry of Housing, Communities and Local Government",Homes England,CAPITAL GRANTS TO RPs,Investment,TORUS62 LIMITED,30/07/2021,"9,000.00",L,None,Grants
"Ministry of Housing, Communities and Local Government",Homes England,CAPITAL GRANTS TO RPs,Investment,TORUS62 LIMITED,30/07/2021,"9,000.00",L,None,Grants
"Ministry of Housing, Communities and Local Government",Homes England,CAPITAL GRANTS TO RPs,Investment,TORUS62 LIMITED,30/07/2021,"9,000.00",L,None,Grants
"Ministry of Housing, Communities and Local Government",Homes England,CAP GRNTS TO LOCAL AUTHORITIES,Investment,WEST SUFFOLK COUNCIL,07/07/2021,"6,000.00",G,None,Grants
"Ministry of Housing, Communities and Local Government",Homes England,CAP GRNTS TO LOCAL AUTHORITIES,Investment,BCP COUNCIL,06/07/2021,"4,313.00",G,None,Grants
"Ministry of Housing, Communities and Local Government",Homes England,CAP GRNTS TO LOCAL AUTHORITIES,Investment,BCP COUNCIL,05/07/2021,"3,780.00",G,None,Grants
"Ministry of Housing, Communities and Local Government",Homes England,CAP GRNTS TO LOCAL AUTHORITIES,Investment,BCP COUNCIL,07/07/2021,"1,409.00",G,None,Grants
"Ministry of Housing, Communities and Local Government",Homes England,CAP GRNTS TO LOCAL AUTHORITIES,Investment,BCP COUNCIL,07/07/2021,"1,409.00",G,None,Grants
"Ministry of Housing, Communities and Local Government",Homes England,CAP GRNTS TO LOCAL AUTHORITIES,Investment,BCP COUNCIL,05/07/2021,"1,091.00",G,None,Grants
"Ministry of Housing, Communities and Local Government",Homes England,CAP GRNTS TO LOCAL AUTHORITIES,Investment,BCP COUNCIL,05/07/2021,"1,091.00",G,None,Grants
"Ministry of Housing, Communities and Local Government",Homes England,CAP GRNTS TO LOCAL AUTHORITIES,Investment,EAST SUFFOLK COUNCIL,07/07/2021,"3,900.00",G,None,Grants
"Ministry of Housing, Communities and Local Government",Homes England,CAPITAL GRANTS TO RPs,Investment,CITIZEN HOUSING GROUP LTD,07/07/2021,"70,000.00",L,None,Grants
"Ministry of Housing, Communities and Local Government",Homes England,CAPITAL GRANTS TO RPs,Investment,CITIZEN HOUSING GROUP LTD,07/07/2021,"70,000.00",L,None,Grants
"Ministry of Housing, Communities and Local Government",Homes England,CAPITAL GRANTS TO RPs,Investment,CITIZEN HOUSING GROUP LTD,07/07/2021,"70,000.00",L,None,Grants
"Ministry of Housing, Communities and Local Government",Homes England,CAPITAL GRANTS TO RPs,Investment,CITIZEN HOUSING GROUP LTD,07/07/2021,"60,000.00",L,None,Grants
"Ministry of Housing, Communities and Local Government",Homes England,CAPITAL GRANTS TO RPs,Investment,CITIZEN HOUSING GROUP LTD,07/07/2021,"60,000.00",L,None,Grants
"Ministry of Housing, Communities and Local Government",Homes England,CAPITAL GRANTS TO RPs,Investment,CITIZEN HOUSING GROUP LTD,07/07/2021,"60,000.00",L,None,Grants
"Ministry of Housing, Communities and Local Government",Homes England,CAPITAL GRANTS TO RPs,Investment,CITIZEN HOUSING GROUP LTD,07/07/2021,"60,000.00",L,None,Grants
"Ministry of Housing, Communities and Local Government",Homes England,CAPITAL GRANTS TO RPs,Investment,CITIZEN HOUSING GROUP LTD,12/07/2021,"60,000.00",L,None,Grants
"Ministry of Housing, Communities and Local Government",Homes England,CAPITAL GRANTS TO RPs,Investment,CITIZEN HOUSING GROUP LTD,05/07/2021,"35,000.00",L,None,Grants
"Ministry of Housing, Communities and Local Government",Homes England,CAPITAL GRANTS TO RPs,Investment,CITIZEN HOUSING GROUP LTD,05/07/2021,"35,000.00",L,None,Grants
"Ministry of Housing, Communities and Local Government",Homes England,CAPITAL GRANTS TO RPs,Investment,CITIZEN HOUSING GROUP LTD,06/07/2021,"35,000.00",L,None,Grants
"Ministry of Housing, Communities and Local Government",Homes England,CAPITAL GRANTS TO RPs,Investment,CITIZEN HOUSING GROUP LTD,02/07/2021,"31,500.00",L,None,Grants
"Ministry of Housing, Communities and Local Government",Homes England,CAPITAL GRANTS TO RPs,Investment,CITIZEN HOUSING GROUP LTD,02/07/2021,"31,500.00",L,None,Grants
"Ministry of Housing, Communities and Local Government",Homes England,CAPITAL GRANTS TO RPs,Investment,CITIZEN HOUSING GROUP LTD,05/07/2021,"31,500.00",L,None,Grants
"Ministry of Housing, Communities and Local Government",Homes England,CAPITAL GRANTS TO RPs,Investment,CITIZEN HOUSING GROUP LTD,06/07/2021,"3,500.00",L,None,Grants
"Ministry of Housing, Communities and Local Government",Homes England,CAPITAL GRANTS TO RPs,Investment,CITIZEN HOUSING GROUP LTD,06/07/2021,"3,500.00",L,None,Grants
"Ministry of Housing, Communities and Local Government",Homes England,CAPITAL GRANTS TO RPs,Investment,CITIZEN HOUSING GROUP LTD,07/07/2021,"3,500.00",L,None,Grants
"Ministry of Housing, Communities and Local Government",Homes England,CAP GRNTS TO LOCAL AUTHORITIES,Investment,SUNDERLAND CITY COUNCIL,02/07/2021,"7,500.00",G,None,Grants
"Ministry of Housing, Communities and Local Government",Homes England,CAP GRNTS TO LOCAL AUTHORITIES,Investment,SUNDERLAND CITY COUNCIL,07/07/2021,"5,362.00",G,None,Grants
"Ministry of Housing, Communities and Local Government",Homes England,CAP GRNTS TO LOCAL AUTHORITIES,Investment,SUNDERLAND CITY COUNCIL,06/07/2021,"2,730.00",G,None,Grants
"Ministry of Housing, Communities and Local Government",Homes England,CAP GRNTS TO LOCAL AUTHORITIES,Investment,SUNDERLAND CITY COUNCIL,07/07/2021,893.00,G,None,Grants
"Ministry of Housing, Communities and Local Government",Homes England,CAP GRNTS TO LOCAL AUTHORITIES,Investment,SUNDERLAND CITY COUNCIL,07/07/2021,893.00,G,None,Grants
"Ministry of Housing, Communities and Local Government",Homes England,CAPITAL GRANTS TO RPs,Investment,DASH,06/07/2021,"29,801.00",S,None,Grants
"Ministry of Housing, Communities and Local Government",Homes England,CAP GRNTS TO LOCAL AUTHORITIES,Investment,NORTH NORFOLK DISTRICT COUNCIL,07/07/2021,"33,250.00",G,None,Grants
"Ministry of Housing, Communities and Local Government",Homes England,CAP GRNTS TO LOCAL AUTHORITIES,Investment,TELFORD & WREKIN COUNCIL,07/07/2021,"6,657.00",G,None,Grants
"Ministry of Housing, Communities and Local Government",Homes England,CAP GRNTS TO LOCAL AUTHORITIES,Investment,TELFORD & WREKIN COUNCIL,07/07/2021,"1,683.00",G,None,Grants
"Ministry of Housing, Communities and Local Government",Homes England,CAP GRNTS TO LOCAL AUTHORITIES,Investment,TELFORD & WREKIN COUNCIL,07/07/2021,"1,426.00",G,None,Grants
"Ministry of Housing, Communities and Local Government",Homes England,CAP GRNTS TO LOCAL AUTHORITIES,Investment,TELFORD & WREKIN COUNCIL,07/07/2021,"1,418.00",G,None,Grants
"Ministry of Housing, Communities and Local Government",Homes England,CAP GRNTS TO LOCAL AUTHORITIES,Investment,TELFORD & WREKIN COUNCIL,07/07/2021,"1,389.00",G,None,Grants
"Ministry of Housing, Communities and Local Government",Homes England,CAP GRNTS TO LOCAL AUTHORITIES,Investment,TELFORD & WREKIN COUNCIL,07/07/2021,"1,373.00",G,None,Grants
"Ministry of Housing, Communities and Local Government",Homes England,CAP GRNTS TO LOCAL AUTHORITIES,Investment,TELFORD & WREKIN COUNCIL,07/07/2021,"1,160.00",G,None,Grants
"Ministry of Housing, Communities and Local Government",Homes England,CAP GRNTS TO LOCAL AUTHORITIES,Investment,TELFORD & WREKIN COUNCIL,07/07/2021,"1,155.00",G,None,Grants
"Ministry of Housing, Communities and Local Government",Homes England,CAP GRNTS TO LOCAL AUTHORITIES,Investment,TELFORD & WREKIN COUNCIL,07/07/2021,"1,106.00",G,None,Grants
"Ministry of Housing, Communities and Local Government",Homes England,CAP GRNTS TO LOCAL AUTHORITIES,Investment,STRATFORD ON AVON DISTRICT COUNCIL,01/07/2021,"52,700.00",G,None,Grants
"Ministry of Housing, Communities and Local Government",Homes England,CAP GRNTS TO LOCAL AUTHORITIES,Investment,STRATFORD ON AVON DISTRICT COUNCIL,01/07/2021,"17,200.00",G,None,Grants
"Ministry of Housing, Communities and Local Government",Homes England,CAP GRNTS TO LOCAL AUTHORITIES,Investment,STRATFORD ON AVON DISTRICT COUNCIL,05/07/2021,"5,270.00",G,None,Grants
"Ministry of Housing, Communities and Local Government",Homes England,CAP GRNTS TO LOCAL AUTHORITIES,Investment,STRATFORD ON AVON DISTRICT COUNCIL,05/07/2021,"1,720.00",G,None,Grants
"Ministry of Housing, Communities and Local Government",Homes England,CAP GRNTS TO LOCAL AUTHORITIES,Investment,BATH AND NORTH EAST SOMERSET COUNCIL,05/07/2021,"158,250.00",G,None,Grants
"Ministry of Housing, Communities and Local Government",Homes England,CAP GRNTS TO LOCAL AUTHORITIES,Investment,BATH AND NORTH EAST SOMERSET COUNCIL,02/07/2021,"142,425.00",G,None,Grants
"Ministry of Housing, Communities and Local Government",Homes England,CAP GRNTS TO LOCAL AUTHORITIES,Investment,BATH AND NORTH EAST SOMERSET COUNCIL,07/07/2021,"15,825.00",G,None,Grants
"Ministry of Housing, Communities and Local Government",Homes England,CAP GRNTS TO LOCAL AUTHORITIES,Investment,HASTINGS BOROUGH COUNCIL,07/07/2021,"111,300.00",G,None,Grants
"Ministry of Housing, Communities and Local Government",Homes England,CAP GRNTS TO LOCAL AUTHORITIES,Investment,HASTINGS BOROUGH COUNCIL,07/07/2021,695.00,G,None,Grants
"Ministry of Housing, Communities and Local Government",Homes England,CAP GRNTS TO LOCAL AUTHORITIES,Investment,TUNBRIDGE WELLS BOROUGH COUNCIL,06/07/2021,"10,250.00",G,None,Grants
"Ministry of Housing, Communities and Local Government",Homes England,CAPITAL GRANTS TO RPs,Investment,TORVISTA HOMES LIMITED,06/07/2021,"3,500.00",L,None,Grants
"Ministry of Housing, Communities and Local Government",Homes England,FURNITURE & EQUIPMENT-PURCHASE,Development,OFFICE TEAM GROUP - IN ADMINISTRATION,15/07/2021,693.60,L,56101700,Office Furniture
"Ministry of Housing, Communities and Local Government",Homes England,RENT PAYABLE,Development,CROWN ESTATE COMMISSIONERS,01/07/2021,315.00,L,80131500,Lease and rental of property or building
"Ministry of Housing, Communities and Local Government",Homes England,ESTATE GENERAL MAINTENANCE,Development,IDVERDE LIMITED,22/07/2021,505.64,L,72101500,Building maintenance and repair services
"Ministry of Housing, Communities and Local Government",Homes England,ESTATE GENERAL MAINTENANCE,Development,IDVERDE LIMITED,22/07/2021,505.64,L,72101500,Building maintenance and repair services
"Ministry of Housing, Communities and Local Government",Homes England,ESTATE GENERAL MAINTENANCE,Development,IDVERDE LIMITED,22/07/2021,505.64,L,72101500,Building maintenance and repair services
"Ministry of Housing, Communities and Local Government",Homes England,ESTATE GENERAL MAINTENANCE,Development,LOWTHER FORESTRY GROUP,27/07/2021,"1,682.69",S,72101500,Building maintenance and repair services
"Ministry of Housing, Communities and Local Government",Homes England,LANDSCAPE MAINT-BUILT ESTATE,Development,LOWTHER FORESTRY GROUP,09/07/2021,"1,345.25",S,72102900,Facility maintenance and repair services
"Ministry of Housing, Communities and Local Government",Homes England,ESTATE GENERAL MAINTENANCE,Development,LOWTHER FORESTRY GROUP,22/07/2021,609.85,S,72101500,Building maintenance and repair services
"Ministry of Housing, Communities and Local Government",Homes England,LANDSCAPE MAINT-BUILT ESTATE,MPP,LOWTHER FORESTRY GROUP,14/07/2021,561.16,S,72102900,Facility maintenance and repair services
"Ministry of Housing, Communities and Local Government",Homes England,LANDSCAPE MAINT-BUILT ESTATE,MPP,LOWTHER FORESTRY GROUP,15/07/2021,561.07,S,72102900,Facility maintenance and repair services
"Ministry of Housing, Communities and Local Government",Homes England,LANDSCAPE MAINT-BUILT ESTATE,MPP,LOWTHER FORESTRY GROUP,15/07/2021,561.07,S,72102900,Facility maintenance and repair services
"Ministry of Housing, Communities and Local Government",Homes England,ESTATE GENERAL MAINTENANCE,MPP,LOWTHER FORESTRY GROUP,20/07/2021,469.50,S,72101500,Building maintenance and repair services
"Ministry of Housing, Communities and Local Government",Homes England,ESTATE GENERAL MAINTENANCE,Development,LOWTHER FORESTRY GROUP,20/07/2021,375.00,S,72101500,Building maintenance and repair services
"Ministry of Housing, Communities and Local Government",Homes England,ESTATE GENERAL MAINTENANCE,Development,STOCKTON ON TEES BOROUGH COUNCIL,12/07/2021,"1,294.80",G,72101500,Building maintenance and repair services
"Ministry of Housing, Communities and Local Government",Homes England,IRON MOUNTAIN-STORAGE,Corporate Resources,IRON MOUNTAIN (UK) LTD,09/07/2021,"6,621.20",L,78131800,Specialized warehousing and storage
"Ministry of Housing, Communities and Local Government",Homes England,IRON MOUNTAIN-STORAGE,Corporate Resources,IRON MOUNTAIN (UK) LTD,26/07/2021,"4,408.50",L,78131800,Specialized warehousing and storage
"Ministry of Housing, Communities and Local Government",Homes England,IRON MOUNTAIN-STORAGE,Corporate Resources,IRON MOUNTAIN (UK) LTD,26/07/2021,"2,387.81",L,78131800,Specialized warehousing and storage
"Ministry of Housing, Communities and Local Government",Homes England,IRON MOUNTAIN-STORAGE,Corporate Resources,IRON MOUNTAIN (UK) LTD,26/07/2021,"1,471.32",L,78131800,Specialized warehousing and storage
"Ministry of Housing, Communities and Local Government",Homes England,DRAINS & SEWERS,Development,XYLEM WATER SOULTIONS UK LTD,20/07/2021,"10,320.58",L,72101500,Building maintenance and repair services
"Ministry of Housing, Communities and Local Government",Homes England,DRAINS & SEWERS,Development,XYLEM WATER SOULTIONS UK LTD,28/07/2021,810.00,L,72101500,Building maintenance and repair services
"Ministry of Housing, Communities and Local Government",Homes England,DRAINS & SEWERS,Development,XYLEM WATER SOULTIONS UK LTD,28/07/2021,550.80,L,72101500,Building maintenance and repair services
"Ministry of Housing, Communities and Local Government",Homes England,DRAINS & SEWERS,Development,XYLEM WATER SOULTIONS UK LTD,28/07/2021,522.00,L,72101500,Building maintenance and repair services
"Ministry of Housing, Communities and Local Government",Homes England,DRAINS & SEWERS,Development,XYLEM WATER SOULTIONS UK LTD,28/07/2021,464.40,L,72101500,Building maintenance and repair services
"Ministry of Housing, Communities and Local Government",Homes England,DRAINS & SEWERS,Development,XYLEM WATER SOULTIONS UK LTD,28/07/2021,378.00,L,72101500,Building maintenance and repair services
"Ministry of Housing, Communities and Local Government",Homes England,POSTAGE/COURIERS,Development,MK LONDON LINK,05/07/2021,"2,680.15",S,78102200,Postal and small parcel and courier services
"Ministry of Housing, Communities and Local Government",Homes England,POSTAGE/COURIERS,Development,MK LONDON LINK,05/07/2021,694.13,S,78102200,Postal and small parcel and courier services
"Ministry of Housing, Communities and Local Government",Homes England,POSTAGE/COURIERS,Development,MK LONDON LINK,05/07/2021,636.00,S,78102200,Postal and small parcel and courier services
"Ministry of Housing, Communities and Local Government",Homes England,PACKAGE MAINTENANCE & SUBSCRIP,Chief Executive Office,ESRI (UK) LTD,01/07/2021,"355,200.00",L,43231500,Business function specific software
"Ministry of Housing, Communities and Local Government",Homes England,CAP GRNTS TO LOCAL AUTHORITIES,Investment,SHEFFIELD CITY COUNCIL,27/07/2021,"412,193.47",G,None,Grants
"Ministry of Housing, Communities and Local Government",Homes England,CAP GRNTS TO LOCAL AUTHORITIES,Investment,CHESHIRE WEST & CHESTER COUNCIL,29/07/2021,"100,000.00",G,None,Grants
"Ministry of Housing, Communities and Local Government",Homes England,CAP GRNTS TO LOCAL AUTHORITIES,Investment,NORTH EAST LINCOLNSHIRE COUNCIL,21/07/2021,"311,133.33",G,None,Grants
"Ministry of Housing, Communities and Local Government",Homes England,CAP GRNTS TO LOCAL AUTHORITIES,Investment,SUNDERLAND CITY COUNCIL,27/07/2021,"488,933.33",G,None,Grants
"Ministry of Housing, Communities and Local Government",Homes England,CAP GRNTS TO LOCAL AUTHORITIES,Investment,CORNWALL COUNCIL,26/07/2021,"11,647.46",G,None,Grants
"Ministry of Housing, Communities and Local Government",Homes England,CAP GRNTS TO LOCAL AUTHORITIES,Investment,CUMBRIA COUNTY COUNCIL,27/07/2021,"557,180.50",G,None,Grants
"Ministry of Housing, Communities and Local Government",Homes England,CAP GRNTS TO LOCAL AUTHORITIES,Investment,DEVON COUNTY COUNCIL,22/07/2021,"308,454.16",G,None,Grants
"Ministry of Housing, Communities and Local Government",Homes England,CAP GRNTS TO LOCAL AUTHORITIES,Investment,ESSEX COUNTY COUNCIL,26/07/2021,"1,765,368.33",G,None,Grants
"Ministry of Housing, Communities and Local Government",Homes England,CAP GRNTS TO LOCAL AUTHORITIES,Investment,HAMPSHIRE COUNTY COUNCIL,28/07/2021,"2,091,321.10",G,None,Grants
"Ministry of Housing, Communities and Local Government",Homes England,ENGINEERING FEES,Development,HAMPSHIRE COUNTY COUNCIL,30/07/2021,720.00,G,81101500,Civil Engineering
"Ministry of Housing, Communities and Local Government",Homes England,CAP GRNTS TO LOCAL AUTHORITIES,Investment,CAMBRIDGE CITY COUNCIL,26/07/2021,"629,071.26",G,None,Grants
"Ministry of Housing, Communities and Local Government",Homes England,CAP GRNTS TO LOCAL AUTHORITIES,Investment,MANCHESTER CITY COUNCIL,01/07/2021,"65,075.00",G,None,Grants
"Ministry of Housing, Communities and Local Government",Homes England,CAP GRNTS TO LOCAL AUTHORITIES,Investment,MANCHESTER CITY COUNCIL,07/07/2021,"65,075.00",G,None,Grants
"Ministry of Housing, Communities and Local Government",Homes England,CAP GRNTS TO LOCAL AUTHORITIES,Investment,MANCHESTER CITY COUNCIL,07/07/2021,"56,763.00",G,None,Grants
"Ministry of Housing, Communities and Local Government",Homes England,CAP GRNTS TO LOCAL AUTHORITIES,Investment,MANCHESTER CITY COUNCIL,07/07/2021,"55,746.00",G,None,Grants
"Ministry of Housing, Communities and Local Government",Homes England,CAP GRNTS TO LOCAL AUTHORITIES,Investment,MANCHESTER CITY COUNCIL,07/07/2021,"55,580.00",G,None,Grants
"Ministry of Housing, Communities and Local Government",Homes England,CAP GRNTS TO LOCAL AUTHORITIES,Investment,MANCHESTER CITY COUNCIL,27/07/2021,"34,250.00",G,None,Grants
"Ministry of Housing, Communities and Local Government",Homes England,CAP GRNTS TO LOCAL AUTHORITIES,Investment,MANCHESTER CITY COUNCIL,26/07/2021,"30,825.00",G,None,Grants
"Ministry of Housing, Communities and Local Government",Homes England,CAP GRNTS TO LOCAL AUTHORITIES,Investment,WIGAN COUNCIL,06/07/2021,"2,087.00",G,None,Grants
"Ministry of Housing, Communities and Local Government",Homes England,CAP GRNTS TO LOCAL AUTHORITIES,Investment,WIGAN COUNCIL,06/07/2021,"1,550.00",G,None,Grants
"Ministry of Housing, Communities and Local Government",Homes England,CAP GRNTS TO LOCAL AUTHORITIES,Investment,ROTHERHAM METROPOLITAN BOROUGH COUNCIL,02/07/2021,"150,000.00",G,None,Grants
"Ministry of Housing, Communities and Local Government",Homes England,CAP GRNTS TO LOCAL AUTHORITIES,Investment,ROTHERHAM METROPOLITAN BOROUGH COUNCIL,02/07/2021,"150,000.00",G,None,Grants
"Ministry of Housing, Communities and Local Government",Homes England,CAP GRNTS TO LOCAL AUTHORITIES,Investment,GATESHEAD METROPOLITAN BOROUGH COUNCIL,01/07/2021,"1,884.00",G,None,Grants
"Ministry of Housing, Communities and Local Government",Homes England,CAP GRNTS TO LOCAL AUTHORITIES,Investment,GATESHEAD METROPOLITAN BOROUGH COUNCIL,01/07/2021,"1,166.00",G,None,Grants
"Ministry of Housing, Communities and Local Government",Homes England,CAP GRNTS TO LOCAL AUTHORITIES,Investment,GATESHEAD METROPOLITAN BOROUGH COUNCIL,01/07/2021,"1,166.00",G,None,Grants
"Ministry of Housing, Communities and Local Government",Homes England,CAP GRNTS TO LOCAL AUTHORITIES,Investment,GATESHEAD METROPOLITAN BOROUGH COUNCIL,01/07/2021,"1,166.00",G,None,Grants
"Ministry of Housing, Communities and Local Government",Homes England,CAP GRNTS TO LOCAL AUTHORITIES,Investment,GATESHEAD METROPOLITAN BOROUGH COUNCIL,01/07/2021,"1,166.00",G,None,Grants
"Ministry of Housing, Communities and Local Government",Homes England,CAP GRNTS TO LOCAL AUTHORITIES,Investment,GATESHEAD METROPOLITAN BOROUGH COUNCIL,01/07/2021,"1,166.00",G,None,Grants
"Ministry of Housing, Communities and Local Government",Homes England,CAP GRNTS TO LOCAL AUTHORITIES,Investment,GATESHEAD METROPOLITAN BOROUGH COUNCIL,01/07/2021,"1,166.00",G,None,Grants
"Ministry of Housing, Communities and Local Government",Homes England,CAP GRNTS TO LOCAL AUTHORITIES,Investment,GATESHEAD METROPOLITAN BOROUGH COUNCIL,01/07/2021,"1,166.00",G,None,Grants
"Ministry of Housing, Communities and Local Government",Homes England,CAP GRNTS TO LOCAL AUTHORITIES,Investment,GATESHEAD METROPOLITAN BOROUGH COUNCIL,01/07/2021,"1,166.00",G,None,Grants
"Ministry of Housing, Communities and Local Government",Homes England,CAP GRNTS TO LOCAL AUTHORITIES,Investment,GATESHEAD METROPOLITAN BOROUGH COUNCIL,01/07/2021,"1,166.00",G,None,Grants
"Ministry of Housing, Communities and Local Government",Homes England,CAP GRNTS TO LOCAL AUTHORITIES,Investment,GATESHEAD METROPOLITAN BOROUGH COUNCIL,01/07/2021,"1,166.00",G,None,Grants
"Ministry of Housing, Communities and Local Government",Homes England,CAP GRNTS TO LOCAL AUTHORITIES,Investment,GATESHEAD METROPOLITAN BOROUGH COUNCIL,05/07/2021,"1,166.00",G,None,Grants
"Ministry of Housing, Communities and Local Government",Homes England,CAP GRNTS TO LOCAL AUTHORITIES,Investment,GATESHEAD METROPOLITAN BOROUGH COUNCIL,05/07/2021,"1,166.00",G,None,Grants
"Ministry of Housing, Communities and Local Government",Homes England,CAP GRNTS TO LOCAL AUTHORITIES,Investment,GATESHEAD METROPOLITAN BOROUGH COUNCIL,05/07/2021,"1,166.00",G,None,Grants
"Ministry of Housing, Communities and Local Government",Homes England,CAP GRNTS TO LOCAL AUTHORITIES,Investment,GATESHEAD METROPOLITAN BOROUGH COUNCIL,05/07/2021,"1,166.00",G,None,Grants
"Ministry of Housing, Communities and Local Government",Homes England,CAP GRNTS TO LOCAL AUTHORITIES,Investment,NEWCASTLE CITY COUNCIL,07/07/2021,"347,000.00",G,None,Grants
"Ministry of Housing, Communities and Local Government",Homes England,CAP GRNTS TO LOCAL AUTHORITIES,Investment,SOUTH TYNESIDE COUNCIL,05/07/2021,"1,625.00",G,None,Grants
"Ministry of Housing, Communities and Local Government",Homes England,CAP GRNTS TO LOCAL AUTHORITIES,Investment,SOUTH TYNESIDE COUNCIL,05/07/2021,"1,625.00",G,None,Grants
"Ministry of Housing, Communities and Local Government",Homes England,CAP GRNTS TO LOCAL AUTHORITIES,Investment,SOUTH TYNESIDE COUNCIL,05/07/2021,"1,625.00",G,None,Grants
"Ministry of Housing, Communities and Local Government",Homes England,CAP GRNTS TO LOCAL AUTHORITIES,Investment,SOUTH TYNESIDE COUNCIL,07/07/2021,"1,501.00",G,None,Grants
"Ministry of Housing, Communities and Local Government",Homes England,CAP GRNTS TO LOCAL AUTHORITIES,Investment,SOLIHULL METROPOLITAN BOROUGH COUNCIL,07/07/2021,"2,167.00",G,None,Grants
"Ministry of Housing, Communities and Local Government",Homes England,CAP GRNTS TO LOCAL AUTHORITIES,Investment,THE COUNCIL OF THE BOROUGH OF KIRKLEES,06/07/2021,"2,250.00",G,None,Grants
"Ministry of Housing, Communities and Local Government",Homes England,CAP GRNTS TO LOCAL AUTHORITIES,Investment,LEEDS CITY COUNCIL,06/07/2021,"25,000.00",G,None,Grants
"Ministry of Housing, Communities and Local Government",Homes England,CAP GRNTS TO LOCAL AUTHORITIES,Investment,LEEDS CITY COUNCIL,06/07/2021,"2,500.00",G,None,Grants
"Ministry of Housing, Communities and Local Government",Homes England,CAP GRNTS TO LOCAL AUTHORITIES,Investment,LEEDS CITY COUNCIL,06/07/2021,"2,500.00",G,None,Grants
"Ministry of Housing, Communities and Local Government",Homes England,CAP GRNTS TO LOCAL AUTHORITIES,Investment,LEEDS CITY COUNCIL,06/07/2021,"2,500.00",G,None,Grants
"Ministry of Housing, Communities and Local Government",Homes England,CAP GRNTS TO LOCAL AUTHORITIES,Investment,MIDDLEBROUGH COUNCIL,27/07/2021,"4,400.00",G,None,Grants
"Ministry of Housing, Communities and Local Government",Homes England,CAP GRNTS TO LOCAL AUTHORITIES,Investment,DARLINGTON BOROUGH COUNCIL,07/07/2021,"2,275.00",G,None,Grants
"Ministry of Housing, Communities and Local Government",Homes England,CAP GRNTS TO LOCAL AUTHORITIES,Investment,THE COUNTY COUNCIL OF DURHAM,06/07/2021,"18,750.00",G,None,Grants
"Ministry of Housing, Communities and Local Government",Homes England,CAP GRNTS TO LOCAL AUTHORITIES,Investment,NORTHUMBERLAND COUNTY COUNCIL,06/07/2021,"22,500.00",G,None,Grants
"Ministry of Housing, Communities and Local Government",Homes England,CAP GRNTS TO LOCAL AUTHORITIES,Investment,NORTHUMBERLAND COUNTY COUNCIL,16/07/2021,"14,250.00",G,None,Grants
"Ministry of Housing, Communities and Local Government",Homes England,CAP GRNTS TO LOCAL AUTHORITIES,Investment,NORTHUMBERLAND COUNTY COUNCIL,02/07/2021,"12,000.00",G,None,Grants
"Ministry of Housing, Communities and Local Government",Homes England,CAP GRNTS TO LOCAL AUTHORITIES,Investment,NORTHUMBERLAND COUNTY COUNCIL,29/07/2021,"12,000.00",G,None,Grants
"Ministry of Housing, Communities and Local Government",Homes England,CAP GRNTS TO LOCAL AUTHORITIES,Investment,NORTHUMBERLAND COUNTY COUNCIL,26/07/2021,"10,500.00",G,None,Grants
"Ministry of Housing, Communities and Local Government",Homes England,CAP GRNTS TO LOCAL AUTHORITIES,Investment,NORTHUMBERLAND COUNTY COUNCIL,07/07/2021,"7,500.00",G,None,Grants
"Ministry of Housing, Communities and Local Government",Homes England,CAP GRNTS TO LOCAL AUTHORITIES,Investment,NORTHUMBERLAND COUNTY COUNCIL,23/07/2021,"7,500.00",G,None,Grants
"Ministry of Housing, Communities and Local Government",Homes England,CAP GRNTS TO LOCAL AUTHORITIES,Investment,NORTHUMBERLAND COUNTY COUNCIL,28/07/2021,"7,500.00",G,None,Grants
"Ministry of Housing, Communities and Local Government",Homes England,CAP GRNTS TO LOCAL AUTHORITIES,Investment,NORTHUMBERLAND COUNTY COUNCIL,26/07/2021,"4,375.00",G,None,Grants
"Ministry of Housing, Communities and Local Government",Homes England,CAP GRNTS TO LOCAL AUTHORITIES,Investment,KINGSTON UPON HULL CITY COUNCIL,06/07/2021,"7,500.00",G,None,Grants
"Ministry of Housing, Communities and Local Government",Homes England,CAP GRNTS TO LOCAL AUTHORITIES,Investment,KINGSTON UPON HULL CITY COUNCIL,06/07/2021,"7,500.00",G,None,Grants
"Ministry of Housing, Communities and Local Government",Homes England,CAP GRNTS TO LOCAL AUTHORITIES,Investment,EAST RIDING OF YORKSHIRE COUNCIL,05/07/2021,"14,000.00",G,None,Grants
"Ministry of Housing, Communities and Local Government",Homes England,CAP GRNTS TO LOCAL AUTHORITIES,Investment,EAST RIDING OF YORKSHIRE COUNCIL,27/07/2021,"14,000.00",G,None,Grants
"Ministry of Housing, Communities and Local Government",Homes England,CAP GRNTS TO LOCAL AUTHORITIES,Investment,EAST RIDING OF YORKSHIRE COUNCIL,05/07/2021,"12,250.00",G,None,Grants
"Ministry of Housing, Communities and Local Government",Homes England,CAP GRNTS TO LOCAL AUTHORITIES,Investment,EAST RIDING OF YORKSHIRE COUNCIL,12/07/2021,"12,250.00",G,None,Grants
"Ministry of Housing, Communities and Local Government",Homes England,CAP GRNTS TO LOCAL AUTHORITIES,Investment,CITY OF YORK COUNCIL,07/07/2021,"14,875.00",G,None,Grants
"Ministry of Housing, Communities and Local Government",Homes England,CAP GRNTS TO LOCAL AUTHORITIES,Investment,CITY OF YORK COUNCIL,07/07/2021,"10,625.00",G,None,Grants
"Ministry of Housing, Communities and Local Government",Homes England,CAP GRNTS TO LOCAL AUTHORITIES,Investment,CITY OF YORK COUNCIL,08/07/2021,"10,625.00",G,None,Grants
"Ministry of Housing, Communities and Local Government",Homes England,CAP GRNTS TO LOCAL AUTHORITIES,Investment,NOTTINGHAM CITY COUNCIL,05/07/2021,"2,100.00",G,None,Grants
"Ministry of Housing, Communities and Local Government",Homes England,CAP GRNTS TO LOCAL AUTHORITIES,Investment,NOTTINGHAM CITY COUNCIL,05/07/2021,"2,100.00",G,None,Grants
"Ministry of Housing, Communities and Local Government",Homes England,CAP GRNTS TO LOCAL AUTHORITIES,Investment,NOTTINGHAM CITY COUNCIL,05/07/2021,"2,100.00",G,None,Grants
"Ministry of Housing, Communities and Local Government",Homes England,CAP GRNTS TO LOCAL AUTHORITIES,Investment,NOTTINGHAM CITY COUNCIL,07/07/2021,"1,719.00",G,None,Grants
"Ministry of Housing, Communities and Local Government",Homes England,CAP GRNTS TO LOCAL AUTHORITIES,Investment,NOTTINGHAM CITY COUNCIL,07/07/2021,"1,719.00",G,None,Grants
"Ministry of Housing, Communities and Local Government",Homes England,CAP GRNTS TO LOCAL AUTHORITIES,Investment,NOTTINGHAM CITY COUNCIL,07/07/2021,"1,719.00",G,None,Grants
"Ministry of Housing, Communities and Local Government",Homes England,CAP GRNTS TO LOCAL AUTHORITIES,Investment,NOTTINGHAM CITY COUNCIL,07/07/2021,"1,719.00",G,None,Grants
"Ministry of Housing, Communities and Local Government",Homes England,CAP GRNTS TO LOCAL AUTHORITIES,Investment,NOTTINGHAM CITY COUNCIL,07/07/2021,"1,719.00",G,None,Grants
"Ministry of Housing, Communities and Local Government",Homes England,CAP GRNTS TO LOCAL AUTHORITIES,Investment,NOTTINGHAM CITY COUNCIL,07/07/2021,"1,124.00",G,None,Grants
"Ministry of Housing, Communities and Local Government",Homes England,CAP GRNTS TO LOCAL AUTHORITIES,Investment,NOTTINGHAM CITY COUNCIL,07/07/2021,"1,124.00",G,None,Grants
"Ministry of Housing, Communities and Local Government",Homes England,CAP GRNTS TO LOCAL AUTHORITIES,Investment,NOTTINGHAM CITY COUNCIL,07/07/2021,"1,124.00",G,None,Grants
"Ministry of Housing, Communities and Local Government",Homes England,CAP GRNTS TO LOCAL AUTHORITIES,Investment,SHROPSHIRE COUNCIL,28/07/2021,"2,406,519.27",G,None,Grants
"Ministry of Housing, Communities and Local Government",Homes England,CAP GRNTS TO LOCAL AUTHORITIES,Investment,SHROPSHIRE COUNCIL,28/07/2021,"136,677.02",G,None,Grants
"Ministry of Housing, Communities and Local Government",Homes England,CAP GRNTS TO LOCAL AUTHORITIES,Investment,SHROPSHIRE COUNCIL,28/07/2021,"104,015.94",G,None,Grants
"Ministry of Housing, Communities and Local Government",Homes England,CAP GRNTS TO LOCAL AUTHORITIES,Investment,CORNWALL COUNCIL,28/07/2021,"230,000.00",G,None,Grants
"Ministry of Housing, Communities and Local Government",Homes England,CAP GRNTS TO LOCAL AUTHORITIES,Investment,CORNWALL COUNCIL,06/07/2021,"28,750.00",G,None,Grants
"Ministry of Housing, Communities and Local Government",Homes England,CAP GRNTS TO LOCAL AUTHORITIES,Investment,CORNWALL COUNCIL,06/07/2021,"28,750.00",G,None,Grants
"Ministry of Housing, Communities and Local Government",Homes England,CAP GRNTS TO LOCAL AUTHORITIES,Investment,CORNWALL COUNCIL,06/07/2021,"28,750.00",G,None,Grants
"Ministry of Housing, Communities and Local Government",Homes England,CAP GRNTS TO LOCAL AUTHORITIES,Investment,CORNWALL COUNCIL,06/07/2021,"28,750.00",G,None,Grants
"Ministry of Housing, Communities and Local Government",Homes England,CAP GRNTS TO LOCAL AUTHORITIES,Investment,CORNWALL COUNCIL,05/07/2021,"25,875.00",G,None,Grants
"Ministry of Housing, Communities and Local Government",Homes England,CAP GRNTS TO LOCAL AUTHORITIES,Investment,CORNWALL COUNCIL,05/07/2021,"25,875.00",G,None,Grants
"Ministry of Housing, Communities and Local Government",Homes England,CAP GRNTS TO LOCAL AUTHORITIES,Investment,CORNWALL COUNCIL,05/07/2021,"25,875.00",G,None,Grants
"Ministry of Housing, Communities and Local Government",Homes England,CAP GRNTS TO LOCAL AUTHORITIES,Investment,CORNWALL COUNCIL,05/07/2021,"25,875.00",G,None,Grants
"Ministry of Housing, Communities and Local Government",Homes England,CAP GRNTS TO LOCAL AUTHORITIES,Investment,CORNWALL COUNCIL,07/07/2021,"10,800.00",G,None,Grants
"Ministry of Housing, Communities and Local Government",Homes England,CAP GRNTS TO LOCAL AUTHORITIES,Investment,SWINDON BOROUGH COUNCIL,07/07/2021,"65,000.00",G,None,Grants
"Ministry of Housing, Communities and Local Government",Homes England,CAP GRNTS TO LOCAL AUTHORITIES,Investment,SWINDON BOROUGH COUNCIL,06/07/2021,"32,500.00",G,None,Grants
"Ministry of Housing, Communities and Local Government",Homes England,CAP GRNTS TO LOCAL AUTHORITIES,Investment,SWINDON BOROUGH COUNCIL,05/07/2021,"29,250.00",G,None,Grants
"Ministry of Housing, Communities and Local Government",Homes England,CAP GRNTS TO LOCAL AUTHORITIES,Investment,SWINDON BOROUGH COUNCIL,07/07/2021,"3,250.00",G,None,Grants
"Ministry of Housing, Communities and Local Government",Homes England,CAP GRNTS TO LOCAL AUTHORITIES,Investment,LUTON BOROUGH COUNCIL,29/07/2021,"36,450.00",G,None,Grants
"Ministry of Housing, Communities and Local Government",Homes England,CAP GRNTS TO LOCAL AUTHORITIES,Investment,CENTRAL BEDFORDSHIRE COUNCIL,06/07/2021,"1,750.00",G,None,Grants
"Ministry of Housing, Communities and Local Government",Homes England,CAP GRNTS TO LOCAL AUTHORITIES,Investment,CENTRAL BEDFORDSHIRE COUNCIL,06/07/2021,"1,750.00",G,None,Grants
"Ministry of Housing, Communities and Local Government",Homes England,CAP GRNTS TO LOCAL AUTHORITIES,Investment,SOUTHEND-ON-SEA BOROUGH COUNCIL,07/07/2021,"77,140.00",G,None,Grants
"Ministry of Housing, Communities and Local Government",Homes England,CAP GRNTS TO LOCAL AUTHORITIES,Investment,SOUTHEND-ON-SEA BOROUGH COUNCIL,05/07/2021,"40,600.00",G,None,Grants
"Ministry of Housing, Communities and Local Government",Homes England,CAP GRNTS TO LOCAL AUTHORITIES,Investment,SOUTHEND-ON-SEA BOROUGH COUNCIL,05/07/2021,"40,600.00",G,None,Grants
"Ministry of Housing, Communities and Local Government",Homes England,CAP GRNTS TO LOCAL AUTHORITIES,Investment,SOUTHEND-ON-SEA BOROUGH COUNCIL,05/07/2021,"40,600.00",G,None,Grants
"Ministry of Housing, Communities and Local Government",Homes England,CAP GRNTS TO LOCAL AUTHORITIES,Investment,SOUTHEND-ON-SEA BOROUGH COUNCIL,06/07/2021,"40,600.00",G,None,Grants
"Ministry of Housing, Communities and Local Government",Homes England,CAP GRNTS TO LOCAL AUTHORITIES,Investment,SOUTHEND-ON-SEA BOROUGH COUNCIL,02/07/2021,"36,540.00",G,None,Grants
"Ministry of Housing, Communities and Local Government",Homes England,CAP GRNTS TO LOCAL AUTHORITIES,Investment,SOUTHEND-ON-SEA BOROUGH COUNCIL,02/07/2021,"36,540.00",G,None,Grants
"Ministry of Housing, Communities and Local Government",Homes England,CAP GRNTS TO LOCAL AUTHORITIES,Investment,SOUTHEND-ON-SEA BOROUGH COUNCIL,02/07/2021,"36,540.00",G,None,Grants
"Ministry of Housing, Communities and Local Government",Homes England,CAP GRNTS TO LOCAL AUTHORITIES,Investment,SOUTHEND-ON-SEA BOROUGH COUNCIL,05/07/2021,"36,540.00",G,None,Grants
"Ministry of Housing, Communities and Local Government",Homes England,CAP GRNTS TO LOCAL AUTHORITIES,Investment,SOUTHEND-ON-SEA BOROUGH COUNCIL,06/07/2021,"4,060.00",G,None,Grants
"Ministry of Housing, Communities and Local Government",Homes England,CAP GRNTS TO LOCAL AUTHORITIES,Investment,SOUTHEND-ON-SEA BOROUGH COUNCIL,06/07/2021,"4,060.00",G,None,Grants
"Ministry of Housing, Communities and Local Government",Homes England,CAP GRNTS TO LOCAL AUTHORITIES,Investment,SOUTHEND-ON-SEA BOROUGH COUNCIL,07/07/2021,"4,060.00",G,None,Grants
"Ministry of Housing, Communities and Local Government",Homes England,CAP GRNTS TO LOCAL AUTHORITIES,Investment,MILTON KEYNES COUNCIL,05/07/2021,"19,703.00",G,None,Grants
"Ministry of Housing, Communities and Local Government",Homes England,CAP GRNTS TO LOCAL AUTHORITIES,Investment,MILTON KEYNES COUNCIL,05/07/2021,"5,360.00",G,None,Grants
"Ministry of Housing, Communities and Local Government",Homes England,CAP GRNTS TO LOCAL AUTHORITIES,Investment,MILTON KEYNES COUNCIL,05/07/2021,"5,360.00",G,None,Grants
"Ministry of Housing, Communities and Local Government",Homes England,CAP GRNTS TO LOCAL AUTHORITIES,Investment,MILTON KEYNES COUNCIL,05/07/2021,"3,152.00",G,None,Grants
"Ministry of Housing, Communities and Local Government",Homes England,CAP GRNTS TO LOCAL AUTHORITIES,Investment,MILTON KEYNES COUNCIL,05/07/2021,"3,152.00",G,None,Grants
"Ministry of Housing, Communities and Local Government",Homes England,CAP GRNTS TO LOCAL AUTHORITIES,Investment,MILTON KEYNES COUNCIL,05/07/2021,"3,152.00",G,None,Grants
"Ministry of Housing, Communities and Local Government",Homes England,CAP GRNTS TO LOCAL AUTHORITIES,Investment,MILTON KEYNES COUNCIL,05/07/2021,"3,151.00",G,None,Grants
"Ministry of Housing, Communities and Local Government",Homes England,CAP GRNTS TO LOCAL AUTHORITIES,Investment,MILTON KEYNES COUNCIL,05/07/2021,"1,812.00",G,None,Grants
"Ministry of Housing, Communities and Local Government",Homes England,CAP GRNTS TO LOCAL AUTHORITIES,Investment,MILTON KEYNES COUNCIL,05/07/2021,"1,812.00",G,None,Grants
"Ministry of Housing, Communities and Local Government",Homes England,CAP GRNTS TO LOCAL AUTHORITIES,Investment,MILTON KEYNES COUNCIL,05/07/2021,"1,812.00",G,None,Grants
"Ministry of Housing, Communities and Local Government",Homes England,CAP GRNTS TO LOCAL AUTHORITIES,Investment,MILTON KEYNES COUNCIL,02/07/2021,"1,811.00",G,None,Grants
"Ministry of Housing, Communities and Local Government",Homes England,CAP GRNTS TO LOCAL AUTHORITIES,Investment,MILTON KEYNES COUNCIL,05/07/2021,"1,811.00",G,None,Grants
"Ministry of Housing, Communities and Local Government",Homes England,CAP GRNTS TO LOCAL AUTHORITIES,Investment,MILTON KEYNES COUNCIL,05/07/2021,"1,811.00",G,None,Grants
"Ministry of Housing, Communities and Local Government",Homes England,CAP GRNTS TO LOCAL AUTHORITIES,Investment,MILTON KEYNES COUNCIL,05/07/2021,"1,811.00",G,None,Grants
"Ministry of Housing, Communities and Local Government",Homes England,CAP GRNTS TO LOCAL AUTHORITIES,Investment,MILTON KEYNES COUNCIL,05/07/2021,"1,811.00",G,None,Grants
"Ministry of Housing, Communities and Local Government",Homes England,CAP GRNTS TO LOCAL AUTHORITIES,Investment,MILTON KEYNES COUNCIL,05/07/2021,"1,811.00",G,None,Grants
"Ministry of Housing, Communities and Local Government",Homes England,CAP GRNTS TO LOCAL AUTHORITIES,Investment,MILTON KEYNES COUNCIL,05/07/2021,"1,811.00",G,None,Grants
"Ministry of Housing, Communities and Local Government",Homes England,CAP GRNTS TO LOCAL AUTHORITIES,Investment,MILTON KEYNES COUNCIL,05/07/2021,"1,811.00",G,None,Grants
"Ministry of Housing, Communities and Local Government",Homes England,CAP GRNTS TO LOCAL AUTHORITIES,Investment,MILTON KEYNES COUNCIL,05/07/2021,"1,811.00",G,None,Grants
"Ministry of Housing, Communities and Local Government",Homes England,CAP GRNTS TO LOCAL AUTHORITIES,Investment,MILTON KEYNES COUNCIL,05/07/2021,"1,811.00",G,None,Grants
"Ministry of Housing, Communities and Local Government",Homes England,CAP GRNTS TO LOCAL AUTHORITIES,Investment,MILTON KEYNES COUNCIL,05/07/2021,"1,811.00",G,None,Grants
"Ministry of Housing, Communities and Local Government",Homes England,CAP GRNTS TO LOCAL AUTHORITIES,Investment,MILTON KEYNES COUNCIL,05/07/2021,"1,811.00",G,None,Grants
"Ministry of Housing, Communities and Local Government",Homes England,CAP GRNTS TO LOCAL AUTHORITIES,Investment,MILTON KEYNES COUNCIL,05/07/2021,"1,811.00",G,None,Grants
"Ministry of Housing, Communities and Local Government",Homes England,CAP GRNTS TO LOCAL AUTHORITIES,Investment,MILTON KEYNES COUNCIL,05/07/2021,"1,811.00",G,None,Grants
"Ministry of Housing, Communities and Local Government",Homes England,CAP GRNTS TO LOCAL AUTHORITIES,Investment,MILTON KEYNES COUNCIL,05/07/2021,"1,811.00",G,None,Grants
"Ministry of Housing, Communities and Local Government",Homes England,CAP GRNTS TO LOCAL AUTHORITIES,Investment,MILTON KEYNES COUNCIL,02/07/2021,"1,705.00",G,None,Grants
"Ministry of Housing, Communities and Local Government",Homes England,CAP GRNTS TO LOCAL AUTHORITIES,Investment,MILTON KEYNES COUNCIL,06/07/2021,"1,705.00",G,None,Grants
"Ministry of Housing, Communities and Local Government",Homes England,CAP GRNTS TO LOCAL AUTHORITIES,Investment,MILTON KEYNES COUNCIL,06/07/2021,"1,705.00",G,None,Grants
"Ministry of Housing, Communities and Local Government",Homes England,CAP GRNTS TO LOCAL AUTHORITIES,Investment,MILTON KEYNES COUNCIL,06/07/2021,"1,705.00",G,None,Grants
"Ministry of Housing, Communities and Local Government",Homes England,CAP GRNTS TO LOCAL AUTHORITIES,Investment,BRIGHTON & HOVE CITY COUNCIL,05/07/2021,"2,920.00",G,None,Grants
"Ministry of Housing, Communities and Local Government",Homes England,CAP GRNTS TO LOCAL AUTHORITIES,Investment,BRIGHTON & HOVE CITY COUNCIL,05/07/2021,"2,920.00",G,None,Grants
"Ministry of Housing, Communities and Local Government",Homes England,CAP GRNTS TO LOCAL AUTHORITIES,Investment,BRIGHTON & HOVE CITY COUNCIL,05/07/2021,"2,920.00",G,None,Grants
"Ministry of Housing, Communities and Local Government",Homes England,CAP GRNTS TO LOCAL AUTHORITIES,Investment,BRIGHTON & HOVE CITY COUNCIL,05/07/2021,"2,920.00",G,None,Grants
"Ministry of Housing, Communities and Local Government",Homes England,CAP GRNTS TO LOCAL AUTHORITIES,Investment,BRIGHTON & HOVE CITY COUNCIL,05/07/2021,"2,920.00",G,None,Grants
"Ministry of Housing, Communities and Local Government",Homes England,CAP GRNTS TO LOCAL AUTHORITIES,Investment,BRIGHTON & HOVE CITY COUNCIL,05/07/2021,"2,920.00",G,None,Grants
"Ministry of Housing, Communities and Local Government",Homes England,CAP GRNTS TO LOCAL AUTHORITIES,Investment,BRIGHTON & HOVE CITY COUNCIL,06/07/2021,"2,920.00",G,None,Grants
"Ministry of Housing, Communities and Local Government",Homes England,CAP GRNTS TO LOCAL AUTHORITIES,Investment,BRIGHTON & HOVE CITY COUNCIL,07/07/2021,"2,920.00",G,None,Grants
"Ministry of Housing, Communities and Local Government",Homes England,CAP GRNTS TO LOCAL AUTHORITIES,Investment,BRIGHTON & HOVE CITY COUNCIL,07/07/2021,"2,920.00",G,None,Grants
"Ministry of Housing, Communities and Local Government",Homes England,CAP GRNTS TO LOCAL AUTHORITIES,Investment,BRIGHTON & HOVE CITY COUNCIL,07/07/2021,"2,920.00",G,None,Grants
"Ministry of Housing, Communities and Local Government",Homes England,CAP GRNTS TO LOCAL AUTHORITIES,Investment,BRIGHTON & HOVE CITY COUNCIL,07/07/2021,"2,920.00",G,None,Grants
"Ministry of Housing, Communities and Local Government",Homes England,CAP GRNTS TO LOCAL AUTHORITIES,Investment,BRIGHTON & HOVE CITY COUNCIL,07/07/2021,"2,920.00",G,None,Grants
"Ministry of Housing, Communities and Local Government",Homes England,CAP GRNTS TO LOCAL AUTHORITIES,Investment,BRIGHTON & HOVE CITY COUNCIL,07/07/2021,"2,920.00",G,None,Grants
"Ministry of Housing, Communities and Local Government",Homes England,CAP GRNTS TO LOCAL AUTHORITIES,Investment,BRIGHTON & HOVE CITY COUNCIL,07/07/2021,"2,920.00",G,None,Grants
"Ministry of Housing, Communities and Local Government",Homes England,CAP GRNTS TO LOCAL AUTHORITIES,Investment,BRIGHTON & HOVE CITY COUNCIL,07/07/2021,"2,920.00",G,None,Grants
"Ministry of Housing, Communities and Local Government",Homes England,CAP GRNTS TO LOCAL AUTHORITIES,Investment,BRIGHTON & HOVE CITY COUNCIL,07/07/2021,"2,920.00",G,None,Grants
"Ministry of Housing, Communities and Local Government",Homes England,CAP GRNTS TO LOCAL AUTHORITIES,Investment,BRIGHTON & HOVE CITY COUNCIL,07/07/2021,"2,920.00",G,None,Grants
"Ministry of Housing, Communities and Local Government",Homes England,CAP GRNTS TO LOCAL AUTHORITIES,Investment,BRIGHTON & HOVE CITY COUNCIL,07/07/2021,"2,920.00",G,None,Grants
"Ministry of Housing, Communities and Local Government",Homes England,CAP GRNTS TO LOCAL AUTHORITIES,Investment,EASTBOURNE BOROUGH COUNCIL,07/07/2021,"105,751.00",G,None,Grants
"Ministry of Housing, Communities and Local Government",Homes England,CAP GRNTS TO LOCAL AUTHORITIES,Investment,EASTBOURNE BOROUGH COUNCIL,01/07/2021,"55,658.00",G,None,Grants
"Ministry of Housing, Communities and Local Government",Homes England,CAP GRNTS TO LOCAL AUTHORITIES,Investment,EASTBOURNE BOROUGH COUNCIL,06/07/2021,"5,566.00",G,None,Grants
"Ministry of Housing, Communities and Local Government",Homes England,CAP GRNTS TO LOCAL AUTHORITIES,Investment,EASTBOURNE BOROUGH COUNCIL,07/07/2021,"5,566.00",G,None,Grants
"Ministry of Housing, Communities and Local Government",Homes England,CAP GRNTS TO LOCAL AUTHORITIES,Investment,WEALDEN DISTRICT COUNCIL,13/07/2021,"10,750.00",G,None,Grants
"Ministry of Housing, Communities and Local Government",Homes England,CAP GRNTS TO LOCAL AUTHORITIES,Investment,STROUD DISTRICT COUNCIL,07/07/2021,"25,000.00",G,None,Grants
"Ministry of Housing, Communities and Local Government",Homes England,BUILDINGS-VACANT RATES,MPP,FAREHAM BOROUGH COUNCIL,19/07/2021,"147,200.00",G,80131500,Lease and rental of property or building
"Ministry of Housing, Communities and Local Government",Homes England,CAP GRNTS TO LOCAL AUTHORITIES,Investment,EAST HERTFORDSHIRE DISTRICT COUNCIL,01/07/2021,"6,000.00",G,None,Grants
"Ministry of Housing, Communities and Local Government",Homes England,CAP GRNTS TO LOCAL AUTHORITIES,Investment,STEVENGE BOROUGH COUNCIL,01/07/2021,"12,514.00",G,None,Grants
"Ministry of Housing, Communities and Local Government",Homes England,CAP GRNTS TO LOCAL AUTHORITIES,Investment,STEVENGE BOROUGH COUNCIL,01/07/2021,"9,152.00",G,None,Grants
"Ministry of Housing, Communities and Local Government",Homes England,CAP GRNTS TO LOCAL AUTHORITIES,Investment,STEVENGE BOROUGH COUNCIL,01/07/2021,"5,689.00",G,None,Grants
"Ministry of Housing, Communities and Local Government",Homes England,CAP GRNTS TO LOCAL AUTHORITIES,Investment,CANTERBURY CITY COUNCIL,06/07/2021,"39,334.00",G,None,Grants
"Ministry of Housing, Communities and Local Government",Homes England,CAP GRNTS TO LOCAL AUTHORITIES,Investment,CANTERBURY CITY COUNCIL,05/07/2021,"35,400.00",G,None,Grants
"Ministry of Housing, Communities and Local Government",Homes England,CAP GRNTS TO LOCAL AUTHORITIES,Investment,CANTERBURY CITY COUNCIL,07/07/2021,"3,933.00",G,None,Grants
"Ministry of Housing, Communities and Local Government",Homes England,CAP GRNTS TO LOCAL AUTHORITIES,Investment,DOVER DISTRICT COUNCIL,05/07/2021,"290,000.00",G,None,Grants
"Ministry of Housing, Communities and Local Government",Homes England,CAP GRNTS TO LOCAL AUTHORITIES,Investment,DOVER DISTRICT COUNCIL,28/07/2021,"39,000.00",G,None,Grants
"Ministry of Housing, Communities and Local Government",Homes England,CAP GRNTS TO LOCAL AUTHORITIES,Investment,DOVER DISTRICT COUNCIL,05/07/2021,"4,333.00",G,None,Grants
"Ministry of Housing, Communities and Local Government",Homes England,CAP GRNTS TO LOCAL AUTHORITIES,Investment,DOVER DISTRICT COUNCIL,05/07/2021,"4,333.00",G,None,Grants
"Ministry of Housing, Communities and Local Government",Homes England,CAP GRNTS TO LOCAL AUTHORITIES,Investment,DOVER DISTRICT COUNCIL,07/07/2021,"4,333.00",G,None,Grants
"Ministry of Housing, Communities and Local Government",Homes England,CAP GRNTS TO LOCAL AUTHORITIES,Investment,MAIDSTONE BOROUGH COUNCIL,06/07/2021,"287,375.00",G,None,Grants
"Ministry of Housing, Communities and Local Government",Homes England,CAP GRNTS TO LOCAL AUTHORITIES,Investment,FOLKESTONE & HYTHE DISTRICT COUNCIL,05/07/2021,"43,000.00",G,None,Grants
"Ministry of Housing, Communities and Local Government",Homes England,CAP GRNTS TO LOCAL AUTHORITIES,Investment,FOLKESTONE & HYTHE DISTRICT COUNCIL,06/07/2021,"43,000.00",G,None,Grants
"Ministry of Housing, Communities and Local Government",Homes England,CAP GRNTS TO LOCAL AUTHORITIES,Investment,FOLKESTONE & HYTHE DISTRICT COUNCIL,06/07/2021,"43,000.00",G,None,Grants
"Ministry of Housing, Communities and Local Government",Homes England,CAP GRNTS TO LOCAL AUTHORITIES,Investment,FOLKESTONE & HYTHE DISTRICT COUNCIL,02/07/2021,"38,700.00",G,None,Grants
"Ministry of Housing, Communities and Local Government",Homes England,CAP GRNTS TO LOCAL AUTHORITIES,Investment,FOLKESTONE & HYTHE DISTRICT COUNCIL,05/07/2021,"38,700.00",G,None,Grants
"Ministry of Housing, Communities and Local Government",Homes England,CAP GRNTS TO LOCAL AUTHORITIES,Investment,FOLKESTONE & HYTHE DISTRICT COUNCIL,05/07/2021,"38,700.00",G,None,Grants
"Ministry of Housing, Communities and Local Government",Homes England,CAP GRNTS TO LOCAL AUTHORITIES,Investment,FOLKESTONE & HYTHE DISTRICT COUNCIL,07/07/2021,"4,300.00",G,None,Grants
"Ministry of Housing, Communities and Local Government",Homes England,CAP GRNTS TO LOCAL AUTHORITIES,Investment,FOLKESTONE & HYTHE DISTRICT COUNCIL,07/07/2021,"4,300.00",G,None,Grants
"Ministry of Housing, Communities and Local Government",Homes England,CAP GRNTS TO LOCAL AUTHORITIES,Investment,THANET DISTRICT COUNCIL,06/07/2021,"96,765.00",G,None,Grants
"Ministry of Housing, Communities and Local Government",Homes England,CAP GRNTS TO LOCAL AUTHORITIES,Investment,CITY OF LINCOLN COUNCIL,01/07/2021,"2,747.00",G,None,Grants
"Ministry of Housing, Communities and Local Government",Homes England,CAP GRNTS TO LOCAL AUTHORITIES,Investment,CITY OF LINCOLN COUNCIL,02/07/2021,"2,747.00",G,None,Grants
"Ministry of Housing, Communities and Local Government",Homes England,CAP GRNTS TO LOCAL AUTHORITIES,Investment,CITY OF LINCOLN COUNCIL,02/07/2021,"2,747.00",G,None,Grants
"Ministry of Housing, Communities and Local Government",Homes England,CAP GRNTS TO LOCAL AUTHORITIES,Investment,NORTH KESTEVEN DISTRICT COUNCIL,01/07/2021,"9,056.00",G,None,Grants
"Ministry of Housing, Communities and Local Government",Homes England,CAP GRNTS TO LOCAL AUTHORITIES,Investment,SOUTH HOLLAND DISTRICT COUNCIL,07/07/2021,"48,196.00",G,None,Grants
"Ministry of Housing, Communities and Local Government",Homes England,CAP GRNTS TO LOCAL AUTHORITIES,Investment,SOUTH HOLLAND DISTRICT COUNCIL,06/07/2021,"43,377.00",G,None,Grants
"Ministry of Housing, Communities and Local Government",Homes England,CAP GRNTS TO LOCAL AUTHORITIES,Investment,SOUTH HOLLAND DISTRICT COUNCIL,01/07/2021,"4,820.00",G,None,Grants
"Ministry of Housing, Communities and Local Government",Homes England,CAP GRNTS TO LOCAL AUTHORITIES,Investment,SOUTH HOLLAND DISTRICT COUNCIL,01/07/2021,"4,820.00",G,None,Grants
"Ministry of Housing, Communities and Local Government",Homes England,CAP GRNTS TO LOCAL AUTHORITIES,Investment,WEST NORTHAMPTONSHIRE COUNCIL,02/07/2021,"45,188.00",G,None,Grants
"Ministry of Housing, Communities and Local Government",Homes England,OCCUPIED RATES,Development,WEST NORTHAMPTONSHIRE COUNCIL,05/07/2021,"4,864.00",G,80131500,Lease and rental of property or building
"Ministry of Housing, Communities and Local Government",Homes England,CAP GRNTS TO LOCAL AUTHORITIES,Investment,WEST NORTHAMPTONSHIRE COUNCIL,05/07/2021,"4,519.00",G,None,Grants
"Ministry of Housing, Communities and Local Government",Homes England,CAP GRNTS TO LOCAL AUTHORITIES,Investment,WEST NORTHAMPTONSHIRE COUNCIL,01/07/2021,700.00,G,None,Grants
"Ministry of Housing, Communities and Local Government",Homes England,CAP GRNTS TO LOCAL AUTHORITIES,Investment,WEST NORTHAMPTONSHIRE COUNCIL,05/07/2021,700.00,G,None,Grants
"Ministry of Housing, Communities and Local Government",Homes England,CAP GRNTS TO LOCAL AUTHORITIES,Investment,WEST NORTHAMPTONSHIRE COUNCIL,05/07/2021,700.00,G,None,Grants
"Ministry of Housing, Communities and Local Government",Homes England,CAP GRNTS TO LOCAL AUTHORITIES,Investment,WEST NORTHAMPTONSHIRE COUNCIL,05/07/2021,700.00,G,None,Grants
"Ministry of Housing, Communities and Local Government",Homes England,CAP GRNTS TO LOCAL AUTHORITIES,Investment,WEST NORTHAMPTONSHIRE COUNCIL,05/07/2021,700.00,G,None,Grants
"Ministry of Housing, Communities and Local Government",Homes England,CAP GRNTS TO LOCAL AUTHORITIES,Investment,WEST NORTHAMPTONSHIRE COUNCIL,05/07/2021,700.00,G,None,Grants
"Ministry of Housing, Communities and Local Government",Homes England,CAP GRNTS TO LOCAL AUTHORITIES,Investment,WEST NORTHAMPTONSHIRE COUNCIL,05/07/2021,700.00,G,None,Grants
"Ministry of Housing, Communities and Local Government",Homes England,CAP GRNTS TO LOCAL AUTHORITIES,Investment,WEST NORTHAMPTONSHIRE COUNCIL,05/07/2021,700.00,G,None,Grants
"Ministry of Housing, Communities and Local Government",Homes England,CAP GRNTS TO LOCAL AUTHORITIES,Investment,WEST NORTHAMPTONSHIRE COUNCIL,05/07/2021,700.00,G,None,Grants
"Ministry of Housing, Communities and Local Government",Homes England,CAP GRNTS TO LOCAL AUTHORITIES,Investment,WEST NORTHAMPTONSHIRE COUNCIL,05/07/2021,700.00,G,None,Grants
"Ministry of Housing, Communities and Local Government",Homes England,CAP GRNTS TO LOCAL AUTHORITIES,Investment,WEST NORTHAMPTONSHIRE COUNCIL,05/07/2021,700.00,G,None,Grants
"Ministry of Housing, Communities and Local Government",Homes England,CAP GRNTS TO LOCAL AUTHORITIES,Investment,WEST NORTHAMPTONSHIRE COUNCIL,05/07/2021,700.00,G,None,Grants
"Ministry of Housing, Communities and Local Government",Homes England,CAP GRNTS TO LOCAL AUTHORITIES,Investment,WEST NORTHAMPTONSHIRE COUNCIL,05/07/2021,700.00,G,None,Grants
"Ministry of Housing, Communities and Local Government",Homes England,CAP GRNTS TO LOCAL AUTHORITIES,Investment,WEST NORTHAMPTONSHIRE COUNCIL,05/07/2021,700.00,G,None,Grants
"Ministry of Housing, Communities and Local Government",Homes England,CAP GRNTS TO LOCAL AUTHORITIES,Investment,THE COUNCIL OF THE BOROUGH OF HARROGATE,07/07/2021,"3,250.00",G,None,Grants
"Ministry of Housing, Communities and Local Government",Homes England,CAP GRNTS TO LOCAL AUTHORITIES,Investment,RYEDALE DISTRICT COUNCIL,01/07/2021,"3,400.00",G,None,Grants
"Ministry of Housing, Communities and Local Government",Homes England,CAP GRNTS TO LOCAL AUTHORITIES,Investment,BASSETLAW DISTRICT COUCIL,07/07/2021,"5,000.00",G,None,Grants
"Ministry of Housing, Communities and Local Government",Homes England,CAP GRNTS TO LOCAL AUTHORITIES,Investment,NEWARK AND SHERWOOD DISTRICT COUNCIL,20/07/2021,"7,380.00",G,None,Grants
"Ministry of Housing, Communities and Local Government",Homes England,CAP GRNTS TO LOCAL AUTHORITIES,Investment,OXFORD CITY COUNCIL,02/07/2021,"15,000.00",G,None,Grants
"Ministry of Housing, Communities and Local Government",Homes England,CAP GRNTS TO LOCAL AUTHORITIES,Investment,OXFORD CITY COUNCIL,07/07/2021,"15,000.00",G,None,Grants
"Ministry of Housing, Communities and Local Government",Homes England,CAP GRNTS TO LOCAL AUTHORITIES,Investment,OXFORD CITY COUNCIL,07/07/2021,"1,500.00",G,None,Grants
"Ministry of Housing, Communities and Local Government",Homes England,CAP GRNTS TO LOCAL AUTHORITIES,Investment,OXFORD CITY COUNCIL,07/07/2021,"1,500.00",G,None,Grants
"Ministry of Housing, Communities and Local Government",Homes England,CAP GRNTS TO LOCAL AUTHORITIES,Investment,OXFORD CITY COUNCIL,07/07/2021,"1,500.00",G,None,Grants
"Ministry of Housing, Communities and Local Government",Homes England,CAP GRNTS TO LOCAL AUTHORITIES,Investment,OXFORD CITY COUNCIL,07/07/2021,"1,500.00",G,None,Grants
"Ministry of Housing, Communities and Local Government",Homes England,CAP GRNTS TO LOCAL AUTHORITIES,Investment,OXFORD CITY COUNCIL,08/07/2021,"1,500.00",G,None,Grants
"Ministry of Housing, Communities and Local Government",Homes England,CAP GRNTS TO LOCAL AUTHORITIES,Investment,CANNOCK CHASE DISTRICT COUNCIL,07/07/2021,"2,875.00",G,None,Grants
"Ministry of Housing, Communities and Local Government",Homes England,CAP GRNTS TO LOCAL AUTHORITIES,Investment,IPSWICH BOROUGH COUNCIL,06/07/2021,"15,500.00",G,None,Grants
"Ministry of Housing, Communities and Local Government",Homes England,CAP GRNTS TO LOCAL AUTHORITIES,Investment,IPSWICH BOROUGH COUNCIL,06/07/2021,"1,500.00",G,None,Grants
"Ministry of Housing, Communities and Local Government",Homes England,TEAM MEETINGS,Development,ASH SAKULA ARCHITECTS,26/07/2021,360.00,S,90111600,Meeting facilities
"Ministry of Housing, Communities and Local Government",Homes England,MISC PROFESSIONAL FEES,Development,ALLEN DADSWELL CONSTRUCTION CONSULTANTS,08/07/2021,"5,589.60",M,72101500,Building maintenance and repair services
"Ministry of Housing, Communities and Local Government",Homes England,PLANNING APPLICATIONS,MPP,ATKINS LTD,29/07/2021,"60,936.00",L,80131800,Real estate management services
"Ministry of Housing, Communities and Local Government",Homes England,ENGINEERING CONSULTANTS,Development,ATKINS LTD,01/07/2021,"51,803.50",L,81101500,Civil Engineering
"Ministry of Housing, Communities and Local Government",Homes England,PROJECT MANAGEMENT,MPP,ATKINS LTD,26/07/2021,"13,200.00",L,80101600,Project management
"Ministry of Housing, Communities and Local Government",Homes England,MISC PROFESSIONAL FEES,Development,ATKINS LTD,05/07/2021,"11,064.00",L,80101500,Business and corporate management consultation services
"Ministry of Housing, Communities and Local Government",Homes England,MISC PROFESSIONAL FEES,Development,ATKINS LTD,05/07/2021,"11,064.00",L,80101500,Business and corporate management consultation services
"Ministry of Housing, Communities and Local Government",Homes England,ENGINEERING FEES,Development,ATKINS LTD,13/07/2021,"3,360.00",L,81101500,Civil Engineering
"Ministry of Housing, Communities and Local Government",Homes England,CONTRACT WORKS,Development,WESTERN POWER DISTRIBUTION,09/07/2021,"10,616.20",L,72151500,Electrical System Services
"Ministry of Housing, Communities and Local Government",Homes England,CONTRACT WORKS,Development,WESTERN POWER DISTRIBUTION,09/07/2021,923.92,L,72151500,Electrical System Services
"Ministry of Housing, Communities and Local Government",Homes England,CAR LEASING - HIRE CHARGES,Investment,ALPHABET (GB) LTD,09/07/2021,292.50,L,25101500,Passenger motor vehicles
"Ministry of Housing, Communities and Local Government",Homes England,MISC PROFESSIONAL FEES,Development,ELIZABETH AINGE,05/07/2021,250.00,S,43232800,Network Management Software
"Ministry of Housing, Communities and Local Government",Homes England,CONTRACT WORKS,MPP,AE YATES LTD,12/07/2021,"166,480.32",M,72103300,Infrastructure maintenance and repair services
"Ministry of Housing, Communities and Local Government",Homes England,CAR LEASING - HIRE CHARGES,Corporate Resources,ARVAL UK LIMITED,08/07/2021,"2,775.49",L,25101500,Passenger motor vehicles
"Ministry of Housing, Communities and Local Government",Homes England,CAR LEASING - HIRE CHARGES,Corporate Resources,ARVAL UK LIMITED,08/07/2021,"2,228.87",L,25101500,Passenger motor vehicles
"Ministry of Housing, Communities and Local Government",Homes England,CAR LEASING - HIRE CHARGES,Corporate Allocations,ARVAL UK LIMITED,12/07/2021,"2,212.73",L,25101500,Passenger motor vehicles
"Ministry of Housing, Communities and Local Government",Homes England,CAR LEASING - HIRE CHARGES,Corporate Allocations,ARVAL UK LIMITED,12/07/2021,"1,571.93",L,25101500,Passenger motor vehicles
"Ministry of Housing, Communities and Local Government",Homes England,ESTATE GENERAL MAINTENANCE,Development,ALLIUM ENVIRONMENTAL LTD,02/07/2021,"4,416.00",S,72101500,Building maintenance and repair services
"Ministry of Housing, Communities and Local Government",Homes England,ST FUND LOANS ADDITIONS,Investment,ACROM HOLDINGS LTD & ACROM CONSTRUCTION,13/07/2021,"64,480.00",S,None,Loans
"Ministry of Housing, Communities and Local Government",Homes England,LANDSCAPE MAINT-BUILT ESTATE,Development,ALBEN LANDSCAPES LIMITED,23/07/2021,"1,569.60",S,72102900,Facility maintenance and repair services
"Ministry of Housing, Communities and Local Government",Homes England,ESTATE GENERAL MAINTENANCE,Development,ALBEN LANDSCAPES LIMITED,13/07/2021,"1,440.00",S,72101500,Building maintenance and repair services
"Ministry of Housing, Communities and Local Government",Homes England,ESTATE GENERAL MAINTENANCE,Development,ALBEN LANDSCAPES LIMITED,13/07/2021,843.00,S,72101500,Building maintenance and repair services
"Ministry of Housing, Communities and Local Government",Homes England,AGENCY STAFF,Corporate Resources,ALLEN LANE LIMITED,08/07/2021,"9,315.00",S,80111600,Temporary personnel services
"Ministry of Housing, Communities and Local Government",Homes England,AGENCY STAFF,Corporate Resources,ALLEN LANE LIMITED,06/07/2021,"8,580.00",S,80111600,Temporary personnel services
"Ministry of Housing, Communities and Local Government",Homes England,AGENCY STAFF,Corporate Resources,ALLEN LANE LIMITED,08/07/2021,"6,171.00",S,80111600,Temporary personnel services
"Ministry of Housing, Communities and Local Government",Homes England,AGENCY STAFF,Corporate Resources,ALLEN LANE LIMITED,22/07/2021,"5,808.00",S,80111600,Temporary personnel services
"Ministry of Housing, Communities and Local Government",Homes England,AGENCY STAFF,Corporate Resources,ALLEN LANE LIMITED,22/07/2021,"5,280.00",S,80111600,Temporary personnel services
"Ministry of Housing, Communities and Local Government",Homes England,AGENCY STAFF,Corporate Resources,ALLEN LANE LIMITED,06/07/2021,"4,657.50",S,80111600,Temporary personnel services
"Ministry of Housing, Communities and Local Government",Homes England,AGENCY STAFF,Corporate Resources,ALLEN LANE LIMITED,19/07/2021,"4,657.50",S,80111600,Temporary personnel services
"Ministry of Housing, Communities and Local Government",Homes England,AGENCY STAFF,Corporate Resources,ALLEN LANE LIMITED,22/07/2021,"4,657.50",S,80111600,Temporary personnel services
"Ministry of Housing, Communities and Local Government",Homes England,AGENCY STAFF,Corporate Resources,ALLEN LANE LIMITED,08/07/2021,"4,290.00",S,80111600,Temporary personnel services
"Ministry of Housing, Communities and Local Government",Homes England,AGENCY STAFF,Corporate Resources,ALLEN LANE LIMITED,19/07/2021,"4,290.00",S,80111600,Temporary personnel services
"Ministry of Housing, Communities and Local Government",Homes England,AGENCY STAFF,Corporate Resources,ALLEN LANE LIMITED,06/07/2021,"3,795.00",S,80111600,Temporary personnel services
"Ministry of Housing, Communities and Local Government",Homes England,AGENCY STAFF,Corporate Resources,ALLEN LANE LIMITED,06/07/2021,"3,795.00",S,80111600,Temporary personnel services
"Ministry of Housing, Communities and Local Government",Homes England,AGENCY STAFF,Corporate Resources,ALLEN LANE LIMITED,06/07/2021,"3,795.00",S,80111600,Temporary personnel services
"Ministry of Housing, Communities and Local Government",Homes England,AGENCY STAFF,Corporate Resources,ALLEN LANE LIMITED,06/07/2021,"3,795.00",S,80111600,Temporary personnel services
"Ministry of Housing, Communities and Local Government",Homes England,AGENCY STAFF,Corporate Resources,ALLEN LANE LIMITED,06/07/2021,"3,795.00",S,80111600,Temporary personnel services
"Ministry of Housing, Communities and Local Government",Homes England,AGENCY STAFF,Corporate Resources,ALLEN LANE LIMITED,08/07/2021,"3,795.00",S,80111600,Temporary personnel services
"Ministry of Housing, Communities and Local Government",Homes England,AGENCY STAFF,Corporate Resources,ALLEN LANE LIMITED,08/07/2021,"3,795.00",S,80111600,Temporary personnel services
"Ministry of Housing, Communities and Local Government",Homes England,AGENCY STAFF,Corporate Resources,ALLEN LANE LIMITED,08/07/2021,"3,795.00",S,80111600,Temporary personnel services
"Ministry of Housing, Communities and Local Government",Homes England,AGENCY STAFF,Corporate Resources,ALLEN LANE LIMITED,08/07/2021,"3,795.00",S,80111600,Temporary personnel services
"Ministry of Housing, Communities and Local Government",Homes England,AGENCY STAFF,Corporate Resources,ALLEN LANE LIMITED,19/07/2021,"3,795.00",S,80111600,Temporary personnel services
"Ministry of Housing, Communities and Local Government",Homes England,AGENCY STAFF,Corporate Resources,ALLEN LANE LIMITED,19/07/2021,"3,795.00",S,80111600,Temporary personnel services
"Ministry of Housing, Communities and Local Government",Homes England,AGENCY STAFF,Corporate Resources,ALLEN LANE LIMITED,19/07/2021,"3,795.00",S,80111600,Temporary personnel services
"Ministry of Housing, Communities and Local Government",Homes England,AGENCY STAFF,Corporate Resources,ALLEN LANE LIMITED,19/07/2021,"3,795.00",S,80111600,Temporary personnel services
"Ministry of Housing, Communities and Local Government",Homes England,AGENCY STAFF,Corporate Resources,ALLEN LANE LIMITED,19/07/2021,"3,795.00",S,80111600,Temporary personnel services
"Ministry of Housing, Communities and Local Government",Homes England,AGENCY STAFF,Corporate Resources,ALLEN LANE LIMITED,22/07/2021,"3,795.00",S,80111600,Temporary personnel services
"Ministry of Housing, Communities and Local Government",Homes England,AGENCY STAFF,Corporate Resources,ALLEN LANE LIMITED,22/07/2021,"3,795.00",S,80111600,Temporary personnel services
"Ministry of Housing, Communities and Local Government",Homes England,AGENCY STAFF,Corporate Resources,ALLEN LANE LIMITED,22/07/2021,"3,795.00",S,80111600,Temporary personnel services
"Ministry of Housing, Communities and Local Government",Homes England,AGENCY STAFF,Corporate Resources,ALLEN LANE LIMITED,22/07/2021,"3,795.00",S,80111600,Temporary personnel services
"Ministry of Housing, Communities and Local Government",Homes England,AGENCY STAFF,Corporate Resources,ALLEN LANE LIMITED,22/07/2021,"3,795.00",S,80111600,Temporary personnel services
"Ministry of Housing, Communities and Local Government",Homes England,AGENCY STAFF,Corporate Resources,ALLEN LANE LIMITED,06/07/2021,"3,630.00",S,80111600,Temporary personnel services
"Ministry of Housing, Communities and Local Government",Homes England,AGENCY STAFF,Corporate Resources,ALLEN LANE LIMITED,08/07/2021,"3,630.00",S,80111600,Temporary personnel services
"Ministry of Housing, Communities and Local Government",Homes England,AGENCY STAFF,Corporate Resources,ALLEN LANE LIMITED,19/07/2021,"3,630.00",S,80111600,Temporary personnel services
"Ministry of Housing, Communities and Local Government",Homes England,AGENCY STAFF,Corporate Resources,ALLEN LANE LIMITED,22/07/2021,"3,630.00",S,80111600,Temporary personnel services
"Ministry of Housing, Communities and Local Government",Homes England,AGENCY STAFF,Corporate Resources,ALLEN LANE LIMITED,08/07/2021,"3,225.76",S,80111600,Temporary personnel services
"Ministry of Housing, Communities and Local Government",Homes England,AGENCY STAFF,Corporate Resources,ALLEN LANE LIMITED,06/07/2021,"2,640.00",S,80111600,Temporary personnel services
"Ministry of Housing, Communities and Local Government",Homes England,AGENCY STAFF,Corporate Resources,ALLEN LANE LIMITED,06/07/2021,"1,518.00",S,80111600,Temporary personnel services
"Ministry of Housing, Communities and Local Government",Homes England,ESTATE GENERAL MAINTENANCE,Development,AIREDALE FORESTRY,23/07/2021,827.98,S,72101500,Building maintenance and repair services
"Ministry of Housing, Communities and Local Government",Homes England,ESTATE GENERAL MAINTENANCE,Development,AIREDALE FORESTRY,26/07/2021,723.07,S,72101500,Building maintenance and repair services
"Ministry of Housing, Communities and Local Government",Homes England,ESTATE GENERAL MAINTENANCE,MPP,AIREDALE FORESTRY,19/07/2021,595.09,S,72101500,Building maintenance and repair services
"Ministry of Housing, Communities and Local Government",Homes England,ESTATE GENERAL MAINTENANCE,Development,AIREDALE FORESTRY,23/07/2021,546.00,S,72101500,Building maintenance and repair services
"Ministry of Housing, Communities and Local Government",Homes England,ESTATE GENERAL MAINTENANCE,MPP,AIREDALE FORESTRY,19/07/2021,535.88,S,72101500,Building maintenance and repair services
"Ministry of Housing, Communities and Local Government",Homes England,ESTATE GENERAL MAINTENANCE,Development,AIREDALE FORESTRY,23/07/2021,400.07,S,72101500,Building maintenance and repair services
"Ministry of Housing, Communities and Local Government",Homes England,ESTATE GENERAL MAINTENANCE,Development,AIREDALE FORESTRY,19/07/2021,278.22,S,72101500,Building maintenance and repair services
"Ministry of Housing, Communities and Local Government",Homes England,CAR LEASING - HIRE CHARGES,MPP,ALD AUTOMOTIVE,12/07/2021,252.54,L,25101500,Passenger motor vehicles
"Ministry of Housing, Communities and Local Government",Homes England,PROF FEES LOANS CAPITALISED,Investment,ASHFORDS,08/07/2021,"6,180.00",L,80131800,Real estate management services
"Ministry of Housing, Communities and Local Government",Homes England,LEGAL FEES (PROGRAMME - RDEL),MPP,ASHFORDS,29/07/2021,912.00,L,80121600,Business law services
"Ministry of Housing, Communities and Local Government",Homes England,CAR LEASING - HIRE CHARGES,Development,ARNOLD CLARK FINANCE LIMITED,22/07/2021,"3,169.87",L,25101500,Passenger motor vehicles
"Ministry of Housing, Communities and Local Government",Homes England,CAR LEASING - HIRE CHARGES,Development,ARNOLD CLARK FINANCE LIMITED,22/07/2021,"2,655.36",L,25101500,Passenger motor vehicles
"Ministry of Housing, Communities and Local Government",Homes England,CAR LEASING - HIRE CHARGES,MPP,ARNOLD CLARK FINANCE LIMITED,22/07/2021,"2,535.62",L,25101500,Passenger motor vehicles
"Ministry of Housing, Communities and Local Government",Homes England,CAR LEASING - HIRE CHARGES,MPP,ARNOLD CLARK FINANCE LIMITED,22/07/2021,"1,691.79",L,25101500,Passenger motor vehicles
"Ministry of Housing, Communities and Local Government",Homes England,CAR LEASING - HIRE CHARGES,Development,ARNOLD CLARK FINANCE LIMITED,07/07/2021,311.77,L,25101500,Passenger motor vehicles
"Ministry of Housing, Communities and Local Government",Homes England,CAR LEASING - HIRE CHARGES,Investment,ARNOLD CLARK FINANCE LIMITED,07/07/2021,304.69,L,25101500,Passenger motor vehicles
"Ministry of Housing, Communities and Local Government",Homes England,CAR LEASING - HIRE CHARGES,Development,ARNOLD CLARK FINANCE LIMITED,07/07/2021,274.82,L,25101500,Passenger motor vehicles
"Ministry of Housing, Communities and Local Government",Homes England,CAR LEASING - HIRE CHARGES,Investment,ARNOLD CLARK FINANCE LIMITED,07/07/2021,267.53,L,25101500,Passenger motor vehicles
"Ministry of Housing, Communities and Local Government",Homes England,CAR LEASING - HIRE CHARGES,Development,ARNOLD CLARK FINANCE LIMITED,08/07/2021,259.43,L,25101500,Passenger motor vehicles
"Ministry of Housing, Communities and Local Government",Homes England,CAR LEASING - HIRE CHARGES,Development,ARNOLD CLARK FINANCE LIMITED,07/07/2021,254.11,L,25101500,Passenger motor vehicles
"Ministry of Housing, Communities and Local Government",Homes England,PROF FEES LOANS CAPITALISED,Investment,BERWIN LEIGHTON PAISNER,09/07/2021,"10,600.56",L,80131800,Real estate management services
"Ministry of Housing, Communities and Local Government",Homes England,LEGAL FEES (PROGRAMME - RDEL),Investment,BERWIN LEIGHTON PAISNER,09/07/2021,"9,600.00",L,80121600,Business law services
"Ministry of Housing, Communities and Local Government",Homes England,LEGAL FEES (PROGRAMME - RDEL),Investment,BERWIN LEIGHTON PAISNER,09/07/2021,"7,200.00",L,80121600,Business law services
"Ministry of Housing, Communities and Local Government",Homes England,LEGAL FEES (PROGRAMME - RDEL),Development,BERWIN LEIGHTON PAISNER,08/07/2021,"3,028.80",L,80121600,Business law services
"Ministry of Housing, Communities and Local Government",Homes England,LEGAL FEES (PROGRAMME - RDEL),Investment,BERWIN LEIGHTON PAISNER,02/07/2021,"1,940.40",L,80121600,Business law services
"Ministry of Housing, Communities and Local Government",Homes England,LEGAL FEES (PROGRAMME - RDEL),Investment,BERWIN LEIGHTON PAISNER,09/07/2021,"1,800.00",L,80121600,Business law services
"Ministry of Housing, Communities and Local Government",Homes England,LEGAL FEES (PROGRAMME - RDEL),Investment,BERWIN LEIGHTON PAISNER,09/07/2021,"1,800.00",L,80121600,Business law services
"Ministry of Housing, Communities and Local Government",Homes England,AHP HOMEBUY AGENTS FEES,Investment,BERWIN LEIGHTON PAISNER,16/07/2021,554.40,L,80121600,Business law services
"Ministry of Housing, Communities and Local Government",Homes England,MISC PROFESSIONAL FEES,Chief Executive Office,BJSS LIMITED,15/07/2021,"180,870.30",L,81112000,Data Services
"Ministry of Housing, Communities and Local Government",Homes England,DISPOSAL FEES - LEGAL,MPP,BROWNE JACOBSON LLP,12/07/2021,"6,761.63",L,80121600,Business law services
"Ministry of Housing, Communities and Local Government",Homes England,LEGAL FEES (PROGRAMME - RDEL),Development,BROWNE JACOBSON LLP,19/07/2021,"2,719.20",L,80121600,Business law services
"Ministry of Housing, Communities and Local Government",Homes England,DISPOSAL FEES - LEGAL,MPP,BROWNE JACOBSON LLP,02/07/2021,"2,422.80",L,80121600,Business law services
"Ministry of Housing, Communities and Local Government",Homes England,DISPOSAL FEES - LEGAL,MPP,BROWNE JACOBSON LLP,13/07/2021,"2,400.00",L,80121600,Business law services
"Ministry of Housing, Communities and Local Government",Homes England,LEGAL FEES (PROGRAMME - CDEL),MPP,BROWNE JACOBSON LLP,29/07/2021,"2,182.80",L,80121600,Business law services
"Ministry of Housing, Communities and Local Government",Homes England,DISPOSAL FEES - LEGAL,Development,BROWNE JACOBSON LLP,29/07/2021,"1,567.80",L,80121600,Business law services
"Ministry of Housing, Communities and Local Government",Homes England,LEGAL FEES (PROGRAMME - RDEL),Investment,BROWNE JACOBSON LLP,07/07/2021,"1,140.00",L,80121600,Business law services
"Ministry of Housing, Communities and Local Government",Homes England,OTHER PROFESSIONAL FEES,Development,BUILDING DESIGN PARTNERSHIP,05/07/2021,"5,460.00",L,80131800,Real estate management services
"Ministry of Housing, Communities and Local Government",Homes England,PROF FEES LOANS CAPITALISED,Investment,BUILDING DESIGN PARTNERSHIP,06/07/2021,"3,840.00",L,81101500,Civil Engineering
"Ministry of Housing, Communities and Local Government",Homes England,RI - MONIITORING SURVEYOR FEES,Investment,BUILDING DESIGN PARTNERSHIP,02/07/2021,"2,310.00",L,81101500,Civil Engineering
"Ministry of Housing, Communities and Local Government",Homes England,RI - MONIITORING SURVEYOR FEES,Investment,BUILDING DESIGN PARTNERSHIP,06/07/2021,"1,260.00",L,81101500,Civil Engineering
"Ministry of Housing, Communities and Local Government",Homes England,CAP GRNTS TO LOCAL AUTHORITIES,Investment,BUCKINGHAMSHIRE COUNTY COUNCIL,29/07/2021,"1,532,775.68",G,None,Grants
"Ministry of Housing, Communities and Local Government",Homes England,ST FUND LOANS ADDITIONS,Investment,BROADFIELD HOMES LTD,06/07/2021,"55,519.40",L,None,Loans
"Ministry of Housing, Communities and Local Government",Homes England,ESTATE GENERAL MAINTENANCE,Development,BEECHWOOD TREES AND LANDSCAPES LTD,16/07/2021,"1,488.00",S,72101500,Building maintenance and repair services
"Ministry of Housing, Communities and Local Government",Homes England,RI - MONIITORING SURVEYOR FEES,Investment,STANTEC UK LIMITED,22/07/2021,"15,000.00",L,81101500,Civil Engineering
"Ministry of Housing, Communities and Local Government",Homes England,OTHER PROFESSIONAL FEES,MPP,STANTEC UK LIMITED,07/07/2021,"5,710.32",L,72103300,Infrastructure maintenance and repair services
"Ministry of Housing, Communities and Local Government",Homes England,MASTERPLANNING FEES,MPP,STANTEC UK LIMITED,02/07/2021,"4,824.00",L,81101500,Civil Engineering
"Ministry of Housing, Communities and Local Government",Homes England,MISC PROFESSIONAL FEES,Development,STANTEC UK LIMITED,06/07/2021,"3,420.00",L,72101500,Building maintenance and repair services
"Ministry of Housing, Communities and Local Government",Homes England,PROJECT MANAGEMENT,MPP,STANTEC UK LIMITED,07/07/2021,"1,971.43",L,80101600,Project management
"Ministry of Housing, Communities and Local Government",Homes England,OTHER PROFESSIONAL FEES,MPP,STANTEC UK LIMITED,06/07/2021,"1,200.00",L,80131800,Real estate management services
"Ministry of Housing, Communities and Local Government",Homes England,AGENCY STAFF,Development,BADENOCH & CLARK,01/07/2021,"2,446.50",L,80111600,Temporary personnel services
"Ministry of Housing, Communities and Local Government",Homes England,AGENCY STAFF,Development,BADENOCH & CLARK,28/07/2021,"2,446.50",L,80111600,Temporary personnel services
"Ministry of Housing, Communities and Local Government",Homes England,AGENCY STAFF,Development,BADENOCH & CLARK,20/07/2021,"2,097.00",L,80111600,Temporary personnel services
"Ministry of Housing, Communities and Local Government",Homes England,AGENCY STAFF,Development,BADENOCH & CLARK,20/07/2021,"2,097.00",L,80111600,Temporary personnel services
"Ministry of Housing, Communities and Local Government",Homes England,AGENCY STAFF,Development,BADENOCH & CLARK,20/07/2021,"2,097.00",L,80111600,Temporary personnel services
"Ministry of Housing, Communities and Local Government",Homes England,AGENCY STAFF,Development,BADENOCH & CLARK,20/07/2021,"2,097.00",L,80111600,Temporary personnel services
"Ministry of Housing, Communities and Local Government",Homes England,AGENCY STAFF,Development,BADENOCH & CLARK,01/07/2021,"1,957.20",L,80111600,Temporary personnel services
"Ministry of Housing, Communities and Local Government",Homes England,AGENCY STAFF,Development,BADENOCH & CLARK,16/07/2021,"1,467.90",L,80111600,Temporary personnel services
"Ministry of Housing, Communities and Local Government",Homes England,HOME WORKERS,Chief Executive Office,BRITISH TELECOMMUNICATIONS PLC,05/07/2021,"1,148.40",L,83111500,Local and long distance telephone communications
"Ministry of Housing, Communities and Local Government",Homes England,HOME WORKERS,Chief Executive Office,BRITISH TELECOMMUNICATIONS PLC,27/07/2021,"1,148.40",L,83111500,Local and long distance telephone communications
"Ministry of Housing, Communities and Local Government",Homes England,MOBILES,Chief Executive Office,BRITISH TELECOMMUNICATIONS PLC,01/07/2021,401.73,L,83111500,Local and long distance telephone communications
"Ministry of Housing, Communities and Local Government",Homes England,ST FUND LOANS ADDITIONS,Investment,BALLYMORE DEANSTON LIMITED,07/07/2021,"665,989.55",S,None,Loans
"Ministry of Housing, Communities and Local Government",Homes England,MISC PROFESSIONAL FEES,MPP,JACOBS UK LTD,15/07/2021,"10,658.40",L,80101500,Business and corporate management consultation services
"Ministry of Housing, Communities and Local Government",Homes England,BUILDINGS-GAS,MPP,BRITISH GAS BUSINESS,23/07/2021,571.12,L,83101600,Oil and gas utilities
"Ministry of Housing, Communities and Local Government",Homes England,STAFF RECRUITMENT COSTS,Corporate Resources,BAME IN PROPERTY LTD,09/07/2021,350.00,S,80111700,Personnel Recruitment
"Ministry of Housing, Communities and Local Government",Homes England,BUILDINGS-VACANT RATES,Development,BIRMINGHAM CITY COUNCIL,30/07/2021,"5,495.84",G,80131500,Lease and rental of property or building
"Ministry of Housing, Communities and Local Government",Homes England,CONTRACT WORKS,MPP,KNIGHTS BROWN CONSTRUCTION LIMITED,19/07/2021,"2,773.70",L,72103300,Infrastructure maintenance and repair services
"Ministry of Housing, Communities and Local Government",Homes England,L&OD STRATEGIC - HR USE ONLY,Corporate Resources,BRAVE PRODUCTIONS LIMITED,27/07/2021,"9,120.00",S,86101800,In service training and manpower development
"Ministry of Housing, Communities and Local Government",Homes England,OTHER LTF LOAN ADDITIONS,Investment,BL CW Developments Limited,27/07/2021,"1,152,945.43",S,None,Loans
"Ministry of Housing, Communities and Local Government",Homes England,ST FUND LOANS ADDITIONS,Investment,BRYNKINALT FARMING LTD,01/07/2021,"333,852.00",L,None,Loans
"Ministry of Housing, Communities and Local Government",Homes England,ST FUND LOANS ADDITIONS,Investment,BUCHANAN ESTATES LIMITED,21/07/2021,"85,808.04",S,None,Loans
"Ministry of Housing, Communities and Local Government",Homes England,ESTATE GENERAL MAINTENANCE,Development,NJL BOXGREEN,12/07/2021,"1,693.50",S,72101500,Building maintenance and repair services
"Ministry of Housing, Communities and Local Government",Homes England,ESTATE GENERAL MAINTENANCE,Development,NJL BOXGREEN,12/07/2021,780.00,S,72101500,Building maintenance and repair services
"Ministry of Housing, Communities and Local Government",Homes England,ST FUND LOANS ADDITIONS,Investment,BROADLEAF NORWICH ROAD LIMITED,09/07/2021,"175,552.07",L,None,Loans
"Ministry of Housing, Communities and Local Government",Homes England,ST FUND LOANS ADDITIONS,Investment,BARCLAYS BANK PLC,06/07/2021,659.93,L,None,Loans
"Ministry of Housing, Communities and Local Government",Homes England,ST FUND LOANS ADDITIONS,Investment,BE21 LTD,07/07/2021,"104,729.00",L,None,Loans
"Ministry of Housing, Communities and Local Government",Homes England,MISC PROFESSIONAL FEES,Investment,BOSTON HALE LTD,16/07/2021,"74,277.84",S,80111600,Temporary personnel services
"Ministry of Housing, Communities and Local Government",Homes England,ST FUND LOANS ADDITIONS,Investment,BELFIELD KINGSKERSWELL LLP,09/07/2021,"176,000.00",S,None,Loans
"Ministry of Housing, Communities and Local Government",Homes England,LT FUND LOANS (PS) ADDITIONS,Investment,BXS LIMITED PARTNERSHIP,02/07/2021,"3,286,261.57",M,None,Loans
"Ministry of Housing, Communities and Local Government",Homes England,ESTATE GENERAL MAINTENANCE,Development,BASILDON RUGBY FOOTBALL CLUB,08/07/2021,"3,246.00",S,72101500,Building maintenance and repair services
"Ministry of Housing, Communities and Local Government",Homes England,VALUATION FEES,Development,BNP PARIBAS REAL ESTATE,02/07/2021,"5,016.00",L,80131800,Real estate management services
"Ministry of Housing, Communities and Local Government",Homes England,PROF FEES LOANS CAPITALISED,Investment,BNP PARIBAS REAL ESTATE,01/07/2021,"1,440.00",L,81101500,Civil Engineering
"Ministry of Housing, Communities and Local Government",Homes England,PROF FEES LOANS CAPITALISED,Investment,BNP PARIBAS REAL ESTATE,22/07/2021,"1,200.00",L,80131800,Real estate management services
"Ministry of Housing, Communities and Local Government",Homes England,RI - MONIITORING SURVEYOR FEES,Investment,BNP PARIBAS REAL ESTATE,02/07/2021,"1,170.00",L,81101500,Civil Engineering
"Ministry of Housing, Communities and Local Government",Homes England,RI - MONIITORING SURVEYOR FEES,Investment,BNP PARIBAS REAL ESTATE,28/07/2021,"1,170.00",L,81101500,Civil Engineering
"Ministry of Housing, Communities and Local Government",Homes England,RI - MONIITORING SURVEYOR FEES,Investment,BNP PARIBAS REAL ESTATE,08/07/2021,"1,140.00",L,81101500,Civil Engineering
"Ministry of Housing, Communities and Local Government",Homes England,RI - MONIITORING SURVEYOR FEES,Investment,BNP PARIBAS REAL ESTATE,20/07/2021,"1,140.00",L,81101500,Civil Engineering
"Ministry of Housing, Communities and Local Government",Homes England,RI - MONIITORING SURVEYOR FEES,Investment,BNP PARIBAS REAL ESTATE,12/07/2021,"1,110.00",L,81101500,Civil Engineering
"Ministry of Housing, Communities and Local Government",Homes England,RI - MONIITORING SURVEYOR FEES,Investment,BNP PARIBAS REAL ESTATE,02/07/2021,"1,080.00",L,81101500,Civil Engineering
"Ministry of Housing, Communities and Local Government",Homes England,PROF FEES LOANS CAPITALISED,Investment,BNP PARIBAS REAL ESTATE,02/07/2021,"1,080.00",L,81101500,Civil Engineering
"Ministry of Housing, Communities and Local Government",Homes England,RI - MONIITORING SURVEYOR FEES,Investment,BNP PARIBAS REAL ESTATE,27/07/2021,"1,050.00",L,81101500,Civil Engineering
"Ministry of Housing, Communities and Local Government",Homes England,RI - MONIITORING SURVEYOR FEES,Investment,BNP PARIBAS REAL ESTATE,01/07/2021,"1,020.00",L,81101500,Civil Engineering
"Ministry of Housing, Communities and Local Government",Homes England,RI - MONIITORING SURVEYOR FEES,Investment,BNP PARIBAS REAL ESTATE,01/07/2021,"1,020.00",L,81101500,Civil Engineering
"Ministry of Housing, Communities and Local Government",Homes England,RI - MONIITORING SURVEYOR FEES,Investment,BNP PARIBAS REAL ESTATE,01/07/2021,"1,020.00",L,81101500,Civil Engineering
"Ministry of Housing, Communities and Local Government",Homes England,RI - MONIITORING SURVEYOR FEES,Investment,BNP PARIBAS REAL ESTATE,01/07/2021,"1,020.00",L,81101500,Civil Engineering
"Ministry of Housing, Communities and Local Government",Homes England,RI - MONIITORING SURVEYOR FEES,Investment,BNP PARIBAS REAL ESTATE,01/07/2021,"1,020.00",L,81101500,Civil Engineering
"Ministry of Housing, Communities and Local Government",Homes England,RI - MONIITORING SURVEYOR FEES,Investment,BNP PARIBAS REAL ESTATE,20/07/2021,"1,020.00",L,81101500,Civil Engineering
"Ministry of Housing, Communities and Local Government",Homes England,RI - MONIITORING SURVEYOR FEES,Investment,BNP PARIBAS REAL ESTATE,20/07/2021,"1,020.00",L,81101500,Civil Engineering
"Ministry of Housing, Communities and Local Government",Homes England,RI - MONIITORING SURVEYOR FEES,Investment,BNP PARIBAS REAL ESTATE,20/07/2021,"1,020.00",L,81101500,Civil Engineering
"Ministry of Housing, Communities and Local Government",Homes England,RI - MONIITORING SURVEYOR FEES,Investment,BNP PARIBAS REAL ESTATE,20/07/2021,"1,020.00",L,81101500,Civil Engineering
"Ministry of Housing, Communities and Local Government",Homes England,RI - MONIITORING SURVEYOR FEES,Investment,BNP PARIBAS REAL ESTATE,21/07/2021,"1,020.00",L,81101500,Civil Engineering
"Ministry of Housing, Communities and Local Government",Homes England,RI - MONIITORING SURVEYOR FEES,Investment,BNP PARIBAS REAL ESTATE,01/07/2021,960.00,L,81101500,Civil Engineering
"Ministry of Housing, Communities and Local Government",Homes England,RI - MONIITORING SURVEYOR FEES,Investment,BNP PARIBAS REAL ESTATE,01/07/2021,960.00,L,81101500,Civil Engineering
"Ministry of Housing, Communities and Local Government",Homes England,RI - MONIITORING SURVEYOR FEES,Investment,BNP PARIBAS REAL ESTATE,01/07/2021,840.00,L,81101500,Civil Engineering
"Ministry of Housing, Communities and Local Government",Homes England,RI - MONIITORING SURVEYOR FEES,Investment,BNP PARIBAS REAL ESTATE,01/07/2021,840.00,L,81101500,Civil Engineering
"Ministry of Housing, Communities and Local Government",Homes England,RI - MONIITORING SURVEYOR FEES,Investment,BNP PARIBAS REAL ESTATE,01/07/2021,840.00,L,81101500,Civil Engineering
"Ministry of Housing, Communities and Local Government",Homes England,RI - MONIITORING SURVEYOR FEES,Investment,BNP PARIBAS REAL ESTATE,06/07/2021,840.00,L,81101500,Civil Engineering
"Ministry of Housing, Communities and Local Government",Homes England,RI - MONIITORING SURVEYOR FEES,Investment,BNP PARIBAS REAL ESTATE,06/07/2021,840.00,L,81101500,Civil Engineering
"Ministry of Housing, Communities and Local Government",Homes England,RI - MONIITORING SURVEYOR FEES,Investment,BNP PARIBAS REAL ESTATE,06/07/2021,840.00,L,81101500,Civil Engineering
"Ministry of Housing, Communities and Local Government",Homes England,RI - MONIITORING SURVEYOR FEES,Investment,BNP PARIBAS REAL ESTATE,06/07/2021,840.00,L,81101500,Civil Engineering
"Ministry of Housing, Communities and Local Government",Homes England,RI - MONIITORING SURVEYOR FEES,Investment,BNP PARIBAS REAL ESTATE,08/07/2021,840.00,L,81101500,Civil Engineering
"Ministry of Housing, Communities and Local Government",Homes England,RI - MONIITORING SURVEYOR FEES,Investment,BNP PARIBAS REAL ESTATE,14/07/2021,840.00,L,81101500,Civil Engineering
"Ministry of Housing, Communities and Local Government",Homes England,RI - MONIITORING SURVEYOR FEES,Investment,BNP PARIBAS REAL ESTATE,22/07/2021,840.00,L,81101500,Civil Engineering
"Ministry of Housing, Communities and Local Government",Homes England,RI - MONIITORING SURVEYOR FEES,Investment,BNP PARIBAS REAL ESTATE,22/07/2021,840.00,L,81101500,Civil Engineering
"Ministry of Housing, Communities and Local Government",Homes England,RI - MONIITORING SURVEYOR FEES,Development,BNP PARIBAS REAL ESTATE,01/07/2021,780.00,L,81101500,Civil Engineering
"Ministry of Housing, Communities and Local Government",Homes England,RI - MONIITORING SURVEYOR FEES,Investment,BNP PARIBAS REAL ESTATE,06/07/2021,780.00,L,81101500,Civil Engineering
"Ministry of Housing, Communities and Local Government",Homes England,RI - MONIITORING SURVEYOR FEES,Investment,BNP PARIBAS REAL ESTATE,01/07/2021,720.00,L,81101500,Civil Engineering
"Ministry of Housing, Communities and Local Government",Homes England,RI - MONIITORING SURVEYOR FEES,Investment,BNP PARIBAS REAL ESTATE,06/07/2021,720.00,L,81101500,Civil Engineering
"Ministry of Housing, Communities and Local Government",Homes England,RI - MONIITORING SURVEYOR FEES,Investment,BNP PARIBAS REAL ESTATE,06/07/2021,720.00,L,81101500,Civil Engineering
"Ministry of Housing, Communities and Local Government",Homes England,RI - MONIITORING SURVEYOR FEES,Investment,BNP PARIBAS REAL ESTATE,08/07/2021,720.00,L,81101500,Civil Engineering
"Ministry of Housing, Communities and Local Government",Homes England,RI - MONIITORING SURVEYOR FEES,Investment,BNP PARIBAS REAL ESTATE,05/07/2021,600.00,L,81101500,Civil Engineering
"Ministry of Housing, Communities and Local Government",Homes England,RI - MONIITORING SURVEYOR FEES,Investment,BNP PARIBAS REAL ESTATE,02/07/2021,420.00,L,81101500,Civil Engineering
"Ministry of Housing, Communities and Local Government",Homes England,LANDSCAPE MAINT-BUILT ESTATE,Development,BROOKFIELD CONTRACTING & FARMING LTD,28/07/2021,930.93,S,72102900,Facility maintenance and repair services
"Ministry of Housing, Communities and Local Government",Homes England,ESTATE GENERAL MAINTENANCE,Development,BROOKFIELD CONTRACTING & FARMING LTD,09/07/2021,321.99,S,72101500,Building maintenance and repair services
"Ministry of Housing, Communities and Local Government",Homes England,LEGAL FEES (PROGRAMME - RDEL),MPP,BOND DICKINSON LLP,05/07/2021,"10,890.60",L,80121600,Business law services
"Ministry of Housing, Communities and Local Government",Homes England,LEGAL FEES (PROGRAMME - RDEL),Investment,BOND DICKINSON LLP,06/07/2021,"9,244.20",L,80121600,Business law services
"Ministry of Housing, Communities and Local Government",Homes England,LEGAL FEES (PROGRAMME - RDEL),Development,BOND DICKINSON LLP,27/07/2021,"8,700.00",L,80121600,Business law services
"Ministry of Housing, Communities and Local Government",Homes England,DISPOSAL FEES - LEGAL,Development,BOND DICKINSON LLP,01/07/2021,"8,280.53",L,80121600,Business law services
"Ministry of Housing, Communities and Local Government",Homes England,DISPOSAL FEES - LEGAL,MPP,BOND DICKINSON LLP,02/07/2021,"5,914.80",L,80121600,Business law services
"Ministry of Housing, Communities and Local Government",Homes England,DISPOSAL FEES - LEGAL,MPP,BOND DICKINSON LLP,07/07/2021,"5,847.54",L,80121600,Business law services
"Ministry of Housing, Communities and Local Government",Homes England,DISPOSAL FEES - LEGAL,MPP,BOND DICKINSON LLP,26/07/2021,"4,800.00",L,80121600,Business law services
"Ministry of Housing, Communities and Local Government",Homes England,DISPOSAL FEES - LEGAL,MPP,BOND DICKINSON LLP,07/07/2021,"3,506.00",L,80121600,Business law services
"Ministry of Housing, Communities and Local Government",Homes England,DISPOSAL FEES - LEGAL,MPP,BOND DICKINSON LLP,02/07/2021,"2,989.80",L,80121600,Business law services
"Ministry of Housing, Communities and Local Government",Homes England,LEGAL FEES (PROGRAMME - RDEL),Development,BOND DICKINSON LLP,02/07/2021,"2,740.98",L,80121600,Business law services
"Ministry of Housing, Communities and Local Government",Homes England,LEGAL FEES (PROGRAMME - RDEL),MPP,BOND DICKINSON LLP,15/07/2021,"2,707.20",L,80121600,Business law services
"Ministry of Housing, Communities and Local Government",Homes England,LEGAL FEES (PROGRAMME - RDEL),Investment,BOND DICKINSON LLP,09/07/2021,"2,359.20",L,80121600,Business law services
"Ministry of Housing, Communities and Local Government",Homes England,LEGAL FEES (PROGRAMME - RDEL),Investment,BOND DICKINSON LLP,05/07/2021,"1,807.20",L,80121600,Business law services
"Ministry of Housing, Communities and Local Government",Homes England,ESTATE GENERAL MAINTENANCE,Development,G BURLEY & SONS LTD,12/07/2021,420.00,L,72101500,Building maintenance and repair services
"Ministry of Housing, Communities and Local Government",Homes England,ESTATE GENERAL MAINTENANCE,MPP,G BURLEY & SONS LTD,06/07/2021,292.40,L,72101500,Building maintenance and repair services
"Ministry of Housing, Communities and Local Government",Homes England,LANDSCAPE MAINT-BUILT ESTATE,Development,G BURLEY & SONS LTD,06/07/2021,259.99,L,72102900,Facility maintenance and repair services
"Ministry of Housing, Communities and Local Government",Homes England,MANAGEMENT COSTS,Development,BERRYS,27/07/2021,"4,600.00",M,80131800,Real estate management services
"Ministry of Housing, Communities and Local Government",Homes England,MANAGEMENT COSTS,MPP,BERRYS,06/07/2021,"2,590.80",M,80131800,Real estate management services
"Ministry of Housing, Communities and Local Government",Homes England,MANAGEMENT COSTS,Development,BERRYS,27/07/2021,864.00,M,80131800,Real estate management services
"Ministry of Housing, Communities and Local Government",Homes England,MISC PROFESSIONAL FEES,Development,BERRYS,05/07/2021,600.00,M,80131800,Real estate management services
"Ministry of Housing, Communities and Local Government",Homes England,MISC PROFESSIONAL FEES,Development,BERRYS,08/07/2021,486.00,M,80131800,Real estate management services
"Ministry of Housing, Communities and Local Government",Homes England,CAP GRNTS TO PRIVATE SECTOR,Investment,THE COTTON WORKS MANAGEMENT COMPANY LIMITED,23/07/2021,"1,916,341.13",S,None,Grants
"Ministry of Housing, Communities and Local Government",Homes England,CAP GRNTS PUB SECTOR EXCL L A,Investment,CENTRICK LIMITED,16/07/2021,"4,170,206.73",S,None,Grants
"Ministry of Housing, Communities and Local Government",Homes England,CAP GRNTS TO PRIVATE SECTOR,Investment,J H WATSON PROPERTY MANAGEMENT LIMITED,06/07/2021,"93,952.00",S,None,Grants
"Ministry of Housing, Communities and Local Government",Homes England,CAP GRNTS TO PRIVATE SECTOR,Investment,LIV GROUP LIMITED,27/07/2021,"423,658.00",M,None,Grants
"Ministry of Housing, Communities and Local Government",Homes England,CAP GRNTS TO PRIVATE SECTOR,Investment,SCANLANS PROPERTY MANAGEMENT LLP,16/07/2021,"1,794,350.00",S,None,Grants
"Ministry of Housing, Communities and Local Government",Homes England,CAP GRNTS TO PRIVATE SECTOR,Investment,THE POINT BUILDING RTM LIMITED,07/07/2021,"77,873.00",S,None,Grants
"Ministry of Housing, Communities and Local Government",Homes England,CAP GRNTS TO PRIVATE SECTOR,Investment,DICKINSON HARRISON (RBM) LTD T/A HUNTERS RBM,15/07/2021,"266,383.00",L,None,Grants
"Ministry of Housing, Communities and Local Government",Homes England,CAP GRNTS TO PRIVATE SECTOR,Investment,GREEN HOUSE GROUND RENTS LIMITED,01/07/2021,"529,771.00",S,None,Grants
"Ministry of Housing, Communities and Local Government",Homes England,CAP GRNTS TO PRIVATE SECTOR,Investment,Y&Y MANAGEMENT LIMITED,15/07/2021,"55,633.00",M,None,Grants
"Ministry of Housing, Communities and Local Government",Homes England,CAP GRNTS TO PRIVATE SECTOR,Investment,LIVERPOOL QUAYS MANAGEMENT LIMITED,05/07/2021,"289,202.00",S,None,Grants
"Ministry of Housing, Communities and Local Government",Homes England,CAP GRNTS TO PRIVATE SECTOR,Investment,BNS LIMITED,26/07/2021,"336,294.00",S,None,Grants
"Ministry of Housing, Communities and Local Government",Homes England,PACKAGE MAINTENANCE & SUBSCRIP,Chief Executive Office,ADVANCED BUSINESS SOLUTIONS,15/07/2021,"99,825.24",S,81112200,Software Maintenance and Support
"Ministry of Housing, Communities and Local Government",Homes England,MISC PROFESSIONAL FEES,MPP,CAMPBELL REITH,13/07/2021,"82,854.26",M,77101500,Environmental auditing
"Ministry of Housing, Communities and Local Government",Homes England,MASTERPLANNING FEES,MPP,CAMPBELL REITH,13/07/2021,"37,054.30",M,81101500,Civil Engineering
"Ministry of Housing, Communities and Local Government",Homes England,OTHER PROFESSIONAL FEES,MPP,CAMPBELL REITH,14/07/2021,"24,218.50",M,80131800,Real estate management services
"Ministry of Housing, Communities and Local Government",Homes England,MASTERPLANNING FEES,MPP,CAMPBELL REITH,05/07/2021,"17,121.02",M,81101500,Civil Engineering
"Ministry of Housing, Communities and Local Government",Homes England,MISC PROFESSIONAL FEES,Development,CAMPBELL REITH,06/07/2021,"12,254.40",M,80131800,Real estate management services
"Ministry of Housing, Communities and Local Government",Homes England,OTHER PROFESSIONAL FEES,MPP,CAMPBELL REITH,15/07/2021,"6,404.06",M,80131800,Real estate management services
"Ministry of Housing, Communities and Local Government",Homes England,PLANNING APPLICATIONS,MPP,CAMPBELL REITH,13/07/2021,"4,200.00",M,80131800,Real estate management services
"Ministry of Housing, Communities and Local Government",Homes England,MISC PROFESSIONAL FEES,MPP,CAMPBELL REITH,02/07/2021,"3,418.50",M,77101800,Environmental Auditing
"Ministry of Housing, Communities and Local Government",Homes England,ENGINEERING FEES,MPP,CAMPBELL REITH,15/07/2021,"3,132.00",M,81101500,Civil Engineering
"Ministry of Housing, Communities and Local Government",Homes England,PLANNING APPLICATIONS,Development,CAMPBELL REITH,14/07/2021,"2,580.00",M,80131800,Real estate management services
"Ministry of Housing, Communities and Local Government",Homes England,RI - MONIITORING SURVEYOR FEES,Investment,CAMPBELL REITH,02/07/2021,"2,280.00",M,81101500,Civil Engineering
"Ministry of Housing, Communities and Local Government",Homes England,RI - MONIITORING SURVEYOR FEES,Investment,CAMPBELL REITH,22/07/2021,"2,280.00",M,81101500,Civil Engineering
"Ministry of Housing, Communities and Local Government",Homes England,ENGINEERING FEES,Development,CAMPBELL REITH,14/07/2021,"1,860.00",M,81101500,Civil Engineering
"Ministry of Housing, Communities and Local Government",Homes England,OTHER PROFESSIONAL FEES,MPP,CAMPBELL REITH,28/07/2021,"1,714.42",M,80131800,Real estate management services
"Ministry of Housing, Communities and Local Government",Homes England,ENGINEERING FEES,Development,CAMPBELL REITH,23/07/2021,"1,416.00",M,81101500,Civil Engineering
"Ministry of Housing, Communities and Local Government",Homes England,RI - MONIITORING SURVEYOR FEES,Investment,CAMPBELL REITH,08/07/2021,"1,320.00",M,81101500,Civil Engineering
"Ministry of Housing, Communities and Local Government",Homes England,RI - MONIITORING SURVEYOR FEES,Investment,CAMPBELL REITH,26/07/2021,"1,320.00",M,81101500,Civil Engineering
"Ministry of Housing, Communities and Local Government",Homes England,RI - MONIITORING SURVEYOR FEES,Investment,CAMPBELL REITH,01/07/2021,"1,302.00",M,81101500,Civil Engineering
"Ministry of Housing, Communities and Local Government",Homes England,RI - MONIITORING SURVEYOR FEES,Investment,CAMPBELL REITH,02/07/2021,"1,302.00",M,81101500,Civil Engineering
"Ministry of Housing, Communities and Local Government",Homes England,RI - MONIITORING SURVEYOR FEES,Investment,CAMPBELL REITH,26/07/2021,"1,302.00",M,81101500,Civil Engineering
"Ministry of Housing, Communities and Local Government",Homes England,RI - MONIITORING SURVEYOR FEES,Investment,CAMPBELL REITH,28/07/2021,"1,302.00",M,81101500,Civil Engineering
"Ministry of Housing, Communities and Local Government",Homes England,RI - MONIITORING SURVEYOR FEES,Investment,CAMPBELL REITH,22/07/2021,"1,260.00",M,81101500,Civil Engineering
"Ministry of Housing, Communities and Local Government",Homes England,OTHER PROFESSIONAL FEES,MPP,CAMPBELL REITH,05/07/2021,"1,246.88",M,80131800,Real estate management services
"Ministry of Housing, Communities and Local Government",Homes England,ENGINEERING CONSULTANTS,Development,CAMPBELL REITH,09/07/2021,630.00,M,81101500,Civil Engineering
"Ministry of Housing, Communities and Local Government",Homes England,PLANNING APPLICATIONS,Development,CAMPBELL REITH,14/07/2021,288.00,M,80131800,Real estate management services
"Ministry of Housing, Communities and Local Government",Homes England,VALUATION FEES,Development,CARTER JONAS,14/07/2021,"9,000.00",L,80131800,Real estate management services
"Ministry of Housing, Communities and Local Government",Homes England,RI - SITE VALUATION FEES,Investment,CARTER JONAS,20/07/2021,"9,000.00",L,80131800,Real estate management services
"Ministry of Housing, Communities and Local Government",Homes England,PROPERTY SERVICES,Development,CARTER JONAS,14/07/2021,"5,100.00",L,80131800,Real estate management services
"Ministry of Housing, Communities and Local Government",Homes England,OTHER PROFESSIONAL FEES,MPP,CARTER JONAS,08/07/2021,"4,904.69",L,80131800,Real estate management services
"Ministry of Housing, Communities and Local Government",Homes England,PROPERTY SERVICES,Development,CARTER JONAS,01/07/2021,"4,196.10",L,80131800,Real estate management services
"Ministry of Housing, Communities and Local Government",Homes England,PROPERTY SERVICES,Development,CARTER JONAS,28/07/2021,"4,095.00",L,80131800,Real estate management services
"Ministry of Housing, Communities and Local Government",Homes England,MISC PROFESSIONAL FEES,Development,CARTER JONAS,08/07/2021,"2,400.00",L,80131800,Real estate management services
"Ministry of Housing, Communities and Local Government",Homes England,VALUATION FEES,Development,CARTER JONAS,02/07/2021,"2,319.00",L,80131800,Real estate management services
"Ministry of Housing, Communities and Local Government",Homes England,VALUATION FEES,Development,CARTER JONAS,02/07/2021,"1,800.00",L,80131800,Real estate management services
"Ministry of Housing, Communities and Local Government",Homes England,RI - MONIITORING SURVEYOR FEES,Investment,CARTER JONAS,09/07/2021,"1,140.00",L,81101500,Civil Engineering
"Ministry of Housing, Communities and Local Government",Homes England,ENGINEERING FEES,Development,CADENT GAS LIMITED,20/07/2021,"1,710.00",L,81101500,Civil Engineering
"Ministry of Housing, Communities and Local Government",Homes England,BUILDINGS-GAS,Development,CORONA ENERGY,27/07/2021,"1,256.85",L,83101600,Oil and gas utilities
"Ministry of Housing, Communities and Local Government",Homes England,BUILDINGS-GAS,Development,CORONA ENERGY,14/07/2021,352.16,L,83101600,Oil and gas utilities
"Ministry of Housing, Communities and Local Government",Homes England,BUILDINGS-GAS,Development,CORONA ENERGY,14/07/2021,350.02,L,83101600,Oil and gas utilities
"Ministry of Housing, Communities and Local Government",Homes England,GAS,Development,CORONA ENERGY,14/07/2021,349.09,L,83101600,Oil and gas utilities
"Ministry of Housing, Communities and Local Government",Homes England,BUILDINGS-GAS,Development,CORONA ENERGY,21/07/2021,341.12,L,83101600,Oil and gas utilities
"Ministry of Housing, Communities and Local Government",Homes England,BUILDINGS-GAS,Development,CORONA ENERGY,21/07/2021,341.12,L,83101600,Oil and gas utilities
"Ministry of Housing, Communities and Local Government",Homes England,BUILDINGS-GAS,Development,CORONA ENERGY,21/07/2021,341.12,L,83101600,Oil and gas utilities
"Ministry of Housing, Communities and Local Government",Homes England,BUILDINGS-GAS,Development,CORONA ENERGY,21/07/2021,341.12,L,83101600,Oil and gas utilities
"Ministry of Housing, Communities and Local Government",Homes England,BUILDINGS-GAS,Development,CORONA ENERGY,21/07/2021,341.12,L,83101600,Oil and gas utilities
"Ministry of Housing, Communities and Local Government",Homes England,BUILDINGS-GAS,Development,CORONA ENERGY,21/07/2021,341.12,L,83101600,Oil and gas utilities
"Ministry of Housing, Communities and Local Government",Homes England,BUILDINGS-GAS,Development,CORONA ENERGY,21/07/2021,341.12,L,83101600,Oil and gas utilities
"Ministry of Housing, Communities and Local Government",Homes England,BUILDINGS-GAS,Development,CORONA ENERGY,21/07/2021,340.47,L,83101600,Oil and gas utilities
"Ministry of Housing, Communities and Local Government",Homes England,BUILDINGS-GAS,Development,CORONA ENERGY,21/07/2021,330.12,L,83101600,Oil and gas utilities
"Ministry of Housing, Communities and Local Government",Homes England,BUILDINGS-GAS,Development,CORONA ENERGY,21/07/2021,330.12,L,83101600,Oil and gas utilities
"Ministry of Housing, Communities and Local Government",Homes England,BUILDINGS-GAS,Development,CORONA ENERGY,21/07/2021,330.12,L,83101600,Oil and gas utilities
"Ministry of Housing, Communities and Local Government",Homes England,BUILDINGS-GAS,Development,CORONA ENERGY,21/07/2021,330.12,L,83101600,Oil and gas utilities
"Ministry of Housing, Communities and Local Government",Homes England,BUILDINGS-GAS,Development,CORONA ENERGY,21/07/2021,329.49,L,83101600,Oil and gas utilities
"Ministry of Housing, Communities and Local Government",Homes England,BUILDINGS-GAS,Development,CORONA ENERGY,21/07/2021,329.49,L,83101600,Oil and gas utilities
"Ministry of Housing, Communities and Local Government",Homes England,BUILDINGS-GAS,Development,CORONA ENERGY,14/07/2021,324.88,L,83101600,Oil and gas utilities
"Ministry of Housing, Communities and Local Government",Homes England,BUILDINGS-GAS,Development,CORONA ENERGY,21/07/2021,308.11,L,83101600,Oil and gas utilities
"Ministry of Housing, Communities and Local Government",Homes England,BUILDINGS-GAS,Development,CORONA ENERGY,14/07/2021,306.96,L,83101600,Oil and gas utilities
"Ministry of Housing, Communities and Local Government",Homes England,ST FUND LOANS ADDITIONS,Development,CHILDWALL HOMES LIMITED,14/07/2021,"56,252.89",S,None,Loans
"Ministry of Housing, Communities and Local Government",Homes England,ESTATE GENERAL MAINTENANCE,Development,C A STAMP GROUNDS & AGRICULTURE,15/07/2021,420.00,S,72101500,Building maintenance and repair services
"Ministry of Housing, Communities and Local Government",Homes England,ST FUND LOANS ADDITIONS,Investment,CREATE DEVELOPMENTS (LONGRIDGE) LTD,06/07/2021,"236,186.00",L,None,Loans
"Ministry of Housing, Communities and Local Government",Homes England,DATA CENTRE,Chief Executive Office,CROWN HOSTING DATA CENTRES LIMITED,06/07/2021,"2,717.64",S,81112000,Data Services
"Ministry of Housing, Communities and Local Government",Homes England,DATA CENTRE,Chief Executive Office,CROWN HOSTING DATA CENTRES LIMITED,06/07/2021,"1,860.00",S,81112000,Data Services
"Ministry of Housing, Communities and Local Government",Homes England,DATA CENTRE,Chief Executive Office,CROWN HOSTING DATA CENTRES LIMITED,07/07/2021,"1,222.93",S,81112000,Data Services
"Ministry of Housing, Communities and Local Government",Homes England,DATA CENTRE,Chief Executive Office,CROWN HOSTING DATA CENTRES LIMITED,06/07/2021,657.74,S,81112000,Data Services
"Ministry of Housing, Communities and Local Government",Homes England,L&OD STRATEGIC - HR USE ONLY,Corporate Resources,CATH BROWN CONSULTANCY,06/07/2021,"3,060.00",S,86101800,In service training and manpower development
"Ministry of Housing, Communities and Local Government",Homes England,L&OD STRATEGIC - HR USE ONLY,Corporate Resources,CATH BROWN CONSULTANCY,05/07/2021,"3,000.00",S,86101800,In service training and manpower development
"Ministry of Housing, Communities and Local Government",Homes England,L&OD STRATEGIC - HR USE ONLY,Corporate Resources,CATH BROWN CONSULTANCY,20/07/2021,"1,500.00",S,86101800,In service training and manpower development
"Ministry of Housing, Communities and Local Government",Homes England,L&OD STRATEGIC - HR USE ONLY,Corporate Resources,CATH BROWN CONSULTANCY,21/07/2021,"1,020.00",S,86101800,In service training and manpower development
"Ministry of Housing, Communities and Local Government",Homes England,MISC PROFESSIONAL FEES,MPP,CREATING EXCELLENCE LTD,16/07/2021,"4,740.00",S,80131800,Real estate management services
"Ministry of Housing, Communities and Local Government",Homes England,ST FUND LOANS ADDITIONS,Investment,CAMPBELL HOMES DEVELOPMENTS LIMITED,27/07/2021,"82,424.00",L,None,Loans
"Ministry of Housing, Communities and Local Government",Homes England,ST FUND LOANS ADDITIONS,Investment,C&M CONTRACTORS (MANCHESTER) LTD,30/07/2021,"53,687.68",S,None,Loans
"Ministry of Housing, Communities and Local Government",Homes England,TRAINING COURSES & CONFERENCES,Corporate Resources,CIVIL SERVICE COLLEGE LTD,27/07/2021,"1,800.00",S,86101800,In service training and manpower development
"Ministry of Housing, Communities and Local Government",Homes England,LAND REMEDIATION,Development,CAMBRIDGE ARCHAEOLOGY UNIT,30/07/2021,"22,311.00",L,72141500,Land preparation services
"Ministry of Housing, Communities and Local Government",Homes England,PROF FEES LOANS CAPITALISED,Investment,COLLIERS INTERNATIONAL PROPERTY CONSULTANTS,01/07/2021,"2,100.00",L,81101500,Civil Engineering
"Ministry of Housing, Communities and Local Government",Homes England,PROF FEES LOANS CAPITALISED,Investment,COLLIERS INTERNATIONAL PROPERTY CONSULTANTS,01/07/2021,"2,040.00",L,81101500,Civil Engineering
"Ministry of Housing, Communities and Local Government",Homes England,RI - MONIITORING SURVEYOR FEES,Investment,COLLIERS INTERNATIONAL PROPERTY CONSULTANTS,06/07/2021,"1,320.00",L,81101500,Civil Engineering
"Ministry of Housing, Communities and Local Government",Homes England,RI - MONIITORING SURVEYOR FEES,Investment,COLLIERS INTERNATIONAL PROPERTY CONSULTANTS,02/07/2021,900.00,L,81101500,Civil Engineering
"Ministry of Housing, Communities and Local Government",Homes England,RI - MONIITORING SURVEYOR FEES,Development,COLLIERS INTERNATIONAL PROPERTY CONSULTANTS,27/07/2021,900.00,L,81101500,Civil Engineering
"Ministry of Housing, Communities and Local Government",Homes England,RI - MONIITORING SURVEYOR FEES,Development,COLLIERS INTERNATIONAL PROPERTY CONSULTANTS,27/07/2021,900.00,L,81101500,Civil Engineering
"Ministry of Housing, Communities and Local Government",Homes England,RI - MONIITORING SURVEYOR FEES,Investment,COLLIERS INTERNATIONAL PROPERTY CONSULTANTS,02/07/2021,810.00,L,81101500,Civil Engineering
"Ministry of Housing, Communities and Local Government",Homes England,RI - MONIITORING SURVEYOR FEES,Investment,COLLIERS INTERNATIONAL PROPERTY CONSULTANTS,27/07/2021,810.00,L,81101500,Civil Engineering
"Ministry of Housing, Communities and Local Government",Homes England,RI - MONIITORING SURVEYOR FEES,Investment,COLLIERS INTERNATIONAL PROPERTY CONSULTANTS,27/07/2021,810.00,L,81101500,Civil Engineering
"Ministry of Housing, Communities and Local Government",Homes England,RI - MONIITORING SURVEYOR FEES,Development,COLLIERS INTERNATIONAL PROPERTY CONSULTANTS,29/07/2021,810.00,L,81101500,Civil Engineering
"Ministry of Housing, Communities and Local Government",Homes England,RI - MONIITORING SURVEYOR FEES,Development,COLLIERS INTERNATIONAL PROPERTY CONSULTANTS,29/07/2021,810.00,L,81101500,Civil Engineering
"Ministry of Housing, Communities and Local Government",Homes England,DISPOSAL FEES - LEGAL,Development,CLARKE WILLMOTT LLP,29/07/2021,"8,788.20",L,80121600,Business law services
"Ministry of Housing, Communities and Local Government",Homes England,DISPOSAL FEES - LEGAL,MPP,CLARKE WILLMOTT LLP,30/07/2021,"7,658.40",L,80121600,Business law services
"Ministry of Housing, Communities and Local Government",Homes England,DISPOSAL FEES - LEGAL,MPP,CLARKE WILLMOTT LLP,21/07/2021,900.00,L,80121600,Business law services
"Ministry of Housing, Communities and Local Government",Homes England,LEGAL FEES (PROGRAMME - RDEL),Development,CLARKE WILLMOTT LLP,02/07/2021,850.32,L,80121600,Business law services
"Ministry of Housing, Communities and Local Government",Homes England,LEGAL FEES (PROGRAMME - RDEL),Investment,CLARKE WILLMOTT LLP,26/07/2021,495.48,L,80121600,Business law services
"Ministry of Housing, Communities and Local Government",Homes England,LEGAL FEES (PROGRAMME - RDEL),Investment,CLARKE WILLMOTT LLP,30/07/2021,485.16,L,80121600,Business law services
"Ministry of Housing, Communities and Local Government",Homes England,LEGAL FEES (PROGRAMME - RDEL),Investment,CLARKE WILLMOTT LLP,06/07/2021,480.00,L,80121600,Business law services
"Ministry of Housing, Communities and Local Government",Homes England,CLEANING,Development,CHURCHILL CONTRACT SERVICES LTD,05/07/2021,"4,253.89",S,76111500,General building and office cleaining and maintenance services
"Ministry of Housing, Communities and Local Government",Homes England,CAP GRNTS TO LOCAL AUTHORITIES,Investment,CENTRAL BEDFORDSHIRE COUNCIL,29/07/2021,"617,185.00",G,None,Grants
"Ministry of Housing, Communities and Local Government",Homes England,OCCUPIED RATES,Development,CHESHIRE EAST BOROUGH COUNCIL,26/07/2021,"37,565.37",G,80131500,Lease and rental of property or building
"Ministry of Housing, Communities and Local Government",Homes England,MANAGEMENT COSTS,Development,C.M.A. (NEMESIS) LTD,28/07/2021,"2,394.00",S,80131800,Real estate management services
"Ministry of Housing, Communities and Local Government",Homes England,MANAGEMENT COSTS,Development,C.M.A. (NEMESIS) LTD,20/07/2021,390.00,S,80131800,Real estate management services
"Ministry of Housing, Communities and Local Government",Homes England,ESTATE GENERAL MAINTENANCE,Development,C.M.A. (NEMESIS) LTD,05/07/2021,369.60,S,72101500,Building maintenance and repair services
"Ministry of Housing, Communities and Local Government",Homes England,ESTATE GENERAL MAINTENANCE,Development,C.M.A. (NEMESIS) LTD,20/07/2021,369.60,S,72101500,Building maintenance and repair services
"Ministry of Housing, Communities and Local Government",Homes England,ESTATE GENERAL MAINTENANCE,Development,FRANK COOPER & SON LIMITED,20/07/2021,980.00,S,72101500,Building maintenance and repair services
"Ministry of Housing, Communities and Local Government",Homes England,SECONDED STAFF COSTS,Corporate Resources,CIVIL SERVICE RESOURCING,01/07/2021,"15,842.86",G,80101500,Business and corporate management consultation services 
"Ministry of Housing, Communities and Local Government",Homes England,TEAM MEETINGS,Development,THE CHESTERTON HOTEL,23/07/2021,544.10,S,90111600,Meeting facilities
"Ministry of Housing, Communities and Local Government",Homes England,OTHER PROFESSIONAL FEES,Development,CWC GROUP,19/07/2021,"667,167.28",M,None ,Contributions
"Ministry of Housing, Communities and Local Government",Homes England,BESPOKE DEVELOPMENT SUPPORT,Chief Executive Office,CORPORATE PROJECT SOLUTIONS LTD (CPS),06/07/2021,"3,300.00",M,80111600,Temporary personnel services
"Ministry of Housing, Communities and Local Government",Homes England,BUILDINGS-FIRE PREVENTION,MPP,C-ELECT ASSOCIATES LIMITED,02/07/2021,"1,565.94",S,92121700,Security systems services
"Ministry of Housing, Communities and Local Government",Homes England,EXTERNAL BUILDING MAINTENANCE,MPP,C-ELECT ASSOCIATES LIMITED,05/07/2021,588.00,S,72101500,Building maintenance and repair services
"Ministry of Housing, Communities and Local Government",Homes England,MANAGEMENT COSTS,Development,COBLANDS LANDSCAPES LIMITED,20/07/2021,642.46,S,80131800,Real estate management services
"Ministry of Housing, Communities and Local Government",Homes England,ST FUND LOANS ADDITIONS,Investment,CAPITAL & CENTRIC (ARCTIC) ltd,19/07/2021,"301,437.41",S,None,Loans
"Ministry of Housing, Communities and Local Government",Homes England,RI - SITE VALUATION FEES,Investment,CB RICHARD ELLIS,22/07/2021,"27,000.00",L,80131800,Real estate management services
"Ministry of Housing, Communities and Local Government",Homes England,RI - SITE VALUATION FEES,Investment,CB RICHARD ELLIS,22/07/2021,"20,400.00",L,80131800,Real estate management services
"Ministry of Housing, Communities and Local Government",Homes England,RI - MONIITORING SURVEYOR FEES,Investment,CB RICHARD ELLIS,22/07/2021,"5,880.00",L,81101500,Civil Engineering
"Ministry of Housing, Communities and Local Government",Homes England,PROPERTY SERVICES,MPP,CB RICHARD ELLIS,05/07/2021,"3,600.00",L,80131800,Real estate management services
"Ministry of Housing, Communities and Local Government",Homes England,RI - MONIITORING SURVEYOR FEES,Investment,CB RICHARD ELLIS,12/07/2021,"3,000.00",L,81101500,Civil Engineering
"Ministry of Housing, Communities and Local Government",Homes England,PROPERTY SERVICES,MPP,CB RICHARD ELLIS,05/07/2021,288.00,L,80131800,Real estate management services
"Ministry of Housing, Communities and Local Government",Homes England,ST FUND LOANS ADDITIONS,Investment,CLEANSLATE (HURSTBOURNE PRIORS) LTD,28/07/2021,"34,864.16",L,None,Loans
"Ministry of Housing, Communities and Local Government",Homes England,ST FUND LOANS ADDITIONS,Development,CHARDALE COUNTRY HOMES LIMITED,12/07/2021,"1,763.39",S,None,Loans
"Ministry of Housing, Communities and Local Government",Homes England,LT FUND LOANS (PS) ADDITIONS,Investment,CAMLAND HYTHE LIMITED,26/07/2021,"161,164.68",L,None,Loans
"Ministry of Housing, Communities and Local Government",Homes England,MISC PROFESSIONAL FEES,Corporate Allocations,CLEAR REVIEW LIMITED,28/07/2021,"29,940.00",S,43231500,Business function specific software
"Ministry of Housing, Communities and Local Government",Homes England,FENCE MAINTENANCE,Development,CHANNEL ENGINEERING LTD,05/07/2021,"2,628.00",S,72102900,Facility maintenance and repair services
"Ministry of Housing, Communities and Local Government",Homes England,FENCE MAINTENANCE,Development,CHANNEL ENGINEERING LTD,05/07/2021,"1,452.00",S,72102900,Facility maintenance and repair services
"Ministry of Housing, Communities and Local Government",Homes England,ESTATE GENERAL MAINTENANCE,Development,CHANNEL ENGINEERING LTD,21/07/2021,"1,101.60",S,72101500,Building maintenance and repair services
"Ministry of Housing, Communities and Local Government",Homes England,ESTATE GENERAL MAINTENANCE,MPP,CHANNEL ENGINEERING LTD,27/07/2021,810.00,S,72101500,Building maintenance and repair services
"Ministry of Housing, Communities and Local Government",Homes England,FENCE MAINTENANCE,Development,CHANNEL ENGINEERING LTD,21/07/2021,696.00,S,72102900,Facility maintenance and repair services
"Ministry of Housing, Communities and Local Government",Homes England,ESTATE GENERAL MAINTENANCE,Development,CHANNEL ENGINEERING LTD,21/07/2021,540.00,S,72101500,Building maintenance and repair services
"Ministry of Housing, Communities and Local Government",Homes England,ROADS AND CAR PARKS,Development,CHANNEL ENGINEERING LTD,21/07/2021,540.00,S,72101500,Building maintenance and repair services
"Ministry of Housing, Communities and Local Government",Homes England,ESTATE GENERAL MAINTENANCE,MPP,CHANNEL ENGINEERING LTD,27/07/2021,540.00,S,72101500,Building maintenance and repair services
"Ministry of Housing, Communities and Local Government",Homes England,ESTATE GENERAL MAINTENANCE,MPP,CHANNEL ENGINEERING LTD,27/07/2021,501.60,S,72101500,Building maintenance and repair services
"Ministry of Housing, Communities and Local Government",Homes England,ESTATE GENERAL MAINTENANCE,Development,CARTWRIGHT LANDSCAPES,20/07/2021,704.20,S,72101500,Building maintenance and repair services
"Ministry of Housing, Communities and Local Government",Homes England,ESTATE GENERAL MAINTENANCE,Development,CARTWRIGHT LANDSCAPES,22/07/2021,704.14,S,72101500,Building maintenance and repair services
"Ministry of Housing, Communities and Local Government",Homes England,PLANNED PREVENTATIVE MAINT CON,Development,ENGIE FM LIMITED,15/07/2021,"3,601.92",L,72102900,Facility maintenance and repair services
"Ministry of Housing, Communities and Local Government",Homes England,PLANNED PREVENTATIVE MAINT CON,Development,ENGIE FM LIMITED,27/07/2021,"2,140.63",L,72102900,Facility maintenance and repair services
"Ministry of Housing, Communities and Local Government",Homes England,FURNITURE & EQUIPMENT-MAINT,Development,ENGIE FM LIMITED,23/07/2021,"1,334.95",L,72102900,Facility maintenance and repair services
"Ministry of Housing, Communities and Local Government",Homes England,PLANNED PREVENTATIVE MAINT CON,Development,ENGIE FM LIMITED,09/07/2021,"1,131.14",L,72102900,Facility maintenance and repair services
"Ministry of Housing, Communities and Local Government",Homes England,ESTATE GENERAL MAINTENANCE,Development,ENGIE FM LIMITED,26/07/2021,906.00,L,72101500,Building maintenance and repair services
"Ministry of Housing, Communities and Local Government",Homes England,ESTATE GENERAL MAINTENANCE,Development,ENGIE FM LIMITED,26/07/2021,331.90,L,72101500,Building maintenance and repair services
"Ministry of Housing, Communities and Local Government",Homes England,LEGAL FEES (PROGRAMME - RDEL),Investment,MILLS & REEVE,23/07/2021,"28,538.33",L,80121600,Business law services
"Ministry of Housing, Communities and Local Government",Homes England,OTHER PROF FESS (NON-ASSET),Investment,MILLS & REEVE,23/07/2021,"9,807.00",L,80131800,Real estate management services
"Ministry of Housing, Communities and Local Government",Homes England,LEGAL FEES (PROGRAMME - CDEL),Development,MILLS & REEVE,06/07/2021,"2,731.20",L,80121600,Business law services
"Ministry of Housing, Communities and Local Government",Homes England,MISC PROFESSIONAL FEES,MPP,TETRA TECH ENVIRONMENT PLANNING TRANSPORT LTD,22/07/2021,"9,492.00",L,72101500,Building maintenance and repair services
"Ministry of Housing, Communities and Local Government",Homes England,MISC PROFESSIONAL FEES,Development,TETRA TECH ENVIRONMENT PLANNING TRANSPORT LTD,21/07/2021,"6,720.00",L,72101500,Building maintenance and repair services
"Ministry of Housing, Communities and Local Government",Homes England,PROPERTY SERVICES,Development,TETRA TECH ENVIRONMENT PLANNING TRANSPORT LTD,21/07/2021,"6,676.96",L,80131800,Real estate management services
"Ministry of Housing, Communities and Local Government",Homes England,ENGINEERING CONSULTANTS,MPP,TETRA TECH ENVIRONMENT PLANNING TRANSPORT LTD,21/07/2021,690.00,L,81101500,Civil Engineering
"Ministry of Housing, Communities and Local Government",Homes England,MANAGEMENT COSTS,Development,TETRA TECH ENVIRONMENT PLANNING TRANSPORT LTD,01/07/2021,660.00,L,80131800,Real estate management services
"Ministry of Housing, Communities and Local Government",Homes England,HEALTH & SAFETY SURVEYS,Development,TETRA TECH ENVIRONMENT PLANNING TRANSPORT LTD,06/07/2021,426.00,L,72101500,Building maintenance and repair services
"Ministry of Housing, Communities and Local Government",Homes England,DATA CENTRE,Chief Executive Office,OASIS UK NORTH LIMITED,13/07/2021,"1,020.16",L,81112000,Data Services
"Ministry of Housing, Communities and Local Government",Homes England,PROPERTY SERVICES,MPP,DRIVERS JONAS DELOITTE,02/07/2021,"77,220.86",L,80101600,Project management
"Ministry of Housing, Communities and Local Government",Homes England,PROPERTY SERVICES,MPP,DRIVERS JONAS DELOITTE,14/07/2021,"44,005.80",L,80101600,Project management
"Ministry of Housing, Communities and Local Government",Homes England,MANAGEMENT COSTS,Development,DB SURVEYS LTD,20/07/2021,"1,170.00",S,80131800,Real estate management services
"Ministry of Housing, Communities and Local Government",Homes England,MANAGEMENT COSTS,Development,DB SURVEYS LTD,20/07/2021,"1,170.00",S,80131800,Real estate management services
"Ministry of Housing, Communities and Local Government",Homes England,MISC PROFESSIONAL FEES,Investment,CUSHMAN & WAKEFIELD DEBENHAM TIE LEUNG,05/07/2021,"15,648.00",L,80131800,Real estate management services
"Ministry of Housing, Communities and Local Government",Homes England,PROPERTY SERVICES,Development,CUSHMAN & WAKEFIELD DEBENHAM TIE LEUNG,27/07/2021,"5,700.00",L,80131800,Real estate management services
"Ministry of Housing, Communities and Local Government",Homes England,PROPERTY SERVICES,Development,CUSHMAN & WAKEFIELD DEBENHAM TIE LEUNG,05/07/2021,"5,324.48",L,80131800,Real estate management services
"Ministry of Housing, Communities and Local Government",Homes England,VALUATION FEES,Development,CUSHMAN & WAKEFIELD DEBENHAM TIE LEUNG,02/07/2021,"4,200.00",L,80131800,Real estate management services
"Ministry of Housing, Communities and Local Government",Homes England,OTHER PROFESSIONAL FEES,Development,CUSHMAN & WAKEFIELD DEBENHAM TIE LEUNG,23/07/2021,"4,200.00",L,80131800,Real estate management services
"Ministry of Housing, Communities and Local Government",Homes England,PROPERTY SERVICES,Development,CUSHMAN & WAKEFIELD DEBENHAM TIE LEUNG,05/07/2021,"3,536.26",L,80131800,Real estate management services
"Ministry of Housing, Communities and Local Government",Homes England,PROPERTY SERVICES,Development,CUSHMAN & WAKEFIELD DEBENHAM TIE LEUNG,05/07/2021,"2,925.00",L,80131800,Real estate management services
"Ministry of Housing, Communities and Local Government",Homes England,RI - MONIITORING SURVEYOR FEES,Investment,CUSHMAN & WAKEFIELD DEBENHAM TIE LEUNG,16/07/2021,"2,880.00",L,81101500,Civil Engineering
"Ministry of Housing, Communities and Local Government",Homes England,PROPERTY SERVICES,MPP,CUSHMAN & WAKEFIELD DEBENHAM TIE LEUNG,05/07/2021,"2,829.18",L,80131800,Real estate management services
"Ministry of Housing, Communities and Local Government",Homes England,PROPERTY SERVICES,Development,CUSHMAN & WAKEFIELD DEBENHAM TIE LEUNG,05/07/2021,"2,449.85",L,80131800,Real estate management services
"Ministry of Housing, Communities and Local Government",Homes England,MANAGEMENT COSTS,Development,CUSHMAN & WAKEFIELD DEBENHAM TIE LEUNG,05/07/2021,"2,427.73",L,80131800,Real estate management services
"Ministry of Housing, Communities and Local Government",Homes England,PROPERTY SERVICES,MPP,CUSHMAN & WAKEFIELD DEBENHAM TIE LEUNG,09/07/2021,"2,390.10",L,80131800,Real estate management services
"Ministry of Housing, Communities and Local Government",Homes England,PROPERTY SERVICES,MPP,CUSHMAN & WAKEFIELD DEBENHAM TIE LEUNG,05/07/2021,"2,375.40",L,80131800,Real estate management services
"Ministry of Housing, Communities and Local Government",Homes England,PROPERTY SERVICES,Development,CUSHMAN & WAKEFIELD DEBENHAM TIE LEUNG,05/07/2021,"2,025.00",L,80131800,Real estate management services
"Ministry of Housing, Communities and Local Government",Homes England,PROPERTY SERVICES,Development,CUSHMAN & WAKEFIELD DEBENHAM TIE LEUNG,06/07/2021,"2,025.00",L,80131800,Real estate management services
"Ministry of Housing, Communities and Local Government",Homes England,MANAGEMENT COSTS,MPP,CUSHMAN & WAKEFIELD DEBENHAM TIE LEUNG,05/07/2021,"1,896.66",L,80131800,Real estate management services
"Ministry of Housing, Communities and Local Government",Homes England,PROPERTY SERVICES,Development,CUSHMAN & WAKEFIELD DEBENHAM TIE LEUNG,05/07/2021,"1,738.61",L,80131800,Real estate management services
"Ministry of Housing, Communities and Local Government",Homes England,PROPERTY SERVICES,Development,CUSHMAN & WAKEFIELD DEBENHAM TIE LEUNG,05/07/2021,"1,725.00",L,80131800,Real estate management services
"Ministry of Housing, Communities and Local Government",Homes England,PROPERTY SERVICES,Development,CUSHMAN & WAKEFIELD DEBENHAM TIE LEUNG,05/07/2021,"1,725.00",L,80131800,Real estate management services
"Ministry of Housing, Communities and Local Government",Homes England,PROPERTY SERVICES,Development,CUSHMAN & WAKEFIELD DEBENHAM TIE LEUNG,05/07/2021,"1,725.00",L,80131800,Real estate management services
"Ministry of Housing, Communities and Local Government",Homes England,PROPERTY SERVICES,Development,CUSHMAN & WAKEFIELD DEBENHAM TIE LEUNG,05/07/2021,"1,725.00",L,80131800,Real estate management services
"Ministry of Housing, Communities and Local Government",Homes England,PROPERTY SERVICES,Development,CUSHMAN & WAKEFIELD DEBENHAM TIE LEUNG,05/07/2021,"1,725.00",L,80131800,Real estate management services
"Ministry of Housing, Communities and Local Government",Homes England,RI - MONIITORING SURVEYOR FEES,Investment,CUSHMAN & WAKEFIELD DEBENHAM TIE LEUNG,02/07/2021,"1,680.00",L,81101500,Civil Engineering
"Ministry of Housing, Communities and Local Government",Homes England,PROPERTY SERVICES,Development,CUSHMAN & WAKEFIELD DEBENHAM TIE LEUNG,05/07/2021,"1,680.00",L,80131800,Real estate management services
"Ministry of Housing, Communities and Local Government",Homes England,PROPERTY SERVICES,MPP,CUSHMAN & WAKEFIELD DEBENHAM TIE LEUNG,05/07/2021,"1,580.56",L,80131800,Real estate management services
"Ministry of Housing, Communities and Local Government",Homes England,PROPERTY SERVICES,Development,CUSHMAN & WAKEFIELD DEBENHAM TIE LEUNG,05/07/2021,"1,530.00",L,80131800,Real estate management services
"Ministry of Housing, Communities and Local Government",Homes England,PROPERTY SERVICES,Development,CUSHMAN & WAKEFIELD DEBENHAM TIE LEUNG,05/07/2021,"1,530.00",L,80131800,Real estate management services
"Ministry of Housing, Communities and Local Government",Homes England,MISC PROFESSIONAL FEES,Development,CUSHMAN & WAKEFIELD DEBENHAM TIE LEUNG,12/07/2021,"1,500.00",L,80131800,Real estate management services
"Ministry of Housing, Communities and Local Government",Homes England,VALUATION FEES,MPP,CUSHMAN & WAKEFIELD DEBENHAM TIE LEUNG,27/07/2021,"1,500.00",L,80131800,Real estate management services
"Ministry of Housing, Communities and Local Government",Homes England,MISC PROFESSIONAL FEES,MPP,CUSHMAN & WAKEFIELD DEBENHAM TIE LEUNG,05/07/2021,"1,384.96",L,72101500,Building maintenance and repair services
"Ministry of Housing, Communities and Local Government",Homes England,PROPERTY SERVICES,MPP,CUSHMAN & WAKEFIELD DEBENHAM TIE LEUNG,05/07/2021,"1,264.44",L,80131800,Real estate management services
"Ministry of Housing, Communities and Local Government",Homes England,PROPERTY SERVICES,Development,CUSHMAN & WAKEFIELD DEBENHAM TIE LEUNG,05/07/2021,"1,058.96",L,80131800,Real estate management services
"Ministry of Housing, Communities and Local Government",Homes England,RI - MONIITORING SURVEYOR FEES,Investment,CUSHMAN & WAKEFIELD DEBENHAM TIE LEUNG,07/07/2021,"1,056.00",L,81101500,Civil Engineering
"Ministry of Housing, Communities and Local Government",Homes England,MISC PROFESSIONAL FEES,Development,CUSHMAN & WAKEFIELD DEBENHAM TIE LEUNG,06/07/2021,"1,020.00",L,80131800,Real estate management services
"Ministry of Housing, Communities and Local Government",Homes England,PROPERTY SERVICES,MPP,CUSHMAN & WAKEFIELD DEBENHAM TIE LEUNG,07/07/2021,"1,020.00",L,80131800,Real estate management services
"Ministry of Housing, Communities and Local Government",Homes England,RI - MONIITORING SURVEYOR FEES,Investment,CUSHMAN & WAKEFIELD DEBENHAM TIE LEUNG,08/07/2021,"1,020.00",L,81101500,Civil Engineering
"Ministry of Housing, Communities and Local Government",Homes England,PROPERTY SERVICES,Development,CUSHMAN & WAKEFIELD DEBENHAM TIE LEUNG,05/07/2021,"1,011.55",L,80131800,Real estate management services
"Ministry of Housing, Communities and Local Government",Homes England,RI - MONIITORING SURVEYOR FEES,Investment,CUSHMAN & WAKEFIELD DEBENHAM TIE LEUNG,02/07/2021,960.00,L,81101500,Civil Engineering
"Ministry of Housing, Communities and Local Government",Homes England,RI - MONIITORING SURVEYOR FEES,Investment,CUSHMAN & WAKEFIELD DEBENHAM TIE LEUNG,02/07/2021,960.00,L,81101500,Civil Engineering
"Ministry of Housing, Communities and Local Government",Homes England,RI - MONIITORING SURVEYOR FEES,Investment,CUSHMAN & WAKEFIELD DEBENHAM TIE LEUNG,02/07/2021,960.00,L,81101500,Civil Engineering
"Ministry of Housing, Communities and Local Government",Homes England,RI - MONIITORING SURVEYOR FEES,Investment,CUSHMAN & WAKEFIELD DEBENHAM TIE LEUNG,05/07/2021,960.00,L,81101500,Civil Engineering
"Ministry of Housing, Communities and Local Government",Homes England,PROF FEES LOANS CAPITALISED,Investment,CUSHMAN & WAKEFIELD DEBENHAM TIE LEUNG,06/07/2021,960.00,L,81101500,Civil Engineering
"Ministry of Housing, Communities and Local Government",Homes England,PROPERTY SERVICES,Development,CUSHMAN & WAKEFIELD DEBENHAM TIE LEUNG,05/07/2021,948.34,L,80131800,Real estate management services
"Ministry of Housing, Communities and Local Government",Homes England,PROF FEES LOANS CAPITALISED,Investment,CUSHMAN & WAKEFIELD DEBENHAM TIE LEUNG,02/07/2021,900.00,L,81101500,Civil Engineering
"Ministry of Housing, Communities and Local Government",Homes England,RI - MONIITORING SURVEYOR FEES,Investment,CUSHMAN & WAKEFIELD DEBENHAM TIE LEUNG,02/07/2021,900.00,L,81101500,Civil Engineering
"Ministry of Housing, Communities and Local Government",Homes England,RI - MONIITORING SURVEYOR FEES,Investment,CUSHMAN & WAKEFIELD DEBENHAM TIE LEUNG,02/07/2021,900.00,L,81101500,Civil Engineering
"Ministry of Housing, Communities and Local Government",Homes England,RI - MONIITORING SURVEYOR FEES,Investment,CUSHMAN & WAKEFIELD DEBENHAM TIE LEUNG,07/07/2021,900.00,L,81101500,Civil Engineering
"Ministry of Housing, Communities and Local Government",Homes England,RI - MONIITORING SURVEYOR FEES,Investment,CUSHMAN & WAKEFIELD DEBENHAM TIE LEUNG,02/07/2021,870.00,L,81101500,Civil Engineering
"Ministry of Housing, Communities and Local Government",Homes England,PROPERTY SERVICES,Development,CUSHMAN & WAKEFIELD DEBENHAM TIE LEUNG,05/07/2021,869.30,L,80131800,Real estate management services
"Ministry of Housing, Communities and Local Government",Homes England,PROPERTY SERVICES,Development,CUSHMAN & WAKEFIELD DEBENHAM TIE LEUNG,05/07/2021,869.30,L,80131800,Real estate management services
"Ministry of Housing, Communities and Local Government",Homes England,RI - MONIITORING SURVEYOR FEES,Investment,CUSHMAN & WAKEFIELD DEBENHAM TIE LEUNG,02/07/2021,840.00,L,81101500,Civil Engineering
"Ministry of Housing, Communities and Local Government",Homes England,RI - MONIITORING SURVEYOR FEES,Investment,CUSHMAN & WAKEFIELD DEBENHAM TIE LEUNG,02/07/2021,840.00,L,81101500,Civil Engineering
"Ministry of Housing, Communities and Local Government",Homes England,RI - MONIITORING SURVEYOR FEES,Investment,CUSHMAN & WAKEFIELD DEBENHAM TIE LEUNG,02/07/2021,840.00,L,81101500,Civil Engineering
"Ministry of Housing, Communities and Local Government",Homes England,RI - MONIITORING SURVEYOR FEES,Investment,CUSHMAN & WAKEFIELD DEBENHAM TIE LEUNG,02/07/2021,840.00,L,81101500,Civil Engineering
"Ministry of Housing, Communities and Local Government",Homes England,RI - MONIITORING SURVEYOR FEES,Investment,CUSHMAN & WAKEFIELD DEBENHAM TIE LEUNG,05/07/2021,840.00,L,81101500,Civil Engineering
"Ministry of Housing, Communities and Local Government",Homes England,RI - MONIITORING SURVEYOR FEES,Investment,CUSHMAN & WAKEFIELD DEBENHAM TIE LEUNG,05/07/2021,840.00,L,81101500,Civil Engineering
"Ministry of Housing, Communities and Local Government",Homes England,PROPERTY SERVICES,Development,CUSHMAN & WAKEFIELD DEBENHAM TIE LEUNG,05/07/2021,790.27,L,80131800,Real estate management services
"Ministry of Housing, Communities and Local Government",Homes England,OTHER PROFESSIONAL FEES,Development,CUSHMAN & WAKEFIELD DEBENHAM TIE LEUNG,14/07/2021,775.20,L,80131800,Real estate management services
"Ministry of Housing, Communities and Local Government",Homes England,SECURITY,MPP,DEERNESS FENCING AND LANDSCAPING,07/07/2021,"10,427.29",M,92121500,Guard services
"Ministry of Housing, Communities and Local Government",Homes England,FENCE MAINTENANCE,Development,DEERNESS FENCING AND LANDSCAPING,23/07/2021,"9,289.94",M,72102900,Facility maintenance and repair services
"Ministry of Housing, Communities and Local Government",Homes England,LANDSCAPING & PLANTS,Development,DEEDMAN TROPICAL PLANT HIRE COMPANY,29/07/2021,449.28,S,10161600,Floral plants
"Ministry of Housing, Communities and Local Government",Homes England,LANDSCAPING & PLANTS,Development,DEEDMAN TROPICAL PLANT HIRE COMPANY,29/07/2021,327.60,S,10161600,Floral plants
"Ministry of Housing, Communities and Local Government",Homes England,SECONDED STAFF COSTS,Executive Office,DEPT FOR DIGITAL CULTURE MEDIA & SPORT,14/07/2021,"34,264.19",G,80101500,Business and corporate management consultation services 
"Ministry of Housing, Communities and Local Government",Homes England,CONTRACT WORKS,MPP,DSM DEMOLITION LIMITED,29/07/2021,"75,617.52",M,22102000,Building Demolition Machinery and Equipment
"Ministry of Housing, Communities and Local Government",Homes England,RENT PAYABLE,Development,DERBY CITY COUNCIL,20/07/2021,435.00,G,80131500,Lease and rental of property or building
"Ministry of Housing, Communities and Local Government",Homes England,MISC PROFESSIONAL FEES,Corporate Resources,DELOITTE MCS LTD,12/07/2021,"256,021.20",L,80101500,Business and Corporate Management Consultation Services
"Ministry of Housing, Communities and Local Government",Homes England,MISC PROFESSIONAL FEES,MPP,DATA8 LTD,21/07/2021,"12,000.00",S,43231500,Business function specific software
"Ministry of Housing, Communities and Local Government",Homes England,LEGAL FEES (PROGRAMME - RDEL),MPP,DWF LLP,23/07/2021,"3,038.08",L,80121600,Business law services
"Ministry of Housing, Communities and Local Government",Homes England,LEGAL FEES (PROGRAMME - RDEL),Development,DWF LLP,02/07/2021,"2,460.00",L,80121600,Business law services
"Ministry of Housing, Communities and Local Government",Homes England,CAR LEASING - HIRE CHARGES,Development,ATHLON MOBILITY SERVICES UK LIMITED,06/07/2021,504.72,S,25101500,Passenger motor vehicles
"Ministry of Housing, Communities and Local Government",Homes England,CAR LEASING - HIRE CHARGES,Development,ATHLON MOBILITY SERVICES UK LIMITED,06/07/2021,368.98,S,25101500,Passenger motor vehicles
"Ministry of Housing, Communities and Local Government",Homes England,CAR LEASING - HIRE CHARGES,Development,ATHLON MOBILITY SERVICES UK LIMITED,06/07/2021,252.36,S,25101500,Passenger motor vehicles
"Ministry of Housing, Communities and Local Government",Homes England,ST FUND LOANS ADDITIONS,Investment,80 DOVECOTE ROAD LTD,13/07/2021,"50,000.00",L,None,Loans
"Ministry of Housing, Communities and Local Government",Homes England,ST FUND LOANS ADDITIONS,Investment,DURLEY ROAD DEVELOPMENTS LLP,22/07/2021,"453,000.00",S,None,Loans
"Ministry of Housing, Communities and Local Government",Homes England,BUILDINGS-VACANT RATES,Development,DERBY CITY COUNCIL,20/07/2021,"1,258.71",G,80131500,Lease and rental of property or building
"Ministry of Housing, Communities and Local Government",Homes England,TAXIS,Development,DEAN TAXI LIMITED,06/07/2021,"1,152.00",S,78111800,Passenger road transportation
"Ministry of Housing, Communities and Local Government",Homes England,ESTATE GENERAL MAINTENANCE,Development,THE WATT GROUP (NORTH EAST) LTD,21/07/2021,381.60,S,72101500,Building maintenance and repair services
"Ministry of Housing, Communities and Local Government",Homes England,NETWORKS,Chief Executive Office,DAISY CORPORATE SERVICES TRADING LIMITED,09/07/2021,"1,080.00",L,80111600,Temporary personnel services
"Ministry of Housing, Communities and Local Government",Homes England,CONTRACT WORKS,Development,DYER ENVIRONMENTAL CONTROLS LTD,08/07/2021,"2,310.00",S,30171600,Windows
"Ministry of Housing, Communities and Local Government",Homes England,TRAINING COURSES & CONFERENCES,Development,DEBRETTS LIMITED,05/07/2021,600.00,S,86101800,In service training and manpower development
"Ministry of Housing, Communities and Local Government",Homes England,MISC PROFESSIONAL FEES,Chief Executive Office,DXW,13/07/2021,"61,140.00",M,80101500,Business and corporate management consultation services
"Ministry of Housing, Communities and Local Government",Homes England,MISC PROFESSIONAL FEES,Chief Executive Office,DXW,13/07/2021,"23,940.00",M,80101500,Business and corporate management consultation services
"Ministry of Housing, Communities and Local Government",Homes England,PROF FEES LOANS CAPITALISED,Investment,DWF LAW LLP,14/07/2021,"21,802.20",L,80121600,Business law services
"Ministry of Housing, Communities and Local Government",Homes England,LEGAL FEES (PROGRAMME - RDEL),Investment,DWF LAW LLP,05/07/2021,"10,500.00",L,80121600,Business law services
"Ministry of Housing, Communities and Local Government",Homes England,LEGAL FEES (PROGRAMME - RDEL),Investment,DWF LAW LLP,13/07/2021,"5,400.00",L,80121600,Business law services
"Ministry of Housing, Communities and Local Government",Homes England,LEGAL FEES (PROGRAMME - RDEL),Investment,DWF LAW LLP,05/07/2021,"3,384.00",L,80121600,Business law services
"Ministry of Housing, Communities and Local Government",Homes England,DISPOSAL FEES - LEGAL,Development,DWF LAW LLP,21/07/2021,"2,394.00",L,80121600,Business law services
"Ministry of Housing, Communities and Local Government",Homes England,LEGAL FEES (PROGRAMME - CDEL),MPP,DWF LAW LLP,29/07/2021,"1,359.00",L,80121600,Business law services
"Ministry of Housing, Communities and Local Government",Homes England,LEGAL FEES (PROGRAMME - CDEL),Development,DWF LAW LLP,12/07/2021,"1,150.44",L,80121600,Business law services
"Ministry of Housing, Communities and Local Government",Homes England,LEGAL FEES (PROGRAMME - CDEL),Development,DWF LAW LLP,12/07/2021,"1,147.92",L,80121600,Business law services
"Ministry of Housing, Communities and Local Government",Homes England,LEGAL FEES (PROGRAMME - RDEL),MPP,DWF LAW LLP,30/07/2021,"1,008.00",L,80121600,Business law services
"Ministry of Housing, Communities and Local Government",Homes England,MASTERPLANNING FEES,Development,WOOD ENVIRONMENT & INFRASTRUCTURE SOLUTIONS,22/07/2021,"55,200.00",L,81101500,Civil Engineering
"Ministry of Housing, Communities and Local Government",Homes England,MISC PROFESSIONAL FEES,MPP,WOOD ENVIRONMENT & INFRASTRUCTURE SOLUTIONS,01/07/2021,"13,116.00",L,80131800,Real estate management services
"Ministry of Housing, Communities and Local Government",Homes England,PROPERTY SERVICES,MPP,WOOD ENVIRONMENT & INFRASTRUCTURE SOLUTIONS,13/07/2021,"3,726.90",L,80131800,Real estate management services
"Ministry of Housing, Communities and Local Government",Homes England,PROPERTY SERVICES,MPP,WOOD ENVIRONMENT & INFRASTRUCTURE SOLUTIONS,13/07/2021,"3,527.20",L,80131800,Real estate management services
"Ministry of Housing, Communities and Local Government",Homes England,PROPERTY SERVICES,MPP,WOOD ENVIRONMENT & INFRASTRUCTURE SOLUTIONS,13/07/2021,"2,887.62",L,80131800,Real estate management services
"Ministry of Housing, Communities and Local Government",Homes England,PROPERTY SERVICES,MPP,WOOD ENVIRONMENT & INFRASTRUCTURE SOLUTIONS,13/07/2021,"2,227.25",L,80131800,Real estate management services
"Ministry of Housing, Communities and Local Government",Homes England,PROPERTY SERVICES,MPP,WOOD ENVIRONMENT & INFRASTRUCTURE SOLUTIONS,13/07/2021,"1,424.10",L,80131800,Real estate management services
"Ministry of Housing, Communities and Local Government",Homes England,PROPERTY SERVICES,MPP,WOOD ENVIRONMENT & INFRASTRUCTURE SOLUTIONS,13/07/2021,488.63,L,80131800,Real estate management services
"Ministry of Housing, Communities and Local Government",Homes England,PROPERTY SERVICES,MPP,WOOD ENVIRONMENT & INFRASTRUCTURE SOLUTIONS,13/07/2021,300.00,L,80131800,Real estate management services
"Ministry of Housing, Communities and Local Government",Homes England,STAFF RECRUITMENT COSTS,Corporate Resources,ESTATES GAZETTE,01/07/2021,"2,018.40",M,80111700,Personnel Recruitment
"Ministry of Housing, Communities and Local Government",Homes England,ST FUND LOANS ADDITIONS,Investment,EAST CHALLOWS LLP,21/07/2021,"256,645.00",L,None,Loans
"Ministry of Housing, Communities and Local Government",Homes England,L&OD STRATEGIC - HR USE ONLY,Corporate Resources,ERNST & YOUNG,23/07/2021,"8,927.34",L,86101800,In service training and manpower development
"Ministry of Housing, Communities and Local Government",Homes England,INTERNAL COMMUNICATIONS,Executive Office,E-SEARCH DAC T/A POPPULO,15/07/2021,"9,960.00",M,43231500,Business function specific software
"Ministry of Housing, Communities and Local Government",Homes England,TEAM MEETINGS,Chief Executive Office,ETC.VENUES,05/07/2021,840.00,L,90111600,Meeting facilities
"Ministry of Housing, Communities and Local Government",Homes England,ENGINEERING FEES,Development,EGNIOL CONSULTING LIMITED,28/07/2021,"3,000.00",S,81101500,Civil Engineering
"Ministry of Housing, Communities and Local Government",Homes England,REWARD & EXCELLENCE,Corporate Resources,EDENRED (UK GROUP) LTD,05/07/2021,"2,425.00",L,80111500,Human resource development
"Ministry of Housing, Communities and Local Government",Homes England,ST FUND LOANS ADDITIONS,Investment,EDG IRONMONGER LTD,07/07/2021,"281,344.23",S,None,Loans
"Ministry of Housing, Communities and Local Government",Homes England,MOBILES,Corporate Resources,EE LTD,29/07/2021,"23,213.66",L,83111500,Local and long distance telephone communications
"Ministry of Housing, Communities and Local Government",Homes England,MOBILES,Corporate Resources,EE LTD,29/07/2021,"22,360.59",L,83111500,Local and long distance telephone communications
"Ministry of Housing, Communities and Local Government",Homes England,MOBILES,Chief Executive Office,EE LTD,27/07/2021,"21,726.35",L,83111500,Local and long distance telephone communications
"Ministry of Housing, Communities and Local Government",Homes England,COMPUTERS - ADDITIONS,Chief Executive Office,EE LTD,26/07/2021,"13,944.00",L,43211500,Computers
"Ministry of Housing, Communities and Local Government",Homes England,COMPUTERS - ADDITIONS,Chief Executive Office,EE LTD,23/07/2021,"10,956.00",L,43211500,Computers
"Ministry of Housing, Communities and Local Government",Homes England,LEGAL FEES (PROGRAMME - RDEL),Development,EVERSHEDS CLIENT ACCOUNT,12/07/2021,"3,600.00",L,80121600,Business law services
"Ministry of Housing, Communities and Local Government",Homes England,LEGAL FEES (PROGRAMME - RDEL),Development,EVERSHEDS CLIENT ACCOUNT,07/07/2021,"1,200.00",L,80121600,Business law services
"Ministry of Housing, Communities and Local Government",Homes England,LEGAL FEES (PROGRAMME - RDEL),Investment,EVERSHEDS CLIENT ACCOUNT,01/07/2021,870.00,L,80121600,Business law services
"Ministry of Housing, Communities and Local Government",Homes England,FENCE MAINTENANCE,Development,EA FORMBY (NW) LIMITED,01/07/2021,840.00,S,72102900,Facility maintenance and repair services
"Ministry of Housing, Communities and Local Government",Homes England,ESTATE GENERAL MAINTENANCE,Development,ECOLOGICAL LAND MANGEMENT LTD,23/07/2021,"2,454.00",S,72101500,Building maintenance and repair services
"Ministry of Housing, Communities and Local Government",Homes England,FENCE MAINTENANCE,Development,ECOLOGICAL LAND MANGEMENT LTD,21/07/2021,358.32,S,72102900,Facility maintenance and repair services
"Ministry of Housing, Communities and Local Government",Homes England,ESTATE GENERAL MAINTENANCE,Development,ECOLOGICAL LAND MANGEMENT LTD,26/07/2021,342.00,S,72101500,Building maintenance and repair services
"Ministry of Housing, Communities and Local Government",Homes England,ST FUND LOANS ADDITIONS,Investment,EVANS MANN COMMERCIAL LTD,13/07/2021,"123,152.00",L,None,Loans
"Ministry of Housing, Communities and Local Government",Homes England,BUILDINGS-ELECTRICITY,Development,EDF ENERGY CUST FIELD SERVICES,23/07/2021,518.40,L,83101800,Electric utilities
"Ministry of Housing, Communities and Local Government",Homes England,ELECTRICITY,Development,EDF ENERGY CUST FIELD SERVICES,28/07/2021,292.80,L,83101800,Electric utilities
"Ministry of Housing, Communities and Local Government",Homes England,STAFF RECRUITMENT COSTS,Corporate Resources,EXPERIAN,06/07/2021,"1,420.80",L,80111700,Personnel Recruitment
"Ministry of Housing, Communities and Local Government",Homes England,CAP GRNTS TO LOCAL AUTHORITIES,Investment,EASTLEIGH BOROUGH COUNCIL,29/07/2021,"501,004.93",G,None,Grants
"Ministry of Housing, Communities and Local Government",Homes England,ST FUND LOANS ADDITIONS,Investment,EDWARDS HOMES (ST HELENS) LIMITED,12/07/2021,"443,277.01",L,None,Loans
"Ministry of Housing, Communities and Local Government",Homes England,MISC PROFESSIONAL FEES,Development,EDDISONS COMMERCIAL LIMITED,19/07/2021,"3,696.00",M,80131800,Real estate management services
"Ministry of Housing, Communities and Local Government",Homes England,MISC PROFESSIONAL FEES,Development,EDDISONS COMMERCIAL LIMITED,23/07/2021,"3,600.00",M,80131800,Real estate management services
"Ministry of Housing, Communities and Local Government",Homes England,PROF FEES LOANS CAPITALISED,Investment,EDDISONS COMMERCIAL LIMITED,08/07/2021,"3,420.00",M,80131800,Real estate management services
"Ministry of Housing, Communities and Local Government",Homes England,RI - MONIITORING SURVEYOR FEES,Investment,EDDISONS COMMERCIAL LIMITED,08/07/2021,870.00,M,81101500,Civil Engineering
"Ministry of Housing, Communities and Local Government",Homes England,RI - MONIITORING SURVEYOR FEES,Investment,EDDISONS COMMERCIAL LIMITED,14/07/2021,834.00,M,81101500,Civil Engineering
"Ministry of Housing, Communities and Local Government",Homes England,RI - MONIITORING SURVEYOR FEES,Investment,EDDISONS COMMERCIAL LIMITED,14/07/2021,834.00,M,81101500,Civil Engineering
"Ministry of Housing, Communities and Local Government",Homes England,RI - MONIITORING SURVEYOR FEES,Investment,EDDISONS COMMERCIAL LIMITED,22/07/2021,834.00,M,81101500,Civil Engineering
"Ministry of Housing, Communities and Local Government",Homes England,RI - MONIITORING SURVEYOR FEES,Investment,EDDISONS COMMERCIAL LIMITED,12/07/2021,780.00,M,81101500,Civil Engineering
"Ministry of Housing, Communities and Local Government",Homes England,RI - MONIITORING SURVEYOR FEES,Investment,EDDISONS COMMERCIAL LIMITED,12/07/2021,780.00,M,81101500,Civil Engineering
"Ministry of Housing, Communities and Local Government",Homes England,RI - MONIITORING SURVEYOR FEES,Investment,EDDISONS COMMERCIAL LIMITED,12/07/2021,714.00,M,81101500,Civil Engineering
"Ministry of Housing, Communities and Local Government",Homes England,RI - MONIITORING SURVEYOR FEES,Investment,EDDISONS COMMERCIAL LIMITED,12/07/2021,714.00,M,81101500,Civil Engineering
"Ministry of Housing, Communities and Local Government",Homes England,MASTERPLANNING FEES,Development,EAST HAMPSHIRE DISTRICT COUNCIL,23/07/2021,"21,739.99",G,81101500,Civil Engineering
"Ministry of Housing, Communities and Local Government",Homes England,OTHER PROFESSIONAL FEES,MPP,EAST HAMPSHIRE DISTRICT COUNCIL,23/07/2021,"13,980.00",G,80131800,Real estate management services
"Ministry of Housing, Communities and Local Government",Homes England,MASTERPLANNING FEES,Development,EAST HAMPSHIRE DISTRICT COUNCIL,26/07/2021,"3,074.83",G,81101500,Civil Engineering
"Ministry of Housing, Communities and Local Government",Homes England,PROPERTY SERVICES,Development,SOCOTEC UK LIMITED,19/07/2021,"2,448.00",L,80131800,Real estate management services
"Ministry of Housing, Communities and Local Government",Homes England,PROPERTY SERVICES,Development,SOCOTEC UK LIMITED,19/07/2021,816.00,L,80131800,Real estate management services
"Ministry of Housing, Communities and Local Government",Homes England,PROPERTY SERVICES,Development,SOCOTEC UK LIMITED,29/07/2021,462.00,L,80131800,Real estate management services
"Ministry of Housing, Communities and Local Government",Homes England,STAFF RECRUITMENT COSTS,Corporate Resources,FRONTIER SOFTWARE PLC,05/07/2021,"3,582.00",L,86101800,In service training and manpower development
"Ministry of Housing, Communities and Local Government",Homes England,OTHER PROFESSIONAL FEES,Development,AECOM LIMITED,26/07/2021,"88,229.63",L,80131800,Real estate management services
"Ministry of Housing, Communities and Local Government",Homes England,MASTERPLANNING FEES,MPP,AECOM LIMITED,22/07/2021,"27,540.00",L,81101500,Civil Engineering
"Ministry of Housing, Communities and Local Government",Homes England,OTHER PROFESSIONAL FEES,Development,AECOM LIMITED,28/07/2021,"20,977.92",L,80131800,Real estate management services
"Ministry of Housing, Communities and Local Government",Homes England,MISC PROFESSIONAL FEES,MPP,AECOM LIMITED,15/07/2021,"16,580.05",L,72101500,Building maintenance and repair services
"Ministry of Housing, Communities and Local Government",Homes England,PLANNING APPLICATIONS,MPP,AECOM LIMITED,23/07/2021,"10,126.75",L,80131800,Real estate management services
"Ministry of Housing, Communities and Local Government",Homes England,MISC PROFESSIONAL FEES,Development,AECOM LIMITED,14/07/2021,"9,000.00",L,80131800,Real estate management services
"Ministry of Housing, Communities and Local Government",Homes England,ENGINEERING FEES,Investment,AECOM LIMITED,20/07/2021,"8,459.69",L,81101500,Civil Engineering
"Ministry of Housing, Communities and Local Government",Homes England,PLANNING FEES,Development,AECOM LIMITED,05/07/2021,"7,800.00",L,80131800,Real estate management services
"Ministry of Housing, Communities and Local Government",Homes England,PLANNING APPLICATIONS,MPP,AECOM LIMITED,22/07/2021,"7,090.18",L,80131800,Real estate management services
"Ministry of Housing, Communities and Local Government",Homes England,ENGINEERING CONSULTANTS,MPP,AECOM LIMITED,23/07/2021,"6,150.00",L,81101500,Civil Engineering
"Ministry of Housing, Communities and Local Government",Homes England,RI - MONIITORING SURVEYOR FEES,Investment,AECOM LIMITED,29/07/2021,"3,860.84",L,81101500,Civil Engineering
"Ministry of Housing, Communities and Local Government",Homes England,RI - MONIITORING SURVEYOR FEES,Investment,AECOM LIMITED,29/07/2021,"3,860.84",L,81101500,Civil Engineering
"Ministry of Housing, Communities and Local Government",Homes England,ENGINEERING FEES,MPP,AECOM LIMITED,26/07/2021,"3,594.00",L,81101500,Civil Engineering
"Ministry of Housing, Communities and Local Government",Homes England,PROJECT MANAGEMENT,MPP,AECOM LIMITED,14/07/2021,"3,000.00",L,80101600,Project management
"Ministry of Housing, Communities and Local Government",Homes England,MISC PROFESSIONAL FEES,Investment,AECOM LIMITED,22/07/2021,"2,354.26",L,80131800,Real estate management services
"Ministry of Housing, Communities and Local Government",Homes England,RI - MONIITORING SURVEYOR FEES,Investment,AECOM LIMITED,19/07/2021,"1,980.00",L,81101500,Civil Engineering
"Ministry of Housing, Communities and Local Government",Homes England,RI - MONIITORING SURVEYOR FEES,Investment,AECOM LIMITED,26/07/2021,"1,980.00",L,81101500,Civil Engineering
"Ministry of Housing, Communities and Local Government",Homes England,VALUATION FEES,Development,SAVILLS UK LIMITED,19/07/2021,"7,629.60",L,80131800,Real estate management services
"Ministry of Housing, Communities and Local Government",Homes England,PROPERTY SERVICES,Development,SAVILLS UK LIMITED,09/07/2021,"3,000.00",L,80131800,Real estate management services
"Ministry of Housing, Communities and Local Government",Homes England,PROF FEES LOANS CAPITALISED,Investment,SAVILLS UK LIMITED,22/07/2021,"2,400.00",L,80131800,Real estate management services
"Ministry of Housing, Communities and Local Government",Homes England,PROF FEES LOANS CAPITALISED,Investment,SAVILLS UK LIMITED,20/07/2021,"1,800.00",L,80131800,Real estate management services
"Ministry of Housing, Communities and Local Government",Homes England,PROF FEES LOANS CAPITALISED,Investment,SAVILLS UK LIMITED,07/07/2021,"1,500.00",L,80131800,Real estate management services
"Ministry of Housing, Communities and Local Government",Homes England,RI - SITE VALUATION FEES,Investment,SAVILLS UK LIMITED,23/07/2021,"1,400.40",L,80131800,Real estate management services
"Ministry of Housing, Communities and Local Government",Homes England,PROPERTY SERVICES,MPP,SAVILLS UK LIMITED,02/07/2021,"1,311.00",L,80131800,Real estate management services
"Ministry of Housing, Communities and Local Government",Homes England,PROF FEES LOANS CAPITALISED,Investment,SAVILLS UK LIMITED,07/07/2021,900.00,L,80131800,Real estate management services
"Ministry of Housing, Communities and Local Government",Homes England,PACKAGE MAINTENANCE & SUBSCRIP,Chief Executive Office,QUBE GLOBAL SOFTWARE LIMITED,09/07/2021,"32,351.50",M,43231500,Business function specific software
"Ministry of Housing, Communities and Local Government",Homes England,ST FUND LOANS ADDITIONS,Investment,FP (YE CORNER) LIMITED,14/07/2021,"216,324.94",L,None,Loans
"Ministry of Housing, Communities and Local Government",Homes England,ESTATE GENERAL MAINTENANCE,Development,FASSFERN FORESTRY LIMITED,22/07/2021,"1,164.00",S,72101500,Building maintenance and repair services
"Ministry of Housing, Communities and Local Government",Homes England,SECURITY,Development,R FOX T/A SOUTHCOAST MAINTENANCE,28/07/2021,"11,160.00",S,92121500,Guard services
"Ministry of Housing, Communities and Local Government",Homes England,DRAINS & SEWERS,Development,R FOX T/A SOUTHCOAST MAINTENANCE,09/07/2021,"7,281.60",S,72101500,Building maintenance and repair services
"Ministry of Housing, Communities and Local Government",Homes England,MANAGEMENT COSTS,Development,R FOX T/A SOUTHCOAST MAINTENANCE,28/07/2021,"1,556.40",S,80131800,Real estate management services
"Ministry of Housing, Communities and Local Government",Homes England,MANAGEMENT COSTS,Development,R FOX T/A SOUTHCOAST MAINTENANCE,28/07/2021,"1,509.60",S,80131800,Real estate management services
"Ministry of Housing, Communities and Local Government",Homes England,DRAINS & SEWERS,Development,R FOX T/A SOUTHCOAST MAINTENANCE,09/07/2021,"1,440.00",S,72101500,Building maintenance and repair services
"Ministry of Housing, Communities and Local Government",Homes England,ESTATE GENERAL MAINTENANCE,Development,R FOX T/A SOUTHCOAST MAINTENANCE,09/07/2021,"1,320.00",S,72101500,Building maintenance and repair services
"Ministry of Housing, Communities and Local Government",Homes England,EXTERNAL BUILDING MAINTENANCE,Development,R FOX T/A SOUTHCOAST MAINTENANCE,09/07/2021,840.00,S,72101500,Building maintenance and repair services
"Ministry of Housing, Communities and Local Government",Homes England,ESTATE GENERAL MAINTENANCE,Development,R FOX T/A SOUTHCOAST MAINTENANCE,09/07/2021,840.00,S,72101500,Building maintenance and repair services
"Ministry of Housing, Communities and Local Government",Homes England,MANAGEMENT COSTS,Development,R FOX T/A SOUTHCOAST MAINTENANCE,06/07/2021,756.00,S,80131800,Real estate management services
"Ministry of Housing, Communities and Local Government",Homes England,MANAGEMENT COSTS,Development,R FOX T/A SOUTHCOAST MAINTENANCE,09/07/2021,756.00,S,80131800,Real estate management services
"Ministry of Housing, Communities and Local Government",Homes England,MANAGEMENT COSTS,Development,R FOX T/A SOUTHCOAST MAINTENANCE,09/07/2021,734.40,S,80131800,Real estate management services
"Ministry of Housing, Communities and Local Government",Homes England,MANAGEMENT COSTS,Development,R FOX T/A SOUTHCOAST MAINTENANCE,06/07/2021,720.00,S,80131800,Real estate management services
"Ministry of Housing, Communities and Local Government",Homes England,BUILDINGS-WATER,Development,R FOX T/A SOUTHCOAST MAINTENANCE,09/07/2021,670.80,S,83101500,Water and sewer utilities
"Ministry of Housing, Communities and Local Government",Homes England,MANAGEMENT COSTS,MPP,R FOX T/A SOUTHCOAST MAINTENANCE,09/07/2021,660.00,S,80131800,Real estate management services
"Ministry of Housing, Communities and Local Government",Homes England,MANAGEMENT COSTS,Development,R FOX T/A SOUTHCOAST MAINTENANCE,09/07/2021,600.00,S,80131800,Real estate management services
"Ministry of Housing, Communities and Local Government",Homes England,MANAGEMENT COSTS,Development,R FOX T/A SOUTHCOAST MAINTENANCE,06/07/2021,420.00,S,80131800,Real estate management services
"Ministry of Housing, Communities and Local Government",Homes England,MANAGEMENT COSTS,Development,R FOX T/A SOUTHCOAST MAINTENANCE,09/07/2021,420.00,S,80131800,Real estate management services
"Ministry of Housing, Communities and Local Government",Homes England,MANAGEMENT COSTS,Development,R FOX T/A SOUTHCOAST MAINTENANCE,09/07/2021,420.00,S,80131800,Real estate management services
"Ministry of Housing, Communities and Local Government",Homes England,SECURITY,Development,R FOX T/A SOUTHCOAST MAINTENANCE,09/07/2021,304.80,S,92121500,Guard services
"Ministry of Housing, Communities and Local Government",Homes England,ESTATE GENERAL MAINTENANCE,Development,FEN PEST CONTROL LTD,12/07/2021,"1,788.00",S,72101500,Building maintenance and repair services
"Ministry of Housing, Communities and Local Government",Homes England,LT FUND LOANS (PS) ADDITIONS,Investment,FAIRHAM PASTURES DEVELOPMENT LTD,23/07/2021,"611,370.01",S,None,Loans
"Ministry of Housing, Communities and Local Government",Homes England,SECURITY,Development,FALCON SECURITY,12/07/2021,"28,533.57",S,92121500,Guard services
"Ministry of Housing, Communities and Local Government",Homes England,SECURITY,Development,FALCON SECURITY,29/07/2021,"6,024.00",S,92121500,Guard services
"Ministry of Housing, Communities and Local Government",Homes England,SECURITY,Development,FALCON SECURITY,23/07/2021,"3,780.00",S,92121500,Guard services
"Ministry of Housing, Communities and Local Government",Homes England,SECURITY,MPP,FALCON SECURITY,23/07/2021,816.00,S,92121500,Guard services
"Ministry of Housing, Communities and Local Government",Homes England,ESTATE GENERAL MAINTENANCE,MPP,FPCR ENVIRONMENT & DESIGN LIMITED,28/07/2021,837.60,M,72101500,Building maintenance and repair services
"Ministry of Housing, Communities and Local Government",Homes England,EXTERNAL BUILDING MAINTENANCE,Development,FIRST NATIONAL SERVICES LTD,29/07/2021,"1,425.60",S,72101500,Building maintenance and repair services
"Ministry of Housing, Communities and Local Government",Homes England,EXTERNAL BUILDING MAINTENANCE,Development,FIRST NATIONAL SERVICES LTD,14/07/2021,"1,247.40",S,72101500,Building maintenance and repair services
"Ministry of Housing, Communities and Local Government",Homes England,EXTERNAL BUILDING MAINTENANCE,Development,FIRST NATIONAL SERVICES LTD,14/07/2021,745.20,S,72101500,Building maintenance and repair services
"Ministry of Housing, Communities and Local Government",Homes England,EXTERNAL BUILDING MAINTENANCE,Development,FIRST NATIONAL SERVICES LTD,14/07/2021,291.60,S,72101500,Building maintenance and repair services
"Ministry of Housing, Communities and Local Government",Homes England,MASTERPLANNING FEES,Development,FIVE PLUS ARCHITECTS LIMITED,12/07/2021,"6,654.48",S,81101500,Civil Engineering
"Ministry of Housing, Communities and Local Government",Homes England,MASTERPLANNING FEES,Development,FIVE PLUS ARCHITECTS LIMITED,28/07/2021,"4,110.12",S,81101500,Civil Engineering
"Ministry of Housing, Communities and Local Government",Homes England,PROMOTIONAL EVENTS,Executive Office,FULL CIRCLE EVENTS & EXHIBITIONS LIMITED,23/07/2021,"2,659.80",M,80141600,Sales and business promotion activities
"Ministry of Housing, Communities and Local Government",Homes England,SECURITY,Development,FIRST RESPONSE GROUP LTD,21/07/2021,"25,453.08",M,92121500,Guard services
"Ministry of Housing, Communities and Local Government",Homes England,SECURITY,Development,FIRST RESPONSE GROUP LTD,12/07/2021,"23,262.12",M,92121500,Guard services
"Ministry of Housing, Communities and Local Government",Homes England,SECURITY,Development,FIRST RESPONSE GROUP LTD,08/07/2021,"23,036.80",M,92121500,Guard services
"Ministry of Housing, Communities and Local Government",Homes England,SECURITY,MPP,FIRST RESPONSE GROUP LTD,09/07/2021,"1,527.24",M,92121500,Guard services
"Ministry of Housing, Communities and Local Government",Homes England,SECURITY,Development,FIRST RESPONSE GROUP LTD,07/07/2021,720.72,M,92121500,Guard services
"Ministry of Housing, Communities and Local Government",Homes England,CAR LEASING - INSURANCE,Development,EUROFIXAUTO UK LIMITED,23/07/2021,250.00,S,84131500,Insurance services for structures and property and possessions
"Ministry of Housing, Communities and Local Government",Homes England,CAR LEASING - INSURANCE,MPP,EUROFIXAUTO UK LIMITED,23/07/2021,250.00,S,84131500,Insurance services for structures and property and possessions
"Ministry of Housing, Communities and Local Government",Homes England,CAR LEASING - INSURANCE,Investment,EUROFIXAUTO UK LIMITED,30/07/2021,250.00,S,84131500,Insurance services for structures and property and possessions
"Ministry of Housing, Communities and Local Government",Homes England,ESTATE GENERAL MAINTENANCE,Development,F T GEARING L/S LTD,20/07/2021,690.96,S,72101500,Building maintenance and repair services
"Ministry of Housing, Communities and Local Government",Homes England,ESTATE GENERAL MAINTENANCE,Development,F T GEARING L/S LTD,20/07/2021,321.26,S,72101500,Building maintenance and repair services
"Ministry of Housing, Communities and Local Government",Homes England,Other Land Loans Fv Additions,MPP,AVISON YOUNG (UK) LTD,01/07/2021,"55,045.44",L,None,Loans
"Ministry of Housing, Communities and Local Government",Homes England,MISC PROFESSIONAL FEES,Investment,AVISON YOUNG (UK) LTD,29/07/2021,"37,440.00",L,80131800,Real estate management services
"Ministry of Housing, Communities and Local Government",Homes England,MISC PROFESSIONAL FEES,Executive Office,AVISON YOUNG (UK) LTD,05/07/2021,"33,120.00",L,80131800,Real estate management services
"Ministry of Housing, Communities and Local Government",Homes England,OTHER PROFESSIONAL FEES,Development,AVISON YOUNG (UK) LTD,30/07/2021,"28,732.98",L,80131800,Real estate management services
"Ministry of Housing, Communities and Local Government",Homes England,MISC PROFESSIONAL FEES,Executive Office,AVISON YOUNG (UK) LTD,29/07/2021,"22,320.00",L,80131800,Real estate management services
"Ministry of Housing, Communities and Local Government",Homes England,Other Land Loans Fv Additions,MPP,AVISON YOUNG (UK) LTD,01/07/2021,"15,276.00",L,81101500,Civil Engineering
"Ministry of Housing, Communities and Local Government",Homes England,PROPERTY SERVICES,Development,AVISON YOUNG (UK) LTD,28/07/2021,"12,000.00",L,80131800,Real estate management services
"Ministry of Housing, Communities and Local Government",Homes England,DISPOSAL FEES - PROPERTY AGENT,Development,AVISON YOUNG (UK) LTD,15/07/2021,"9,000.00",L,80131600,Sale of property and building
"Ministry of Housing, Communities and Local Government",Homes England,RI - SITE VALUATION FEES,Investment,AVISON YOUNG (UK) LTD,28/07/2021,"6,000.00",L,80131800,Real estate management services
"Ministry of Housing, Communities and Local Government",Homes England,PROF FEES LOANS CAPITALISED,Investment,AVISON YOUNG (UK) LTD,23/07/2021,"4,800.00",L,80131800,Real estate management services
"Ministry of Housing, Communities and Local Government",Homes England,MISC PROFESSIONAL FEES,MPP,AVISON YOUNG (UK) LTD,01/07/2021,"4,455.60",L,80131800,Real estate management services
"Ministry of Housing, Communities and Local Government",Homes England,OTHER PROFESSIONAL FEES,Development,AVISON YOUNG (UK) LTD,07/07/2021,"3,914.40",L,80131800,Real estate management services
"Ministry of Housing, Communities and Local Government",Homes England,OTHER PROFESSIONAL FEES,Development,AVISON YOUNG (UK) LTD,05/07/2021,"3,600.00",L,80131800,Real estate management services
"Ministry of Housing, Communities and Local Government",Homes England,OTHER PROFESSIONAL FEES,Development,AVISON YOUNG (UK) LTD,05/07/2021,"2,935.80",L,80131800,Real estate management services
"Ministry of Housing, Communities and Local Government",Homes England,PLANNING APPLICATIONS,Development,AVISON YOUNG (UK) LTD,29/07/2021,"2,400.00",L,80131800,Real estate management services
"Ministry of Housing, Communities and Local Government",Homes England,OTHER PROFESSIONAL FEES,Development,AVISON YOUNG (UK) LTD,05/07/2021,"2,348.64",L,80131800,Real estate management services
"Ministry of Housing, Communities and Local Government",Homes England,PLANNING APPLICATIONS,MPP,AVISON YOUNG (UK) LTD,29/07/2021,"2,340.00",L,80131800,Real estate management services
"Ministry of Housing, Communities and Local Government",Homes England,OTHER PROFESSIONAL FEES,Development,AVISON YOUNG (UK) LTD,27/07/2021,"2,114.40",L,80131800,Real estate management services
"Ministry of Housing, Communities and Local Government",Homes England,MANAGEMENT COSTS,MPP,AVISON YOUNG (UK) LTD,28/07/2021,"1,800.00",L,80131800,Real estate management services
"Ministry of Housing, Communities and Local Government",Homes England,RI - MONIITORING SURVEYOR FEES,Investment,AVISON YOUNG (UK) LTD,09/07/2021,"1,740.00",L,81101500,Civil Engineering
"Ministry of Housing, Communities and Local Government",Homes England,RI - MONIITORING SURVEYOR FEES,Investment,AVISON YOUNG (UK) LTD,06/07/2021,"1,228.92",L,81101500,Civil Engineering
"Ministry of Housing, Communities and Local Government",Homes England,RI - MONIITORING SURVEYOR FEES,Investment,AVISON YOUNG (UK) LTD,30/07/2021,"1,228.92",L,81101500,Civil Engineering
"Ministry of Housing, Communities and Local Government",Homes England,RI - MONIITORING SURVEYOR FEES,Development,AVISON YOUNG (UK) LTD,01/07/2021,900.00,L,81101500,Civil Engineering
"Ministry of Housing, Communities and Local Government",Homes England,RI - MONIITORING SURVEYOR FEES,Investment,AVISON YOUNG (UK) LTD,01/07/2021,900.00,L,81101500,Civil Engineering
"Ministry of Housing, Communities and Local Government",Homes England,STAFF MEDICAL FEES,Corporate Resources,GENIUS WITHIN CIC,29/07/2021,"3,002.40",M,85122200,Individual health screening and assessment centres
"Ministry of Housing, Communities and Local Government",Homes England,MISC PROFESSIONAL FEES,Development,W T GUNSON,09/07/2021,354.00,S,81101500,Civil Engineering
"Ministry of Housing, Communities and Local Government",Homes England,PENSION SCHEME FEES,Corporate Resources,GOVERNMENT ACTUARY'S DEPARTMENT,29/07/2021,"25,417.17",G,84131700,Pension funds
"Ministry of Housing, Communities and Local Government",Homes England,ST FUND LOANS ADDITIONS,Investment,GBR DEVELOPMENTS LLP,13/07/2021,"26,912.74",S,None,Loans
"Ministry of Housing, Communities and Local Government",Homes England,ST FUND LOANS ADDITIONS,Investment,GENUS DESIGN HOMES LIMITED,02/07/2021,"93,223.79",L,None,Loans
"Ministry of Housing, Communities and Local Government",Homes England,SERVICE RENTS/CHARGES,MPP,GVA GRIMLEY LTD CLIENT A/C,13/07/2021,907.05,L,80131500,Lease and rental of property or building
"Ministry of Housing, Communities and Local Government",Homes England,MISC PROFESSIONAL FEES,Corporate Resources,GLOBAL DOCUMENT SYSTEMS LIMITED,28/07/2021,420.00,S,44102900,Office Machine accessories
"Ministry of Housing, Communities and Local Government",Homes England,STAFF RECRUITMENT COSTS,Chief Executive Office,GATENBY SANDERSON,27/07/2021,"6,960.00",M,80111700,Personnel Recruitment
"Ministry of Housing, Communities and Local Government",Homes England,ST FUND LOANS ADDITIONS,Investment,GRC DEVELOPMENTS LIMITED,19/07/2021,"53,350.00",L,None,Loans
"Ministry of Housing, Communities and Local Government",Homes England,OTHER PROFESSIONAL FEES,Development,GATELEY PLC,16/07/2021,"202,444.31",L,80131800,Real estate management services
"Ministry of Housing, Communities and Local Government",Homes England,ST FUND LOANS ADDITIONS,Investment,GILBY HOMES LTD,01/07/2021,"210,000.00",L,None,Loans
"Ministry of Housing, Communities and Local Government",Homes England,ST FUND LOANS ADDITIONS,Investment,GILBY HOMES LTD,30/07/2021,"100,000.00",L,None,Loans
"Ministry of Housing, Communities and Local Government",Homes England,MISC PROFESSIONAL FEES,MPP,GLENIGAN LIMITED,30/07/2021,"26,732.40",M,81151600,Cartography
"Ministry of Housing, Communities and Local Government",Homes England,MISC PROFESSIONAL FEES,MPP,GLENIGAN LIMITED,07/07/2021,"23,388.00",M,81151600,Cartography
"Ministry of Housing, Communities and Local Government",Homes England,RI - MONIITORING SURVEYOR FEES,Investment,GLEEDS ADVISORY LTD,09/07/2021,"1,200.00",S,81101500,Civil Engineering
"Ministry of Housing, Communities and Local Government",Homes England,AGENCY STAFF,Development,GREEN PARK INTERIM & EXECUTIVE LTD,16/07/2021,"11,616.00",M,80111600,Temporary personnel services
"Ministry of Housing, Communities and Local Government",Homes England,AGENCY STAFF,Development,GREEN PARK INTERIM & EXECUTIVE LTD,05/07/2021,"10,164.00",M,80111600,Temporary personnel services
"Ministry of Housing, Communities and Local Government",Homes England,AGENCY STAFF,Development,GREEN PARK INTERIM & EXECUTIVE LTD,21/07/2021,"4,620.00",M,80111600,Temporary personnel services
"Ministry of Housing, Communities and Local Government",Homes England,AGENCY STAFF,Investment,HAYS ACCOUNTANCY & FINANCE,07/07/2021,"7,900.20",L,80111600,Temporary personnel services
"Ministry of Housing, Communities and Local Government",Homes England,AGENCY STAFF,Corporate Resources,HAYS ACCOUNTANCY & FINANCE,15/07/2021,"7,788.00",L,80111600,Temporary personnel services
"Ministry of Housing, Communities and Local Government",Homes England,AGENCY STAFF,Corporate Resources,HAYS ACCOUNTANCY & FINANCE,15/07/2021,"6,739.20",L,80111600,Temporary personnel services
"Ministry of Housing, Communities and Local Government",Homes England,AGENCY STAFF,Corporate Resources,HAYS ACCOUNTANCY & FINANCE,15/07/2021,"4,939.44",L,80111600,Temporary personnel services
"Ministry of Housing, Communities and Local Government",Homes England,AGENCY STAFF,Investment,HAYS ACCOUNTANCY & FINANCE,09/07/2021,"4,740.12",L,80111600,Temporary personnel services
"Ministry of Housing, Communities and Local Government",Homes England,AGENCY STAFF,Development,HAYS ACCOUNTANCY & FINANCE,14/07/2021,"3,550.01",L,80111600,Temporary personnel services
"Ministry of Housing, Communities and Local Government",Homes England,AGENCY STAFF,Development,HAYS ACCOUNTANCY & FINANCE,14/07/2021,"3,550.01",L,80111600,Temporary personnel services
"Ministry of Housing, Communities and Local Government",Homes England,AGENCY STAFF,Corporate Resources,HAYS ACCOUNTANCY & FINANCE,01/07/2021,"3,540.00",L,80111600,Temporary personnel services
"Ministry of Housing, Communities and Local Government",Homes England,AGENCY STAFF,Corporate Resources,HAYS ACCOUNTANCY & FINANCE,09/07/2021,"3,540.00",L,80111600,Temporary personnel services
"Ministry of Housing, Communities and Local Government",Homes England,AGENCY STAFF,Corporate Resources,HAYS ACCOUNTANCY & FINANCE,15/07/2021,"3,540.00",L,80111600,Temporary personnel services
"Ministry of Housing, Communities and Local Government",Homes England,AGENCY STAFF,Corporate Resources,HAYS ACCOUNTANCY & FINANCE,22/07/2021,"3,540.00",L,80111600,Temporary personnel services
"Ministry of Housing, Communities and Local Government",Homes England,AGENCY STAFF,Corporate Resources,HAYS ACCOUNTANCY & FINANCE,28/07/2021,"3,540.00",L,80111600,Temporary personnel services
"Ministry of Housing, Communities and Local Government",Homes England,AGENCY STAFF,Corporate Resources,HAYS ACCOUNTANCY & FINANCE,15/07/2021,"2,472.66",L,80111600,Temporary personnel services
"Ministry of Housing, Communities and Local Government",Homes England,AGENCY STAFF,Development,HAYS ACCOUNTANCY & FINANCE,02/07/2021,841.57,L,80111600,Temporary personnel services
"Ministry of Housing, Communities and Local Government",Homes England,ENGINEERING FEES,MPP,ARCADIS CONSULTING (UK) LIMITED,28/07/2021,"80,753.23",L,81101500,Civil Engineering
"Ministry of Housing, Communities and Local Government",Homes England,OTHER PROFESSIONAL FEES,MPP,ARCADIS CONSULTING (UK) LIMITED,27/07/2021,"53,688.00",L,80131800,Real estate management services
"Ministry of Housing, Communities and Local Government",Homes England,ENGINEERING FEES,MPP,ARCADIS CONSULTING (UK) LIMITED,06/07/2021,"46,654.03",L,81101500,Civil Engineering
"Ministry of Housing, Communities and Local Government",Homes England,ENGINEERING FEES,Development,ARCADIS CONSULTING (UK) LIMITED,06/07/2021,"36,254.66",L,81101500,Civil Engineering
"Ministry of Housing, Communities and Local Government",Homes England,PROJECT MANAGEMENT,Development,ARCADIS CONSULTING (UK) LIMITED,30/07/2021,"33,246.78",L,80101600,Project management
"Ministry of Housing, Communities and Local Government",Homes England,PLANNING APPLICATIONS,MPP,ARCADIS CONSULTING (UK) LIMITED,06/07/2021,"15,241.22",L,80131800,Real estate management services
"Ministry of Housing, Communities and Local Government",Homes England,OTHER PROFESSIONAL FEES,MPP,ARCADIS CONSULTING (UK) LIMITED,27/07/2021,"9,600.00",L,80131800,Real estate management services
"Ministry of Housing, Communities and Local Government",Homes England,PROF FEES LOANS CAPITALISED,Investment,ARCADIS CONSULTING (UK) LIMITED,09/07/2021,"7,800.00",L,81101500,Civil Engineering
"Ministry of Housing, Communities and Local Government",Homes England,PLANNING APPLICATIONS,MPP,ARCADIS CONSULTING (UK) LIMITED,20/07/2021,"4,800.00",L,80131800,Real estate management services
"Ministry of Housing, Communities and Local Government",Homes England,PROJECT MANAGEMENT,MPP,ARCADIS CONSULTING (UK) LIMITED,14/07/2021,"3,246.00",L,80101600,Project management
"Ministry of Housing, Communities and Local Government",Homes England,PROF FEES LOANS CAPITALISED,Investment,ARCADIS CONSULTING (UK) LIMITED,09/07/2021,"3,000.00",L,81101500,Civil Engineering
"Ministry of Housing, Communities and Local Government",Homes England,PROF FEES LOANS CAPITALISED,Investment,ARCADIS CONSULTING (UK) LIMITED,09/07/2021,"1,740.00",L,81101500,Civil Engineering
"Ministry of Housing, Communities and Local Government",Homes England,RI - MONIITORING SURVEYOR FEES,Investment,ARCADIS CONSULTING (UK) LIMITED,09/07/2021,"1,740.00",L,81101500,Civil Engineering
"Ministry of Housing, Communities and Local Government",Homes England,RI - MONIITORING SURVEYOR FEES,Investment,ARCADIS CONSULTING (UK) LIMITED,09/07/2021,"1,740.00",L,81101500,Civil Engineering
"Ministry of Housing, Communities and Local Government",Homes England,RI - MONIITORING SURVEYOR FEES,Investment,ARCADIS CONSULTING (UK) LIMITED,29/07/2021,"1,740.00",L,81101500,Civil Engineering
"Ministry of Housing, Communities and Local Government",Homes England,RI - MONIITORING SURVEYOR FEES,Investment,ARCADIS CONSULTING (UK) LIMITED,29/07/2021,"1,740.00",L,81101500,Civil Engineering
"Ministry of Housing, Communities and Local Government",Homes England,RI - MONIITORING SURVEYOR FEES,Investment,ARCADIS CONSULTING (UK) LIMITED,01/07/2021,"1,620.00",L,81101500,Civil Engineering
"Ministry of Housing, Communities and Local Government",Homes England,RI - MONIITORING SURVEYOR FEES,Investment,ARCADIS CONSULTING (UK) LIMITED,01/07/2021,"1,620.00",L,81101500,Civil Engineering
"Ministry of Housing, Communities and Local Government",Homes England,RI - MONIITORING SURVEYOR FEES,Investment,ARCADIS CONSULTING (UK) LIMITED,15/07/2021,"1,620.00",L,81101500,Civil Engineering
"Ministry of Housing, Communities and Local Government",Homes England,RI - MONIITORING SURVEYOR FEES,Investment,ARCADIS CONSULTING (UK) LIMITED,28/07/2021,"1,560.00",L,81101500,Civil Engineering
"Ministry of Housing, Communities and Local Government",Homes England,RI - MONIITORING SURVEYOR FEES,Investment,ARCADIS CONSULTING (UK) LIMITED,08/07/2021,"1,500.00",L,81101500,Civil Engineering
"Ministry of Housing, Communities and Local Government",Homes England,RI - MONIITORING SURVEYOR FEES,Investment,ARCADIS CONSULTING (UK) LIMITED,08/07/2021,"1,500.00",L,81101500,Civil Engineering
"Ministry of Housing, Communities and Local Government",Homes England,RI - MONIITORING SURVEYOR FEES,Investment,ARCADIS CONSULTING (UK) LIMITED,29/07/2021,"1,500.00",L,81101500,Civil Engineering
"Ministry of Housing, Communities and Local Government",Homes England,RI - MONIITORING SURVEYOR FEES,Investment,ARCADIS CONSULTING (UK) LIMITED,09/07/2021,840.00,L,81101500,Civil Engineering
"Ministry of Housing, Communities and Local Government",Homes England,PROPERTY SERVICES,Development,HARTNELL TAYLOR COOK LLP,05/07/2021,"7,200.00",M,80131800,Real estate management services
"Ministry of Housing, Communities and Local Government",Homes England,PROPERTY SERVICES,Development,HARTNELL TAYLOR COOK LLP,05/07/2021,"3,708.00",M,80131800,Real estate management services
"Ministry of Housing, Communities and Local Government",Homes England,ENGINEERING CONSULTANTS,Development,HARTNELL TAYLOR COOK LLP,05/07/2021,"3,600.00",M,81101500,Civil Engineering
"Ministry of Housing, Communities and Local Government",Homes England,PROPERTY SERVICES,Development,HARTNELL TAYLOR COOK LLP,05/07/2021,"3,399.00",M,80131800,Real estate management services
"Ministry of Housing, Communities and Local Government",Homes England,PROPERTY SERVICES,Development,HARTNELL TAYLOR COOK LLP,06/07/2021,"3,286.84",M,80131800,Real estate management services
"Ministry of Housing, Communities and Local Government",Homes England,PROPERTY SERVICES,Development,HARTNELL TAYLOR COOK LLP,06/07/2021,"3,286.84",M,80131800,Real estate management services
"Ministry of Housing, Communities and Local Government",Homes England,PROPERTY SERVICES,Development,HARTNELL TAYLOR COOK LLP,05/07/2021,"3,244.50",M,80131800,Real estate management services
"Ministry of Housing, Communities and Local Government",Homes England,PROPERTY SERVICES,Development,HARTNELL TAYLOR COOK LLP,05/07/2021,"2,169.18",M,80131800,Real estate management services
"Ministry of Housing, Communities and Local Government",Homes England,PROPERTY SERVICES,Development,HARTNELL TAYLOR COOK LLP,06/07/2021,"1,925.08",M,80131800,Real estate management services
"Ministry of Housing, Communities and Local Government",Homes England,PROPERTY SERVICES,Development,HARTNELL TAYLOR COOK LLP,06/07/2021,"1,776.76",M,80131800,Real estate management services
"Ministry of Housing, Communities and Local Government",Homes England,MANAGEMENT COSTS,Development,HARTNELL TAYLOR COOK LLP,06/07/2021,"1,776.76",M,80131800,Real estate management services
"Ministry of Housing, Communities and Local Government",Homes England,PROPERTY SERVICES,Development,HARTNELL TAYLOR COOK LLP,05/07/2021,"1,359.60",M,80131800,Real estate management services
"Ministry of Housing, Communities and Local Government",Homes England,OTHER PROFESSIONAL FEES,Development,HARTNELL TAYLOR COOK LLP,05/07/2021,"1,273.08",M,80131800,Real estate management services
"Ministry of Housing, Communities and Local Government",Homes England,MANAGEMENT COSTS,Development,HARTNELL TAYLOR COOK LLP,05/07/2021,"1,236.00",M,80131800,Real estate management services
"Ministry of Housing, Communities and Local Government",Homes England,PROPERTY SERVICES,Development,HARTNELL TAYLOR COOK LLP,05/07/2021,"1,236.00",M,80131800,Real estate management services
"Ministry of Housing, Communities and Local Government",Homes England,PROPERTY SERVICES,Development,HARTNELL TAYLOR COOK LLP,06/07/2021,"1,189.66",M,80131800,Real estate management services
"Ministry of Housing, Communities and Local Government",Homes England,PROPERTY SERVICES,Development,HARTNELL TAYLOR COOK LLP,05/07/2021,"1,174.20",M,80131800,Real estate management services
"Ministry of Housing, Communities and Local Government",Homes England,PROPERTY SERVICES,Development,HARTNELL TAYLOR COOK LLP,05/07/2021,"1,174.20",M,80131800,Real estate management services
"Ministry of Housing, Communities and Local Government",Homes England,PROPERTY SERVICES,Development,HARTNELL TAYLOR COOK LLP,06/07/2021,"1,158.76",M,80131800,Real estate management services
"Ministry of Housing, Communities and Local Government",Homes England,PROPERTY SERVICES,Development,HARTNELL TAYLOR COOK LLP,05/07/2021,"1,155.66",M,80131800,Real estate management services
"Ministry of Housing, Communities and Local Government",Homes England,ESTATE GENERAL MAINTENANCE,Development,HARTNELL TAYLOR COOK LLP,05/07/2021,933.18,M,72101500,Building maintenance and repair services
"Ministry of Housing, Communities and Local Government",Homes England,PROPERTY SERVICES,Development,HARTNELL TAYLOR COOK LLP,06/07/2021,864.00,M,80131800,Real estate management services
"Ministry of Housing, Communities and Local Government",Homes England,PROPERTY SERVICES,Development,HARTNELL TAYLOR COOK LLP,06/07/2021,849.76,M,80131800,Real estate management services
"Ministry of Housing, Communities and Local Government",Homes England,ESTATE GENERAL MAINTENANCE,Development,HARTNELL TAYLOR COOK LLP,06/07/2021,764.64,M,72101500,Building maintenance and repair services
"Ministry of Housing, Communities and Local Government",Homes England,PROPERTY SERVICES,Development,HARTNELL TAYLOR COOK LLP,05/07/2021,370.80,M,80131800,Real estate management services
"Ministry of Housing, Communities and Local Government",Homes England,INTERNAL COMMUNICATIONS,Executive Office,HITCHINGS PRODUCTIONS,01/07/2021,420.00,S,82131600,Photographers and cinematographers
"Ministry of Housing, Communities and Local Government",Homes England,ST FUND LOANS ADDITIONS,Investment,HARTFORTH HOMES (WEST WITTON) LIMITED,27/07/2021,"250,429.00",S,None,Loans
"Ministry of Housing, Communities and Local Government",Homes England,CAP GRNTS TO LOCAL AUTHORITIES,Investment,HAVANT BOROUGH COUNCIL,27/07/2021,"12,925.50",G,None,Grants
"Ministry of Housing, Communities and Local Government",Homes England,PENSION SCHEME FEES,Corporate Resources,HYMANS ROBERTSON,15/07/2021,"2,739.00",L,84131700,Pension funds
"Ministry of Housing, Communities and Local Government",Homes England,MISC PROFESSIONAL FEES,Development,HARVEYHR LTD,20/07/2021,"2,700.00",S,80101500,Business and corporate management consultation services 
"Ministry of Housing, Communities and Local Government",Homes England,MANAGED FUNDS - ADDITIONS,Investment,HOUSING GROWTH PARTNERSHIP LIMITED,08/07/2021,"564,017.50",S,None,Loans
"Ministry of Housing, Communities and Local Government",Homes England,OFFICE RELOCATION COSTS,Development,HARROW GREEN LIMITED,15/07/2021,"2,702.16",L,78131800,Specialised warehousing and Storage
"Ministry of Housing, Communities and Local Government",Homes England,OFFICE RELOCATION COSTS,Development,HARROW GREEN LIMITED,05/07/2021,"1,751.70",L,78131800,Specialised warehousing and Storage
"Ministry of Housing, Communities and Local Government",Homes England,OFFICE RELOCATION COSTS,Development,HARROW GREEN LIMITED,27/07/2021,438.00,L,78131800,Specialised warehousing and Storage
"Ministry of Housing, Communities and Local Government",Homes England,ST FUND LOANS ADDITIONS,Development,HARDFIELD HOMES (BELPER) LTD,22/07/2021,"116,822.00",L,None,Loans
"Ministry of Housing, Communities and Local Government",Homes England,ST FUND LOANS ADDITIONS,Investment,HIGHBROOK HOMES FAIRFIELD LIMITED,22/07/2021,"72,574.00",S,None,Loans
"Ministry of Housing, Communities and Local Government",Homes England,ST FUND LOANS ADDITIONS,Investment,HOLLINS HOMES (TILSTOCK) LTD,22/07/2021,"260,140.00",S,None,Loans
"Ministry of Housing, Communities and Local Government",Homes England,CAPITAL GRANTS TO RPs,Investment,TRANSFORM HOUSING & SUPPORT,06/07/2021,"64,000.00",L,None,Grants
"Ministry of Housing, Communities and Local Government",Homes England,CAPITAL GRANTS TO RPs,Investment,TRANSFORM HOUSING & SUPPORT,06/07/2021,"64,000.00",L,None,Grants
"Ministry of Housing, Communities and Local Government",Homes England,CAPITAL GRANTS TO RPs,Investment,TRANSFORM HOUSING & SUPPORT,05/07/2021,"57,600.00",L,None,Grants
"Ministry of Housing, Communities and Local Government",Homes England,CAPITAL GRANTS TO RPs,Investment,TRANSFORM HOUSING & SUPPORT,05/07/2021,"57,600.00",L,None,Grants
"Ministry of Housing, Communities and Local Government",Homes England,CAPITAL GRANTS TO RPs,Investment,TRANSFORM HOUSING & SUPPORT,05/07/2021,"21,000.00",L,None,Grants
"Ministry of Housing, Communities and Local Government",Homes England,CAPITAL GRANTS TO RPs,Investment,TRANSFORM HOUSING & SUPPORT,06/07/2021,"15,000.00",L,None,Grants
"Ministry of Housing, Communities and Local Government",Homes England,CAPITAL GRANTS TO RPs,Investment,TRANSFORM HOUSING & SUPPORT,07/07/2021,"6,400.00",L,None,Grants
"Ministry of Housing, Communities and Local Government",Homes England,CAPITAL GRANTS TO RPs,Investment,TRANSFORM HOUSING & SUPPORT,07/07/2021,"6,400.00",L,None,Grants
"Ministry of Housing, Communities and Local Government",Homes England,ESTATE GENERAL MAINTENANCE,Development,T HODGSON PLANT HIRE,05/07/2021,"3,474.00",S,72101500,Building maintenance and repair services
"Ministry of Housing, Communities and Local Government",Homes England,ESTATE GENERAL MAINTENANCE,Development,T HODGSON PLANT HIRE,07/07/2021,"3,222.00",S,72101500,Building maintenance and repair services
"Ministry of Housing, Communities and Local Government",Homes England,ESTATE GENERAL MAINTENANCE,Development,T HODGSON PLANT HIRE,05/07/2021,"2,856.00",S,72101500,Building maintenance and repair services
"Ministry of Housing, Communities and Local Government",Homes England,ESTATE GENERAL MAINTENANCE,Development,T HODGSON PLANT HIRE,07/07/2021,"2,214.00",S,72101500,Building maintenance and repair services
"Ministry of Housing, Communities and Local Government",Homes England,ESTATE GENERAL MAINTENANCE,Development,T HODGSON PLANT HIRE,07/07/2021,"1,104.00",S,72101500,Building maintenance and repair services
"Ministry of Housing, Communities and Local Government",Homes England,ESTATE GENERAL MAINTENANCE,Development,T HODGSON PLANT HIRE,05/07/2021,"1,056.00",S,72101500,Building maintenance and repair services
"Ministry of Housing, Communities and Local Government",Homes England,AGENCY STAFF,Development,HALES GROUP LTD,21/07/2021,614.66,L,80111600,Temporary personnel services
